OrganisationNameLabel,OrganisationURI,EffectiveDate,Directorate/ServiceWhereExpenditureIncurred,ServiceCategoryLabel,ServiceCategoryURI,Supplier,SupplierRegisteredCompany Number,PaymentDate,TransactionNumber,NetAmount,IrrecoverableVAT,PurposeOfSpend,ProcurementClassification:ProclassLabel,ProcrementClassification:ProClassCode
South Lakeland District Council,http://opendatacommunities.org/id/district-council/south-lakeland,31/03/2015,Social Enterprise Admin,Cultural Environmental Regulatory & Planning Services,http://opendatacommunities.org/def/concept/finance/sercop/objective/104,NORTHGATE VEHICLE HIRE LTD,1434157,23/03/2015,44831,54.4,0,PLANNING OFFICERS TRAVEL FROM KENDAL TO,Education,170000
South Lakeland District Council,http://opendatacommunities.org/id/district-council/south-lakeland,31/03/2015,Social Enterprise Admin,Cultural Environmental Regulatory & Planning Services,http://opendatacommunities.org/def/concept/finance/sercop/objective/104,GRANGE OVER SANDS CIVIC SOCIETY,,09/03/2015,46623,1480.48,0,Maintain Promenade bends & orchard at,Financial Services,200000
South Lakeland District Council,http://opendatacommunities.org/id/district-council/south-lakeland,31/03/2015,Business Support Community Services,Cultural Environmental Regulatory & Planning Services,http://opendatacommunities.org/def/concept/finance/sercop/objective/104,WESTMORLAND VETERINARY GROUP,,18/03/2015,47004,863.98,0,Vet Inspection Fees,Healthcare,310000
South Lakeland District Council,http://opendatacommunities.org/id/district-council/south-lakeland,31/03/2015,Kendal Market Hall,Cultural Environmental Regulatory & Planning Services,http://opendatacommunities.org/def/concept/finance/sercop/objective/104,Smart Cleaning Services Ltd,,09/03/2015,47079,100,0,cleaning and de-odorising of a carpet in,Cleaning & Janitorial,130000
South Lakeland District Council,http://opendatacommunities.org/id/district-council/south-lakeland,31/03/2015,ICT Group,Central Services,http://opendatacommunities.org/def/concept/finance/sercop/objective/102,LAN2LAN Limited,,18/03/2015,47173,490,0,Fortinet FortiAnalyser-VM,Information Communication Technology,270000
South Lakeland District Council,http://opendatacommunities.org/id/district-council/south-lakeland,31/03/2015,ICT Group,Central Services,http://opendatacommunities.org/def/concept/finance/sercop/objective/102,LAN2LAN Limited,,18/03/2015,47173,1175,0,Fortinet FortiAnalyser-VM,Information Communication Technology,270000
South Lakeland District Council,http://opendatacommunities.org/id/district-council/south-lakeland,31/03/2015,Social Enterprise Admin,Central Services,http://opendatacommunities.org/def/concept/finance/sercop/objective/102,CUMBRIA WASTE RECYCLING LTD,3162439,02/03/2015,47253,207.57,0,Wheelie bin and skip emptying South,Environmental Services,180000
South Lakeland District Council,http://opendatacommunities.org/id/district-council/south-lakeland,31/03/2015,Social Enterprise Admin,Central Services,http://opendatacommunities.org/def/concept/finance/sercop/objective/102,CUMBRIA WASTE RECYCLING LTD,3162439,02/03/2015,47255,135.82,0,Ulverston Town Hall Queen Street wheelie,Environmental Services,180000
South Lakeland District Council,http://opendatacommunities.org/id/district-council/south-lakeland,31/03/2015,Social Enterprise Admin,Highways & Transport Services,http://opendatacommunities.org/def/concept/finance/sercop/objective/107,CUMBRIA WASTE RECYCLING LTD,3162439,02/03/2015,47257,54.52,0,Westmorland Multi Storey 660 ltr Wheelie,Environmental Services,180000
South Lakeland District Council,http://opendatacommunities.org/id/district-council/south-lakeland,31/03/2015,Democratic Services,Central Services,http://opendatacommunities.org/def/concept/finance/sercop/objective/102,LOCAL GOVERNMENT ASSOCIATION,,11/03/2015,47350,390,0,Councillor to attend LGA,Education,170000
South Lakeland District Council,http://opendatacommunities.org/id/district-council/south-lakeland,31/03/2015,Social Enterprise Admin,Highways & Transport Services,http://opendatacommunities.org/def/concept/finance/sercop/objective/107,HYGIENE CLEANING SUPPLIES LTD,4753934,04/03/2015,47391,48.75,0,1 x Jangro Bulk Pk Toilet Tissue,Cleaning & Janitorial,130000
South Lakeland District Council,http://opendatacommunities.org/id/district-council/south-lakeland,31/03/2015,Lake Wardens,Cultural Environmental Regulatory & Planning Services,http://opendatacommunities.org/def/concept/finance/sercop/objective/104,ROYAL YACHTING ASSOCIATION,878357,04/03/2015,47410,196.27,0,12 x  Start Powerboating Handbook.,Financial Services,200000
South Lakeland District Council,http://opendatacommunities.org/id/district-council/south-lakeland,31/03/2015,Development Implementation,Cultural Environmental Regulatory & Planning Services,http://opendatacommunities.org/def/concept/finance/sercop/objective/104,OVE ARUP & PARTNERS LTD,1312453,09/03/2015,47412,3240,0,Canal Head Depot Reports,Financial Services,200000
South Lakeland District Council,http://opendatacommunities.org/id/district-council/south-lakeland,31/03/2015,Development Management,Cultural Environmental Regulatory & Planning Services,http://opendatacommunities.org/def/concept/finance/sercop/objective/104,ARCO LIMITED,133804,04/03/2015,47417,277.2,0,5719213 Bigfoot Cone 2 piece 750mm,"Works - Construction, Repair & Maintenance",390000
South Lakeland District Council,http://opendatacommunities.org/id/district-council/south-lakeland,31/03/2015,Policy & Partnerships,Cultural Environmental Regulatory & Planning Services,http://opendatacommunities.org/def/concept/finance/sercop/objective/104,GRANTS- MISCELLANEOUS,,18/03/2015,47452,400,0,Money towards maintaining food stocks,Financial Services,200000
South Lakeland District Council,http://opendatacommunities.org/id/district-council/south-lakeland,31/03/2015,Business Support Community Services,Internal Trading Accounts,,K S INTERNATIONAL LTD,2703321,04/03/2015,47494,160,0,U bolts,Vehicle Management,380000
South Lakeland District Council,http://opendatacommunities.org/id/district-council/south-lakeland,31/03/2015,Human Resources,Central Services,http://opendatacommunities.org/def/concept/finance/sercop/objective/102,SOUTH LAKES HOUSING,IP031419,04/03/2015,47506,90,0,Room hire on 25th February 2015 for IOSH,Education,170000
South Lakeland District Council,http://opendatacommunities.org/id/district-council/south-lakeland,31/03/2015,Human Resources,Central Services,http://opendatacommunities.org/def/concept/finance/sercop/objective/102,CHARTERED INST OF ENVIRONMNTL HLTH,,04/03/2015,47510,700,0,Advertising for Licensing Officer online,Human Resources,260000
South Lakeland District Council,http://opendatacommunities.org/id/district-council/south-lakeland,31/03/2015,Social Enterprise Admin,Cultural Environmental Regulatory & Planning Services,http://opendatacommunities.org/def/concept/finance/sercop/objective/104,NEWSQUEST (NORTH WEST) LTD,3102566,09/03/2015,47525,95,0,PUBLIC NOTICES FOR PLANNIG DEPARTMENT.,Facilities & Management Services,190000
South Lakeland District Council,http://opendatacommunities.org/id/district-council/south-lakeland,31/03/2015,Social Enterprise Admin,Cultural Environmental Regulatory & Planning Services,http://opendatacommunities.org/def/concept/finance/sercop/objective/104,Matchtech,2526418,09/03/2015,47528,1068.19,0,TO SUPPLY DEVELOPMENT CONTROL TEAM,Consultancy,150000
South Lakeland District Council,http://opendatacommunities.org/id/district-council/south-lakeland,31/03/2015,Technical Team,Cultural Environmental Regulatory & Planning Services,http://opendatacommunities.org/def/concept/finance/sercop/objective/104,Matchtech,2526418,09/03/2015,47529,806.4,0,TO SUPPLY  CONTRACT 16,Consultancy,150000
South Lakeland District Council,http://opendatacommunities.org/id/district-council/south-lakeland,31/03/2015,Coronation Hall,External Trading Accounts,,Morson International,,04/03/2015,47530,99.4,0,Ulverston Market Hall cleaner from April,Consultancy,150000
South Lakeland District Council,http://opendatacommunities.org/id/district-council/south-lakeland,31/03/2015,Social Enterprise Admin,Cultural Environmental Regulatory & Planning Services,http://opendatacommunities.org/def/concept/finance/sercop/objective/104,James Coles & Sons (Nurseries) Ltd,1330804,09/03/2015,47531,733.45,0,As per quote refernce 69002,Horticultural,240000
South Lakeland District Council,http://opendatacommunities.org/id/district-council/south-lakeland,31/03/2015,Business Support Community Services,Housing Services,http://opendatacommunities.org/def/concept/finance/sercop/objective/108,ADECCO UK LIMITED,593232,04/03/2015,47533,102.7,0,Cleaner for Town View Fields,Consultancy,150000
South Lakeland District Council,http://opendatacommunities.org/id/district-council/south-lakeland,31/03/2015,Human Resources,Central Services,http://opendatacommunities.org/def/concept/finance/sercop/objective/102,"Woodward Safety, Health & Environment Lt",4116638,02/03/2015,47560,945,0,NEBOSH National Cert in Environmental,Health & Safety,220000
South Lakeland District Council,http://opendatacommunities.org/id/district-council/south-lakeland,31/03/2015,Human Resources,Central Services,http://opendatacommunities.org/def/concept/finance/sercop/objective/102,MYERSCOUGH COLLEGE,,02/03/2015,47561,850,0,Level 3 certificate in facilities,Health & Safety,220000
South Lakeland District Council,http://opendatacommunities.org/id/district-council/south-lakeland,31/03/2015,Financial Services,Cultural Environmental Regulatory & Planning Services,http://opendatacommunities.org/def/concept/finance/sercop/objective/104,HER MAJESTY'S COURTS & TRIBUNAL SERVICE,,04/03/2015,47564,110000,0,Fine awarded against SLDC,Legal Services,280000
South Lakeland District Council,http://opendatacommunities.org/id/district-council/south-lakeland,31/03/2015,Financial Services,Cultural Environmental Regulatory & Planning Services,http://opendatacommunities.org/def/concept/finance/sercop/objective/104,HER MAJESTY'S COURTS & TRIBUNAL SERVICE,,04/03/2015,47565,60000,0,Fine awarded against SLDC,Legal Services,280000
South Lakeland District Council,http://opendatacommunities.org/id/district-council/south-lakeland,31/03/2015,Business Support Community Services,Cultural Environmental Regulatory & Planning Services,http://opendatacommunities.org/def/concept/finance/sercop/objective/104,CHILLSWIM LTD,8062283,04/03/2015,47566,750,0,For Big Chill Swim Windermere 31 Jan &,Arts & Leisure Services,290000
South Lakeland District Council,http://opendatacommunities.org/id/district-council/south-lakeland,31/03/2015,Legal Services,Internal Trading Accounts,,PENNINGTONS (KENDAL) LIMITED,434649,09/03/2015,47572,2000,0,Annual Charge from 01 April 2014 to 31,Environmental Services,180000
South Lakeland District Council,http://opendatacommunities.org/id/district-council/south-lakeland,31/03/2015,Financial Services,Central Services,http://opendatacommunities.org/def/concept/finance/sercop/objective/102,Capita Secure Information Solutions Ltd,1593831,11/03/2015,47573,5402.55,0,Script conversion support,Financial Services,200000
South Lakeland District Council,http://opendatacommunities.org/id/district-council/south-lakeland,31/03/2015,Business Support Community Services,Internal Trading Accounts,,LAKELAND COMMERCIALS LTD,2719162,09/03/2015,47574,55.5,0,Steam clean,Vehicle Management,380000
South Lakeland District Council,http://opendatacommunities.org/id/district-council/south-lakeland,31/03/2015,Business Support Community Services,Internal Trading Accounts,,DENNIS EAGLE LTD,3794455,09/03/2015,47575,436,0,Switch,Vehicle Management,380000
South Lakeland District Council,http://opendatacommunities.org/id/district-council/south-lakeland,31/03/2015,Coronation Hall,Cultural Environmental Regulatory & Planning Services,http://opendatacommunities.org/def/concept/finance/sercop/objective/104,ST JOHN AMBULANCE CUMBRIA,,04/03/2015,47576,52.8,0,FAO KR,Consultancy,150000
South Lakeland District Council,http://opendatacommunities.org/id/district-council/south-lakeland,31/03/2015,Development Management,Cultural Environmental Regulatory & Planning Services,http://opendatacommunities.org/def/concept/finance/sercop/objective/104,CHRIS BOWKER LTD,1642561,09/03/2015,47577,75,0,Inspection of electrical work and,Facilities & Management Services,190000
South Lakeland District Council,http://opendatacommunities.org/id/district-council/south-lakeland,31/03/2015,Development Implementation,Cultural Environmental Regulatory & Planning Services,http://opendatacommunities.org/def/concept/finance/sercop/objective/104,CUMBRIA TOURISM,3027358,04/03/2015,47578,2200,0,Research & Production of the Kendal,Financial Services,200000
South Lakeland District Council,http://opendatacommunities.org/id/district-council/south-lakeland,31/03/2015,Development Implementation,Cultural Environmental Regulatory & Planning Services,http://opendatacommunities.org/def/concept/finance/sercop/objective/104,Lakes Arts Festivals Ltd,8320981,04/03/2015,47579,500,0,Comic Art Tote Bag Contribution,Facilities & Management Services,190000
South Lakeland District Council,http://opendatacommunities.org/id/district-council/south-lakeland,31/03/2015,Lake Wardens,Cultural Environmental Regulatory & Planning Services,http://opendatacommunities.org/def/concept/finance/sercop/objective/104,THOMAS GRAHAM & SONS (IRON & STEEL) LTD,656879,11/03/2015,47580,71.68,0,4 x Bags of S/Steel Screws 4.5mm x 50mm,Arts & Leisure Services,290000
South Lakeland District Council,http://opendatacommunities.org/id/district-council/south-lakeland,31/03/2015,Development Strategy,Housing Services,http://opendatacommunities.org/def/concept/finance/sercop/objective/108,MORGAN HUNT UK LIMITED,4349535,04/03/2015,47581,765.16,0,Housing Advice Manager,Consultancy,150000
South Lakeland District Council,http://opendatacommunities.org/id/district-council/south-lakeland,31/03/2015,ICT Group,Central Services,http://opendatacommunities.org/def/concept/finance/sercop/objective/102,CDR GROUP LTD,5960494,04/03/2015,47582,5104,0,MapInfo Professional Maintenance,Information Communication Technology,270000
South Lakeland District Council,http://opendatacommunities.org/id/district-council/south-lakeland,31/03/2015,Human Resources,Central Services,http://opendatacommunities.org/def/concept/finance/sercop/objective/102,MIDLAND SOFTWARE LTD,1852206,04/03/2015,47583,2915.12,0,iTrent Rental 01/07/2014 to 30/06/2015,Information Communication Technology,270000
South Lakeland District Council,http://opendatacommunities.org/id/district-council/south-lakeland,31/03/2015,Human Resources,Central Services,http://opendatacommunities.org/def/concept/finance/sercop/objective/102,MIDLAND SOFTWARE LTD,1852206,09/03/2015,47584,154.04,0,Maintenance RTI 11 01/07/2014 TO,Information Communication Technology,270000
South Lakeland District Council,http://opendatacommunities.org/id/district-council/south-lakeland,31/03/2015,Revenues and Benefits,Central Services,http://opendatacommunities.org/def/concept/finance/sercop/objective/102,BADENOCH & CLARK,1356186,04/03/2015,47585,533.4,0,Revs and Bens,Consultancy,150000
South Lakeland District Council,http://opendatacommunities.org/id/district-council/south-lakeland,31/03/2015,Kendal Town Hall,Central Services,http://opendatacommunities.org/def/concept/finance/sercop/objective/102,BERENDSEN UK LTD,228604,04/03/2015,47586,64.87,0,Rental and weekly replacement of the 2,Cleaning & Janitorial,130000
South Lakeland District Council,http://opendatacommunities.org/id/district-council/south-lakeland,31/03/2015,Kendal Town Hall,Cultural Environmental Regulatory & Planning Services,http://opendatacommunities.org/def/concept/finance/sercop/objective/104,BERENDSEN UK LTD,228604,04/03/2015,47586,26.08,0,Rental and weekly replacement of the 2,Cleaning & Janitorial,130000
South Lakeland District Council,http://opendatacommunities.org/id/district-council/south-lakeland,31/03/2015,Business Support Community Services,Housing Services,http://opendatacommunities.org/def/concept/finance/sercop/objective/108,BUNZL CLEANING & HYGIENE SUPPLIES,2902454,04/03/2015,47587,99.95,0,Henry HVR200A Vacuum Cleaner,Cleaning & Janitorial,130000
South Lakeland District Council,http://opendatacommunities.org/id/district-council/south-lakeland,31/03/2015,Business Support Community Services,Internal Trading Accounts,,EK MOTOR FACTORS LTD,838524,04/03/2015,47588,47.75,0,Air filter,Vehicle Management,380000
South Lakeland District Council,http://opendatacommunities.org/id/district-council/south-lakeland,31/03/2015,Business Support Community Services,Internal Trading Accounts,,EK MOTOR FACTORS LTD,838524,04/03/2015,47589,78.42,0,Air filter,Vehicle Management,380000
South Lakeland District Council,http://opendatacommunities.org/id/district-council/south-lakeland,31/03/2015,Business Support Community Services,Internal Trading Accounts,,EK MOTOR FACTORS LTD,838524,04/03/2015,47590,9.21,0,Air filter,Vehicle Management,380000
South Lakeland District Council,http://opendatacommunities.org/id/district-council/south-lakeland,31/03/2015,Business Support Community Services,Internal Trading Accounts,,M G D LTD,,04/03/2015,47591,35,0,MOTs 01/04/14 - 31/03/15,Vehicle Management,380000
South Lakeland District Council,http://opendatacommunities.org/id/district-council/south-lakeland,31/03/2015,Business Support Community Services,Internal Trading Accounts,,Masterstaff Limited,2777593,04/03/2015,47592,642.6,0,Consultant,Consultancy,150000
South Lakeland District Council,http://opendatacommunities.org/id/district-council/south-lakeland,31/03/2015,Business Support Community Services,Internal Trading Accounts,,M G D LTD,,04/03/2015,47593,93.62,0,MOTs 01/04/14 - 31/03/15,Vehicle Management,380000
South Lakeland District Council,http://opendatacommunities.org/id/district-council/south-lakeland,31/03/2015,Business Support Community Services,Internal Trading Accounts,,M G D LTD,,04/03/2015,47593,35,0,MOTs 01/04/14 - 31/03/15,Vehicle Management,380000
South Lakeland District Council,http://opendatacommunities.org/id/district-council/south-lakeland,31/03/2015,Development Implementation,Cultural Environmental Regulatory & Planning Services,http://opendatacommunities.org/def/concept/finance/sercop/objective/104,CUMBRIA COUNTY COUNCIL,,04/03/2015,47594,282.2,0,Road Closure for Kendal Christmas,Environmental Services,180000
South Lakeland District Council,http://opendatacommunities.org/id/district-council/south-lakeland,31/03/2015,Policy & Partnerships,Cultural Environmental Regulatory & Planning Services,http://opendatacommunities.org/def/concept/finance/sercop/objective/104,GRANTS- MISCELLANEOUS,,18/03/2015,47595,700,0,"Professional trainers, materials,",Financial Services,200000
South Lakeland District Council,http://opendatacommunities.org/id/district-council/south-lakeland,31/03/2015,Policy & Partnerships,Cultural Environmental Regulatory & Planning Services,http://opendatacommunities.org/def/concept/finance/sercop/objective/104,GRANTS- MISCELLANEOUS,,18/03/2015,47596,655,0,Manufacture and installation of signs,Financial Services,200000
South Lakeland District Council,http://opendatacommunities.org/id/district-council/south-lakeland,31/03/2015,Financial Services,SLDC as Agent,,MAPS LEGAL ASSISTANCE,,04/03/2015,47597,530,0,Motor Legal Expenses Insurance &,Financial Services,200000
South Lakeland District Council,http://opendatacommunities.org/id/district-council/south-lakeland,31/03/2015,Coronation Hall,Cultural Environmental Regulatory & Planning Services,http://opendatacommunities.org/def/concept/finance/sercop/objective/104,ULVERSTON AMATEUR OPERATIC SOCIETY,,04/03/2015,47604,50,0,Stewards for Sandow Clowns on 21 July,Consultancy,150000
South Lakeland District Council,http://opendatacommunities.org/id/district-council/south-lakeland,31/03/2015,Social Enterprise Admin,Highways & Transport Services,http://opendatacommunities.org/def/concept/finance/sercop/objective/107,Masterstaff Limited,2777593,04/03/2015,47606,355.88,0,Cover for cleaner in Westmorland SC car,Cleaning & Janitorial,130000
South Lakeland District Council,http://opendatacommunities.org/id/district-council/south-lakeland,31/03/2015,Democratic Services,Central Services,http://opendatacommunities.org/def/concept/finance/sercop/objective/102,IMPROVEMENT & DEVELOPMENT AGENCY,3675577,04/03/2015,47607,85,0,Pre-night accommodation for Cllr Chris,Education,170000
South Lakeland District Council,http://opendatacommunities.org/id/district-council/south-lakeland,31/03/2015,Business Support Community Services,Internal Trading Accounts,,LAKELAND TRUCKS LTD,2464423,04/03/2015,47608,208.25,0,Repair AdBlue fault,Vehicle Management,380000
South Lakeland District Council,http://opendatacommunities.org/id/district-council/south-lakeland,31/03/2015,Business Support Community Services,Internal Trading Accounts,,J R RICHARDSON LTD,2225792,04/03/2015,47609,369.06,0,Concentrate,Cleaning & Janitorial,130000
South Lakeland District Council,http://opendatacommunities.org/id/district-council/south-lakeland,31/03/2015,Business Support Community Services,Internal Trading Accounts,,RIBBLESDALE AUTO ELECTRICS UNITS LTD,962232,04/03/2015,47610,250,0,Alternator,Vehicle Management,380000
South Lakeland District Council,http://opendatacommunities.org/id/district-council/south-lakeland,31/03/2015,Environment and Housing,Housing,http://opendatacommunities.org/def/concept/finance/sercop/objective/108,ENVIRONMENT & HOUSING GRANTS,,04/03/2015,47612,52733.36,0,"Georgian House, 99 Highgate, Kendal. LA9",Financial Services,200000
South Lakeland District Council,http://opendatacommunities.org/id/district-council/south-lakeland,31/03/2015,Development Strategy,Cultural Environmental Regulatory & Planning Services,http://opendatacommunities.org/def/concept/finance/sercop/objective/104,Grange Now Ltd,8475966,04/03/2015,47613,195,0,Public notice in Grange Now (Lower,Facilities & Management Services,190000
South Lakeland District Council,http://opendatacommunities.org/id/district-council/south-lakeland,31/03/2015,Lake Wardens,Cultural Environmental Regulatory & Planning Services,http://opendatacommunities.org/def/concept/finance/sercop/objective/104,VODAFONE LIMITED,1471587,04/03/2015,47615,80.59,0,Rental for Lake Wardens Emergency,Information Communication Technology,270000
South Lakeland District Council,http://opendatacommunities.org/id/district-council/south-lakeland,31/03/2015,Lake Wardens,Cultural Environmental Regulatory & Planning Services,http://opendatacommunities.org/def/concept/finance/sercop/objective/104,VODAFONE LIMITED,1471587,04/03/2015,47615,25,0,Rental for Lake Wardens Emergency,Information Communication Technology,270000
South Lakeland District Council,http://opendatacommunities.org/id/district-council/south-lakeland,31/03/2015,Business Support Community Services,Internal Trading Accounts,,BRIAN ARMISTEAD LTD T/A SINKFALL RECYCLI,4133280,09/03/2015,47618,643.6,0,Green waste tipping - April (estimated),Environmental Services,180000
South Lakeland District Council,http://opendatacommunities.org/id/district-council/south-lakeland,31/03/2015,Development Implementation,Culture and Related Serv,http://opendatacommunities.org/def/concept/finance/sercop/objective/104,Blackett-Ord Conservation Engineering,,04/03/2015,47620,1000,0,Additional Fees for Castle Dairy,Financial Services,200000
South Lakeland District Council,http://opendatacommunities.org/id/district-council/south-lakeland,31/03/2015,Revenues and Benefits,Central Services,http://opendatacommunities.org/def/concept/finance/sercop/objective/102,VENN GROUP RECRUITMENT SOLUTIONS,,04/03/2015,47627,869.5,0,Consultant,Consultancy,150000
South Lakeland District Council,http://opendatacommunities.org/id/district-council/south-lakeland,31/03/2015,Business Support Community Services,Housing Services,http://opendatacommunities.org/def/concept/finance/sercop/objective/108,Landlord,,04/03/2015,47629,400,0,Monthly rent ,Social Community Care Supplies & Services,410000
South Lakeland District Council,http://opendatacommunities.org/id/district-council/south-lakeland,31/03/2015,Business Support Community Services,Housing Services,http://opendatacommunities.org/def/concept/finance/sercop/objective/108,Landlord,,04/03/2015,47630,400,0,Monthly rent ,Social Community Care Supplies & Services,410000
South Lakeland District Council,http://opendatacommunities.org/id/district-council/south-lakeland,31/03/2015,Business Support Community Services,Housing Services,http://opendatacommunities.org/def/concept/finance/sercop/objective/108,Landlord,,04/03/2015,47631,600,0,Monthly rent ,Social Community Care Supplies & Services,410000
South Lakeland District Council,http://opendatacommunities.org/id/district-council/south-lakeland,31/03/2015,Business Support Community Services,Cultural Environmental Regulatory & Planning Services,http://opendatacommunities.org/def/concept/finance/sercop/objective/104,MILNTHORPE KENNELS & CATTERY,8932302,04/03/2015,47632,2382.33,0,Stray dog kennelling fees April 20014 -,Environmental Services,180000
South Lakeland District Council,http://opendatacommunities.org/id/district-council/south-lakeland,31/03/2015,Business Support Community Services,Internal Trading Accounts,,TECHNIJET LTD,2776601,04/03/2015,47633,164.9,0,Service Kendal pressure washer,Furniture & Soft Furnishings,210000
South Lakeland District Council,http://opendatacommunities.org/id/district-council/south-lakeland,31/03/2015,Business Support Community Services,Internal Trading Accounts,,M G D LTD,,04/03/2015,47634,35,0,MOTs 01/04/14 - 31/03/15,Vehicle Management,380000
South Lakeland District Council,http://opendatacommunities.org/id/district-council/south-lakeland,31/03/2015,Legal Services,Central Services,http://opendatacommunities.org/def/concept/finance/sercop/objective/102,VENN GROUP RECRUITMENT SOLUTIONS,,04/03/2015,47635,494.49,0,Wages from: w/k ending,Consultancy,150000
South Lakeland District Council,http://opendatacommunities.org/id/district-council/south-lakeland,31/03/2015,Legal Services,Central Services,http://opendatacommunities.org/def/concept/finance/sercop/objective/102,VENN GROUP RECRUITMENT SOLUTIONS,,04/03/2015,47636,494.49,0,Wages from: w/k ending,Consultancy,150000
South Lakeland District Council,http://opendatacommunities.org/id/district-council/south-lakeland,31/03/2015,Policy & Partnerships,SLDC as Agent,,SOLON SECURITY LTD,,04/03/2015,47637,65,0,Goods Ordered through CSP for South,Financial Services,200000
South Lakeland District Council,http://opendatacommunities.org/id/district-council/south-lakeland,31/03/2015,Policy & Partnerships,SLDC as Agent,,SOLON SECURITY LTD,,04/03/2015,47638,350,0,Goods Ordered through CSP for South,Financial Services,200000
South Lakeland District Council,http://opendatacommunities.org/id/district-council/south-lakeland,31/03/2015,ICT Group,Central Services,http://opendatacommunities.org/def/concept/finance/sercop/objective/102,PROBRAND LTD,2653446,09/03/2015,47639,177.02,0,TBI364/TANB0700V2  Techair - TANB0700V2,Information Communication Technology,270000
South Lakeland District Council,http://opendatacommunities.org/id/district-council/south-lakeland,31/03/2015,Business Support Community Services,Cultural Environmental Regulatory & Planning Services,http://opendatacommunities.org/def/concept/finance/sercop/objective/104,North Country Leisure,3683103,11/03/2015,47640,98391,0,Leisure Contract 2015/16,Arts & Leisure Services,290000
South Lakeland District Council,http://opendatacommunities.org/id/district-council/south-lakeland,31/03/2015,Business Support Community Services,Housing Services,http://opendatacommunities.org/def/concept/finance/sercop/objective/108,Gailarde Ltd,106026,04/03/2015,47641,85,0,Pair of Curtains,Furniture & Soft Furnishings,210000
South Lakeland District Council,http://opendatacommunities.org/id/district-council/south-lakeland,31/03/2015,Business Support Community Services,Housing Services,http://opendatacommunities.org/def/concept/finance/sercop/objective/108,James Andrews Recruitment Solutions,6834852,09/03/2015,47643,987.5,0,Payment ,Consultancy,150000
South Lakeland District Council,http://opendatacommunities.org/id/district-council/south-lakeland,31/03/2015,Democratic Services,Central Services,http://opendatacommunities.org/def/concept/finance/sercop/objective/102,HEMMING GROUP LTD,490200,04/03/2015,47646,140,0,Subs 15/16,Stationery,340000
South Lakeland District Council,http://opendatacommunities.org/id/district-council/south-lakeland,31/03/2015,Human Resources,Cultural Environmental Regulatory & Planning Services,http://opendatacommunities.org/def/concept/finance/sercop/objective/104,The Stage Media Company Ltd,2316307,18/03/2015,47647,410,0,Advertising for the Coronation Hall,Facilities & Management Services,190000
South Lakeland District Council,http://opendatacommunities.org/id/district-council/south-lakeland,31/03/2015,Social Enterprise Admin,Central Services,http://opendatacommunities.org/def/concept/finance/sercop/objective/102,CUMBRIA COUNTY COUNCIL,,09/03/2015,47648,3273,0,LAND CHARGE SEARCH CHARGES,Financial Services,200000
South Lakeland District Council,http://opendatacommunities.org/id/district-council/south-lakeland,31/03/2015,Social Enterprise Admin,Cultural Environmental Regulatory & Planning Services,http://opendatacommunities.org/def/concept/finance/sercop/objective/104,B & J METALS (SKIP HIRE) LTD,4634318,23/03/2015,47649,2400,0,Grounds waste disposal- Sandylands Road,Environmental Services,180000
South Lakeland District Council,http://opendatacommunities.org/id/district-council/south-lakeland,31/03/2015,Revenues and Benefits,Central Services,http://opendatacommunities.org/def/concept/finance/sercop/objective/102,EDEN DISTRICT COUNCIL,,09/03/2015,47650,2360.34,0,April 2013 - March 2015,Consultancy,150000
South Lakeland District Council,http://opendatacommunities.org/id/district-council/south-lakeland,31/03/2015,Revenues and Benefits,Central Services,http://opendatacommunities.org/def/concept/finance/sercop/objective/102,EDEN DISTRICT COUNCIL,,09/03/2015,47650,1545.83,0,April 2013 - March 2015,Financial Services,200000
South Lakeland District Council,http://opendatacommunities.org/id/district-council/south-lakeland,31/03/2015,Revenues and Benefits,Central Services,http://opendatacommunities.org/def/concept/finance/sercop/objective/102,EDEN DISTRICT COUNCIL,,09/03/2015,47650,1545.83,0,April 2013 - March 2015,Consultancy,150000
South Lakeland District Council,http://opendatacommunities.org/id/district-council/south-lakeland,31/03/2015,Business Support Community Services,Central Services,http://opendatacommunities.org/def/concept/finance/sercop/objective/102,Whiteheads Solicitors Ltd,5954961,09/03/2015,47651,142,0,ASB Training Course - 19th September,Education,170000
South Lakeland District Council,http://opendatacommunities.org/id/district-council/south-lakeland,31/03/2015,Social Enterprise Admin,Cultural Environmental Regulatory & Planning Services,http://opendatacommunities.org/def/concept/finance/sercop/objective/104,THE CROWN ESTATE,,09/03/2015,47652,2,0,Rent - Land fronting Aldringham 10/10/14,Housing Management,250000
South Lakeland District Council,http://opendatacommunities.org/id/district-council/south-lakeland,31/03/2015,Social Enterprise Admin,Cultural Environmental Regulatory & Planning Services,http://opendatacommunities.org/def/concept/finance/sercop/objective/104,THE CROWN ESTATE,,09/03/2015,47653,119.2,0,Birkrigg Common Rent 29/9/2014 -,Housing Management,250000
South Lakeland District Council,http://opendatacommunities.org/id/district-council/south-lakeland,31/03/2015,Human Resources,Central Services,http://opendatacommunities.org/def/concept/finance/sercop/objective/102,FORBES SOLICITORS,,09/03/2015,47655,520,0,Employment appeal,Legal Services,280000
South Lakeland District Council,http://opendatacommunities.org/id/district-council/south-lakeland,31/03/2015,Social Enterprise Admin,Central Services,http://opendatacommunities.org/def/concept/finance/sercop/objective/102,ENVIROFIRST LTD,5999123,23/03/2015,47656,157.5,0,Lowther Street Wheelie Bin Mixed,Environmental Services,180000
South Lakeland District Council,http://opendatacommunities.org/id/district-council/south-lakeland,31/03/2015,Social Enterprise Admin,Highways & Transport Services,http://opendatacommunities.org/def/concept/finance/sercop/objective/107,METRIC GROUP LIMITED,2560839,09/03/2015,47657,693,0,Web hosting and web tariff editor for 66,Vehicle Management,380000
South Lakeland District Council,http://opendatacommunities.org/id/district-council/south-lakeland,31/03/2015,Development Implementation,Cultural Environmental Regulatory & Planning Services,http://opendatacommunities.org/def/concept/finance/sercop/objective/104,CUMBRIA COUNTY COUNCIL,,09/03/2015,47658,6000,0,Conbribution to Kendal Railway Station,Environmental Services,180000
South Lakeland District Council,http://opendatacommunities.org/id/district-council/south-lakeland,31/03/2015,Lake Wardens,Cultural Environmental Regulatory & Planning Services,http://opendatacommunities.org/def/concept/finance/sercop/objective/104,MARINE WAREHOUSE LIMITED,5152483,09/03/2015,47659,194.93,0,15 x Annual Safety Services of Staff,Vehicle Management,380000
South Lakeland District Council,http://opendatacommunities.org/id/district-council/south-lakeland,31/03/2015,Development Strategy,Housing Services,http://opendatacommunities.org/def/concept/finance/sercop/objective/108,MORGAN HUNT UK LIMITED,4349535,09/03/2015,47660,667.48,0,Housing Advice Manager,Consultancy,150000
South Lakeland District Council,http://opendatacommunities.org/id/district-council/south-lakeland,31/03/2015,Development Strategy,Housing Services,http://opendatacommunities.org/def/concept/finance/sercop/objective/108,MORGAN HUNT UK LIMITED,4349535,09/03/2015,47660,667.48,0,Housing Advice Manager,Consultancy,150000
South Lakeland District Council,http://opendatacommunities.org/id/district-council/south-lakeland,31/03/2015,Financial Services,Central Services,http://opendatacommunities.org/def/concept/finance/sercop/objective/102,CIPFA,2376684,09/03/2015,47661,555,0,cipfa insurance network level 2,Financial Services,200000
South Lakeland District Council,http://opendatacommunities.org/id/district-council/south-lakeland,31/03/2015,Development Implementation,Culture and Related Serv,http://opendatacommunities.org/def/concept/finance/sercop/objective/104,Blackett-Ord Conservation Engineering,,09/03/2015,47662,1000,0,Tender & Management Works for Castle,Financial Services,200000
South Lakeland District Council,http://opendatacommunities.org/id/district-council/south-lakeland,31/03/2015,Human Resources,Central Services,http://opendatacommunities.org/def/concept/finance/sercop/objective/102,REDACTIVE MEDIA SALES LTD,3220190,18/03/2015,47664,700,0,Advert for  Procurement and Contracts,Consultancy,150000
South Lakeland District Council,http://opendatacommunities.org/id/district-council/south-lakeland,31/03/2015,Policy & Partnerships,Cultural Environmental Regulatory & Planning Services,http://opendatacommunities.org/def/concept/finance/sercop/objective/104,NEWSQUEST (NORTH WEST) LTD,3102566,18/03/2015,47665,149,0,Notice that will appear,Facilities & Management Services,190000
South Lakeland District Council,http://opendatacommunities.org/id/district-council/south-lakeland,31/03/2015,Business Support Community Services,Internal Trading Accounts,,LAKELAND COMMERCIALS LTD,2719162,11/03/2015,47666,16.5,0,Steam clean,Vehicle Management,380000
South Lakeland District Council,http://opendatacommunities.org/id/district-council/south-lakeland,31/03/2015,Business Support Community Services,Internal Trading Accounts,,LAKELAND COMMERCIALS LTD,2719162,11/03/2015,47666,39,0,Steam clean,Vehicle Management,380000
South Lakeland District Council,http://opendatacommunities.org/id/district-council/south-lakeland,31/03/2015,Social Enterprise Admin,Cultural Environmental Regulatory & Planning Services,http://opendatacommunities.org/def/concept/finance/sercop/objective/104,NEWSQUEST (NORTH WEST) LTD,3102566,09/03/2015,47667,95,0,PUBLIC NOTICES FOR PLANNIG DEPARTMENT.,Facilities & Management Services,190000
South Lakeland District Council,http://opendatacommunities.org/id/district-council/south-lakeland,31/03/2015,Development Implementation,Cultural Environmental Regulatory & Planning Services,http://opendatacommunities.org/def/concept/finance/sercop/objective/104,NEWSQUEST (NORTH WEST) LTD,3102566,09/03/2015,47668,203,0,Road Closure Advert for Kendal Festival,Environmental Services,180000
South Lakeland District Council,http://opendatacommunities.org/id/district-council/south-lakeland,31/03/2015,Legal Services,Central Services,http://opendatacommunities.org/def/concept/finance/sercop/objective/102,NEWSQUEST (NORTH WEST) LTD,3102566,09/03/2015,47669,149,0,Advert to appear 26.02.15 ew:   IRP,Facilities & Management Services,190000
South Lakeland District Council,http://opendatacommunities.org/id/district-council/south-lakeland,31/03/2015,Development Implementation,Culture and Related Serv,http://opendatacommunities.org/def/concept/finance/sercop/objective/104,Maysand Ltd,2912226,09/03/2015,47670,19199.49,0,"Castle Dairy Works, Kendal",Financial Services,200000
South Lakeland District Council,http://opendatacommunities.org/id/district-council/south-lakeland,31/03/2015,Development Implementation,Culture and Related Serv,http://opendatacommunities.org/def/concept/finance/sercop/objective/104,Greenlane Archaeology,5580819,09/03/2015,47671,640,0,Castle Dairy Storyboard,Financial Services,200000
South Lakeland District Council,http://opendatacommunities.org/id/district-council/south-lakeland,31/03/2015,Development Implementation,Culture and Related Serv,http://opendatacommunities.org/def/concept/finance/sercop/objective/104,SUN SIGNS,4413045,11/03/2015,47673,251.78,0,Castle Dairy Roofing Works Signage,Financial Services,200000
South Lakeland District Council,http://opendatacommunities.org/id/district-council/south-lakeland,31/03/2015,Financial Services,Central Services,http://opendatacommunities.org/def/concept/finance/sercop/objective/102,GREATER MANCHESTER PENSION FUND,,09/03/2015,47678,35484.95,0,Rechargeable Pensions not recovered,Financial Services,200000
South Lakeland District Council,http://opendatacommunities.org/id/district-council/south-lakeland,31/03/2015,Business Support Community Services,Cultural Environmental Regulatory & Planning Services,http://opendatacommunities.org/def/concept/finance/sercop/objective/104,ALLSTAR BUSINESS SOLUTIONS LTD (NCR),2631112,01/03/2015,47679,41.91,0,Fuel - 9 February 2015 - Private Water,Environmental Services,180000
South Lakeland District Council,http://opendatacommunities.org/id/district-council/south-lakeland,31/03/2015,Business Support Community Services,Cultural Environmental Regulatory & Planning Services,http://opendatacommunities.org/def/concept/finance/sercop/objective/104,ALLSTAR BUSINESS SOLUTIONS LTD (NCR),2631112,01/03/2015,47680,34.83,0,Fuel - 25 February 2015 - Private Water,Environmental Services,180000
South Lakeland District Council,http://opendatacommunities.org/id/district-council/south-lakeland,31/03/2015,Social Enterprise Admin,Cultural Environmental Regulatory & Planning Services,http://opendatacommunities.org/def/concept/finance/sercop/objective/104,Matchtech,2526418,09/03/2015,47682,1068.19,0,TO SUPPLY DEVELOPMENT CONTROL TEAM,Consultancy,150000
South Lakeland District Council,http://opendatacommunities.org/id/district-council/south-lakeland,31/03/2015,Revenues and Benefits,Central Services,http://opendatacommunities.org/def/concept/finance/sercop/objective/102,HBINFO LTD,5779046,09/03/2015,47687,355,0,Subscription 2015 - 2016,Financial Services,200000
South Lakeland District Council,http://opendatacommunities.org/id/district-council/south-lakeland,31/03/2015,Revenues and Benefits,Central Services,http://opendatacommunities.org/def/concept/finance/sercop/objective/102,MERITEC LTD,3224622,09/03/2015,47688,279,0,RAB Processing Contract and Agency,Consultancy,150000
South Lakeland District Council,http://opendatacommunities.org/id/district-council/south-lakeland,31/03/2015,Revenues and Benefits,Central Services,http://opendatacommunities.org/def/concept/finance/sercop/objective/102,PITNEY BOWES LTD,182037,18/03/2015,47689,517.5,0,2014-15 Stationery & office supplies,Stationery,340000
South Lakeland District Council,http://opendatacommunities.org/id/district-council/south-lakeland,31/03/2015,Revenues and Benefits,Central Services,http://opendatacommunities.org/def/concept/finance/sercop/objective/102,PITNEY BOWES LTD,182037,18/03/2015,47690,1100,0,2014-15 Stationery & office supplies,Stationery,340000
South Lakeland District Council,http://opendatacommunities.org/id/district-council/south-lakeland,31/03/2015,Revenues and Benefits,SLDC as Agent,,ROYAL MAIL GROUP PLC,,09/03/2015,47691,1432.46,0,2014-15  Postal Charges a/c 0198123013,Financial Services,200000
South Lakeland District Council,http://opendatacommunities.org/id/district-council/south-lakeland,31/03/2015,Revenues and Benefits,Central Services,http://opendatacommunities.org/def/concept/finance/sercop/objective/102,ROYAL MAIL GROUP PLC,,09/03/2015,47692,48.13,0,2014-15  Postal Charges a/c 0055114000,Mail Services,300000
South Lakeland District Council,http://opendatacommunities.org/id/district-council/south-lakeland,31/03/2015,Social Enterprise Admin,SLDC as Agent,,PAY BY PHONE (PAYPOINT),,09/03/2015,47693,112.38,0,Pay-by-phone charges from 1 April 2014,Financial Services,200000
South Lakeland District Council,http://opendatacommunities.org/id/district-council/south-lakeland,31/03/2015,Lake Wardens,Cultural Environmental Regulatory & Planning Services,http://opendatacommunities.org/def/concept/finance/sercop/objective/104,AUTOPARTS (CUMBRIA) LTD,2579204,09/03/2015,47694,4.41,0,3 x Framm C1191 Filters,Vehicle Management,380000
South Lakeland District Council,http://opendatacommunities.org/id/district-council/south-lakeland,31/03/2015,Coronation Hall,External Trading Accounts,,Morson International,,18/03/2015,47695,119.28,0,Ulverston Market Hall cleaner from April,Consultancy,150000
South Lakeland District Council,http://opendatacommunities.org/id/district-council/south-lakeland,31/03/2015,Kendal Town Hall,Cultural Environmental Regulatory & Planning Services,http://opendatacommunities.org/def/concept/finance/sercop/objective/104,THE LAUNDRY SHOP LTD,5421366,09/03/2015,47696,16.25,0,Laundry service charges for cleaning the,Cleaning & Janitorial,130000
South Lakeland District Council,http://opendatacommunities.org/id/district-council/south-lakeland,31/03/2015,ICT Group,Central Services,http://opendatacommunities.org/def/concept/finance/sercop/objective/102,Forge Training,,09/03/2015,47697,1080,0,1 day onsite Sharepoint training,Consultancy,150000
South Lakeland District Council,http://opendatacommunities.org/id/district-council/south-lakeland,31/03/2015,Social Enterprise Admin,Cultural Environmental Regulatory & Planning Services,http://opendatacommunities.org/def/concept/finance/sercop/objective/104,CONTINENTAL LANDSCAPES LTD,2108452,18/03/2015,47698,250,0,Remove fallen tree Park Rd Gardens,Environmental Services,180000
South Lakeland District Council,http://opendatacommunities.org/id/district-council/south-lakeland,31/03/2015,Social Enterprise Admin,Highways & Transport Services,http://opendatacommunities.org/def/concept/finance/sercop/objective/107,CONTINENTAL LANDSCAPES LTD,2108452,09/03/2015,47699,11.89,0,Grounds maintenance 14-15,Horticultural,240000
South Lakeland District Council,http://opendatacommunities.org/id/district-council/south-lakeland,31/03/2015,Social Enterprise Admin,Highways & Transport Services,http://opendatacommunities.org/def/concept/finance/sercop/objective/107,CONTINENTAL LANDSCAPES LTD,2108452,09/03/2015,47699,11.89,0,Grounds maintenance 14-15,Horticultural,240000
South Lakeland District Council,http://opendatacommunities.org/id/district-council/south-lakeland,31/03/2015,Social Enterprise Admin,Highways & Transport Services,http://opendatacommunities.org/def/concept/finance/sercop/objective/107,CONTINENTAL LANDSCAPES LTD,2108452,09/03/2015,47699,1.19,0,Grounds maintenance 14-15,Horticultural,240000
South Lakeland District Council,http://opendatacommunities.org/id/district-council/south-lakeland,31/03/2015,Social Enterprise Admin,Highways & Transport Services,http://opendatacommunities.org/def/concept/finance/sercop/objective/107,CONTINENTAL LANDSCAPES LTD,2108452,09/03/2015,47699,11.89,0,Grounds maintenance 14-15,Horticultural,240000
South Lakeland District Council,http://opendatacommunities.org/id/district-council/south-lakeland,31/03/2015,Social Enterprise Admin,Highways & Transport Services,http://opendatacommunities.org/def/concept/finance/sercop/objective/107,CONTINENTAL LANDSCAPES LTD,2108452,09/03/2015,47699,11.89,0,Grounds maintenance 14-15,Horticultural,240000
South Lakeland District Council,http://opendatacommunities.org/id/district-council/south-lakeland,31/03/2015,Social Enterprise Admin,Highways & Transport Services,http://opendatacommunities.org/def/concept/finance/sercop/objective/107,CONTINENTAL LANDSCAPES LTD,2108452,09/03/2015,47699,11.89,0,Grounds maintenance 14-15,Horticultural,240000
South Lakeland District Council,http://opendatacommunities.org/id/district-council/south-lakeland,31/03/2015,Social Enterprise Admin,Highways & Transport Services,http://opendatacommunities.org/def/concept/finance/sercop/objective/107,CONTINENTAL LANDSCAPES LTD,2108452,09/03/2015,47699,35.67,0,Grounds maintenance 14-15,Horticultural,240000
South Lakeland District Council,http://opendatacommunities.org/id/district-council/south-lakeland,31/03/2015,Social Enterprise Admin,Highways & Transport Services,http://opendatacommunities.org/def/concept/finance/sercop/objective/107,CONTINENTAL LANDSCAPES LTD,2108452,09/03/2015,47699,237.8,0,Grounds maintenance 14-15,Horticultural,240000
South Lakeland District Council,http://opendatacommunities.org/id/district-council/south-lakeland,31/03/2015,Social Enterprise Admin,Highways & Transport Services,http://opendatacommunities.org/def/concept/finance/sercop/objective/107,CONTINENTAL LANDSCAPES LTD,2108452,09/03/2015,47699,148.62,0,Grounds maintenance 14-15,Horticultural,240000
South Lakeland District Council,http://opendatacommunities.org/id/district-council/south-lakeland,31/03/2015,Social Enterprise Admin,Highways & Transport Services,http://opendatacommunities.org/def/concept/finance/sercop/objective/107,CONTINENTAL LANDSCAPES LTD,2108452,09/03/2015,47699,5.94,0,Grounds maintenance 14-15,Horticultural,240000
South Lakeland District Council,http://opendatacommunities.org/id/district-council/south-lakeland,31/03/2015,Social Enterprise Admin,Highways & Transport Services,http://opendatacommunities.org/def/concept/finance/sercop/objective/107,CONTINENTAL LANDSCAPES LTD,2108452,09/03/2015,47699,59.45,0,Grounds maintenance 14-15,Horticultural,240000
South Lakeland District Council,http://opendatacommunities.org/id/district-council/south-lakeland,31/03/2015,Social Enterprise Admin,Highways & Transport Services,http://opendatacommunities.org/def/concept/finance/sercop/objective/107,CONTINENTAL LANDSCAPES LTD,2108452,09/03/2015,47699,59.45,0,Grounds maintenance 14-15,Horticultural,240000
South Lakeland District Council,http://opendatacommunities.org/id/district-council/south-lakeland,31/03/2015,Social Enterprise Admin,Highways & Transport Services,http://opendatacommunities.org/def/concept/finance/sercop/objective/107,CONTINENTAL LANDSCAPES LTD,2108452,09/03/2015,47699,118.9,0,Grounds maintenance 14-15,Horticultural,240000
South Lakeland District Council,http://opendatacommunities.org/id/district-council/south-lakeland,31/03/2015,Social Enterprise Admin,Highways & Transport Services,http://opendatacommunities.org/def/concept/finance/sercop/objective/107,CONTINENTAL LANDSCAPES LTD,2108452,09/03/2015,47699,47.56,0,Grounds maintenance 14-15,Horticultural,240000
South Lakeland District Council,http://opendatacommunities.org/id/district-council/south-lakeland,31/03/2015,Social Enterprise Admin,Highways & Transport Services,http://opendatacommunities.org/def/concept/finance/sercop/objective/107,CONTINENTAL LANDSCAPES LTD,2108452,09/03/2015,47699,5.94,0,Grounds maintenance 14-15,Horticultural,240000
South Lakeland District Council,http://opendatacommunities.org/id/district-council/south-lakeland,31/03/2015,Social Enterprise Admin,Highways & Transport Services,http://opendatacommunities.org/def/concept/finance/sercop/objective/107,CONTINENTAL LANDSCAPES LTD,2108452,09/03/2015,47699,5.94,0,Grounds maintenance 14-15,Horticultural,240000
South Lakeland District Council,http://opendatacommunities.org/id/district-council/south-lakeland,31/03/2015,Social Enterprise Admin,Highways & Transport Services,http://opendatacommunities.org/def/concept/finance/sercop/objective/107,CONTINENTAL LANDSCAPES LTD,2108452,09/03/2015,47699,2.97,0,Grounds maintenance 14-15,Horticultural,240000
South Lakeland District Council,http://opendatacommunities.org/id/district-council/south-lakeland,31/03/2015,Social Enterprise Admin,Highways & Transport Services,http://opendatacommunities.org/def/concept/finance/sercop/objective/107,CONTINENTAL LANDSCAPES LTD,2108452,09/03/2015,47699,59.45,0,Grounds maintenance 14-15,Horticultural,240000
South Lakeland District Council,http://opendatacommunities.org/id/district-council/south-lakeland,31/03/2015,Social Enterprise Admin,Highways & Transport Services,http://opendatacommunities.org/def/concept/finance/sercop/objective/107,CONTINENTAL LANDSCAPES LTD,2108452,09/03/2015,47699,53.5,0,Grounds maintenance 14-15,Horticultural,240000
South Lakeland District Council,http://opendatacommunities.org/id/district-council/south-lakeland,31/03/2015,Social Enterprise Admin,Highways & Transport Services,http://opendatacommunities.org/def/concept/finance/sercop/objective/107,CONTINENTAL LANDSCAPES LTD,2108452,09/03/2015,47699,65.39,0,Grounds maintenance 14-15,Horticultural,240000
South Lakeland District Council,http://opendatacommunities.org/id/district-council/south-lakeland,31/03/2015,Social Enterprise Admin,Highways & Transport Services,http://opendatacommunities.org/def/concept/finance/sercop/objective/107,CONTINENTAL LANDSCAPES LTD,2108452,09/03/2015,47699,124.84,0,Grounds maintenance 14-15,Horticultural,240000
South Lakeland District Council,http://opendatacommunities.org/id/district-council/south-lakeland,31/03/2015,Social Enterprise Admin,Highways & Transport Services,http://opendatacommunities.org/def/concept/finance/sercop/objective/107,CONTINENTAL LANDSCAPES LTD,2108452,09/03/2015,47699,118.9,0,Grounds maintenance 14-15,Horticultural,240000
South Lakeland District Council,http://opendatacommunities.org/id/district-council/south-lakeland,31/03/2015,Social Enterprise Admin,Highways & Transport Services,http://opendatacommunities.org/def/concept/finance/sercop/objective/107,CONTINENTAL LANDSCAPES LTD,2108452,09/03/2015,47699,11.89,0,Grounds maintenance 14-15,Horticultural,240000
South Lakeland District Council,http://opendatacommunities.org/id/district-council/south-lakeland,31/03/2015,Social Enterprise Admin,Highways & Transport Services,http://opendatacommunities.org/def/concept/finance/sercop/objective/107,CONTINENTAL LANDSCAPES LTD,2108452,09/03/2015,47699,11.89,0,Grounds maintenance 14-15,Horticultural,240000
South Lakeland District Council,http://opendatacommunities.org/id/district-council/south-lakeland,31/03/2015,Social Enterprise Admin,Highways & Transport Services,http://opendatacommunities.org/def/concept/finance/sercop/objective/107,CONTINENTAL LANDSCAPES LTD,2108452,09/03/2015,47699,35.67,0,Grounds maintenance 14-15,Horticultural,240000
South Lakeland District Council,http://opendatacommunities.org/id/district-council/south-lakeland,31/03/2015,Social Enterprise Admin,Highways & Transport Services,http://opendatacommunities.org/def/concept/finance/sercop/objective/107,CONTINENTAL LANDSCAPES LTD,2108452,09/03/2015,47699,59.45,0,Grounds maintenance 14-15,Horticultural,240000
South Lakeland District Council,http://opendatacommunities.org/id/district-council/south-lakeland,31/03/2015,Social Enterprise Admin,Highways & Transport Services,http://opendatacommunities.org/def/concept/finance/sercop/objective/107,CONTINENTAL LANDSCAPES LTD,2108452,09/03/2015,47699,105.76,0,Grounds maintenance 14-15,Horticultural,240000
South Lakeland District Council,http://opendatacommunities.org/id/district-council/south-lakeland,31/03/2015,Social Enterprise Admin,Highways & Transport Services,http://opendatacommunities.org/def/concept/finance/sercop/objective/107,CONTINENTAL LANDSCAPES LTD,2108452,09/03/2015,47699,118.9,0,Grounds maintenance 14-15,Horticultural,240000
South Lakeland District Council,http://opendatacommunities.org/id/district-council/south-lakeland,31/03/2015,Social Enterprise Admin,Highways & Transport Services,http://opendatacommunities.org/def/concept/finance/sercop/objective/107,CONTINENTAL LANDSCAPES LTD,2108452,09/03/2015,47699,219.96,0,Grounds maintenance 14-15,Horticultural,240000
South Lakeland District Council,http://opendatacommunities.org/id/district-council/south-lakeland,31/03/2015,Social Enterprise Admin,Highways & Transport Services,http://opendatacommunities.org/def/concept/finance/sercop/objective/107,CONTINENTAL LANDSCAPES LTD,2108452,09/03/2015,47699,118.9,0,Grounds maintenance 14-15,Horticultural,240000
South Lakeland District Council,http://opendatacommunities.org/id/district-council/south-lakeland,31/03/2015,Social Enterprise Admin,Highways & Transport Services,http://opendatacommunities.org/def/concept/finance/sercop/objective/107,CONTINENTAL LANDSCAPES LTD,2108452,09/03/2015,47699,178.35,0,Grounds maintenance 14-15,Horticultural,240000
South Lakeland District Council,http://opendatacommunities.org/id/district-council/south-lakeland,31/03/2015,Social Enterprise Admin,Cultural Environmental Regulatory & Planning Services,http://opendatacommunities.org/def/concept/finance/sercop/objective/104,CONTINENTAL LANDSCAPES LTD,2108452,09/03/2015,47699,9511.8,0,Grounds maintenance 14-15,Horticultural,240000
South Lakeland District Council,http://opendatacommunities.org/id/district-council/south-lakeland,31/03/2015,Social Enterprise Admin,Cultural Environmental Regulatory & Planning Services,http://opendatacommunities.org/def/concept/finance/sercop/objective/104,CONTINENTAL LANDSCAPES LTD,2108452,09/03/2015,47699,1376.6,0,Grounds maintenance 14-15,Cemetery & Crematorium,120000
South Lakeland District Council,http://opendatacommunities.org/id/district-council/south-lakeland,31/03/2015,Social Enterprise Admin,Cultural Environmental Regulatory & Planning Services,http://opendatacommunities.org/def/concept/finance/sercop/objective/104,CONTINENTAL LANDSCAPES LTD,2108452,09/03/2015,47699,23.78,0,Grounds maintenance 14-15,Horticultural,240000
South Lakeland District Council,http://opendatacommunities.org/id/district-council/south-lakeland,31/03/2015,Social Enterprise Admin,Cultural Environmental Regulatory & Planning Services,http://opendatacommunities.org/def/concept/finance/sercop/objective/104,CONTINENTAL LANDSCAPES LTD,2108452,09/03/2015,47699,45478.3,0,Grounds maintenance 14-15,Horticultural,240000
South Lakeland District Council,http://opendatacommunities.org/id/district-council/south-lakeland,31/03/2015,Social Enterprise Admin,Cultural Environmental Regulatory & Planning Services,http://opendatacommunities.org/def/concept/finance/sercop/objective/104,CONTINENTAL LANDSCAPES LTD,2108452,09/03/2015,47699,2259.05,0,Grounds maintenance 14-15,Horticultural,240000
South Lakeland District Council,http://opendatacommunities.org/id/district-council/south-lakeland,31/03/2015,Social Enterprise Admin,External Trading Accounts,,CONTINENTAL LANDSCAPES LTD,2108452,09/03/2015,47699,104.04,0,Grounds maintenance 14-15,Horticultural,240000
South Lakeland District Council,http://opendatacommunities.org/id/district-council/south-lakeland,31/03/2015,Social Enterprise Admin,Highways & Transport Services,http://opendatacommunities.org/def/concept/finance/sercop/objective/107,CREDIT CALL LTD (NCR),,01/03/2015,47700,442.92,0,Credit Call Commission 2014/15,Financial Services,200000
South Lakeland District Council,http://opendatacommunities.org/id/district-council/south-lakeland,31/03/2015,Development Implementation,External Trading Accounts,,"Department of Bus, Innovation & Skills",,09/03/2015,47701,12980.73,0,"Rent for Foxfield Industrial Estate,",Housing Management,250000
South Lakeland District Council,http://opendatacommunities.org/id/district-council/south-lakeland,31/03/2015,Development Implementation,Planning and Development,,NPS GROUP LTD,6614601,09/03/2015,47702,675,0,Conditions Survey & Asbestos Survey for,Financial Services,200000
South Lakeland District Council,http://opendatacommunities.org/id/district-council/south-lakeland,31/03/2015,Social Enterprise Admin,Cultural Environmental Regulatory & Planning Services,http://opendatacommunities.org/def/concept/finance/sercop/objective/104,WINDERMERE TOWN COUNCIL,,09/03/2015,47703,1478.74,0,For contribution from SLDC for water use,Environmental Services,180000
South Lakeland District Council,http://opendatacommunities.org/id/district-council/south-lakeland,31/03/2015,Legal Services,Central Services,http://opendatacommunities.org/def/concept/finance/sercop/objective/102,Graham Peart,,09/03/2015,47704,779.62,0,Fees relating to w/k ending 08/03/15,Consultancy,150000
South Lakeland District Council,http://opendatacommunities.org/id/district-council/south-lakeland,31/03/2015,Business Support Community Services,Cultural Environmental Regulatory & Planning Services,http://opendatacommunities.org/def/concept/finance/sercop/objective/104,HORIBA UK LTD,2242542,09/03/2015,47705,75.66,0,Item omitted from repair invoice on,Environmental Services,180000
South Lakeland District Council,http://opendatacommunities.org/id/district-council/south-lakeland,31/03/2015,Business Support Community Services,Internal Trading Accounts,,H WICKS (LINDAL) LTD,754590,11/03/2015,47708,1712,0,Paper handling - February (estimated),Environmental Services,180000
South Lakeland District Council,http://opendatacommunities.org/id/district-council/south-lakeland,31/03/2015,Business Support Community Services,Internal Trading Accounts,,AINSWORTH'S GARAGE,,18/03/2015,47709,212.5,0,Repair puncture,Vehicle Management,380000
South Lakeland District Council,http://opendatacommunities.org/id/district-council/south-lakeland,31/03/2015,Business Support Community Services,Internal Trading Accounts,,AINSWORTH'S GARAGE,,11/03/2015,47710,23,0,Repair puncture,Vehicle Management,380000
South Lakeland District Council,http://opendatacommunities.org/id/district-council/south-lakeland,31/03/2015,Business Support Community Services,Internal Trading Accounts,,COMPASS COMPONENTS,,11/03/2015,47711,160.3,0,Consumables 01/04/14 - 31/03/15,Cleaning & Janitorial,130000
South Lakeland District Council,http://opendatacommunities.org/id/district-council/south-lakeland,31/03/2015,Environment and Housing,Housing,http://opendatacommunities.org/def/concept/finance/sercop/objective/108,ENVIRONMENT & HOUSING GRANTS,,09/03/2015,47713,7917,0,First and Second Floors at 45,Financial Services,200000
South Lakeland District Council,http://opendatacommunities.org/id/district-council/south-lakeland,31/03/2015,Social Enterprise Admin,Cultural Environmental Regulatory & Planning Services,http://opendatacommunities.org/def/concept/finance/sercop/objective/104,GRANGE OVER SANDS CIVIC SOCIETY,,09/03/2015,47714,1499.72,0,Maintain Promenade bends & orchard at,Financial Services,200000
South Lakeland District Council,http://opendatacommunities.org/id/district-council/south-lakeland,31/03/2015,Development Implementation,Cultural Environmental Regulatory & Planning Services,http://opendatacommunities.org/def/concept/finance/sercop/objective/104,SKV Communications,3495502,09/03/2015,47715,700,0,Provision of PR/Marketing Support for,Environmental Services,180000
South Lakeland District Council,http://opendatacommunities.org/id/district-council/south-lakeland,31/03/2015,Development Implementation,Cultural Environmental Regulatory & Planning Services,http://opendatacommunities.org/def/concept/finance/sercop/objective/104,SKV Communications,3495502,09/03/2015,47716,2200,0,Provision of PR/Marketing Support for,Environmental Services,180000
South Lakeland District Council,http://opendatacommunities.org/id/district-council/south-lakeland,31/03/2015,Development Implementation,Planning and Development,,SEDBERGH PARISH COUNCIL,,09/03/2015,47717,500,0,EPF Grant - Replacement Sedbergh Entry,Financial Services,200000
South Lakeland District Council,http://opendatacommunities.org/id/district-council/south-lakeland,31/03/2015,Development Implementation,Planning and Development,,CUMBRIA COUNTY COUNCIL,,09/03/2015,47718,2500,0,EPF Grant for Furness Line Community,Financial Services,200000
South Lakeland District Council,http://opendatacommunities.org/id/district-council/south-lakeland,31/03/2015,Social Enterprise Admin,Highways & Transport Services,http://opendatacommunities.org/def/concept/finance/sercop/objective/107,ALLSTAR BUSINESS SOLUTIONS LTD (NCR),2631112,01/03/2015,47719,182.09,0,Fuel for car parks' vehicles starting 1,Utilities,370000
South Lakeland District Council,http://opendatacommunities.org/id/district-council/south-lakeland,31/03/2015,Social Enterprise Admin,Cultural Environmental Regulatory & Planning Services,http://opendatacommunities.org/def/concept/finance/sercop/objective/104,ALLSTAR BUSINESS SOLUTIONS LTD (NCR),2631112,01/03/2015,47719,96.62,0,Fuel for car parks' vehicles starting 1,Utilities,370000
South Lakeland District Council,http://opendatacommunities.org/id/district-council/south-lakeland,31/03/2015,Social Enterprise Admin,Cultural Environmental Regulatory & Planning Services,http://opendatacommunities.org/def/concept/finance/sercop/objective/104,ALLSTAR BUSINESS SOLUTIONS LTD (NCR),2631112,01/03/2015,47720,124.59,0,Additional Fuel for Parks vehicle PX63,Utilities,370000
South Lakeland District Council,http://opendatacommunities.org/id/district-council/south-lakeland,31/03/2015,Social Enterprise Admin,Highways & Transport Services,http://opendatacommunities.org/def/concept/finance/sercop/objective/107,ALLSTAR BUSINESS SOLUTIONS LTD (NCR),2631112,01/03/2015,47721,239.36,0,Fuel for car parks' vehicles starting 1,Utilities,370000
South Lakeland District Council,http://opendatacommunities.org/id/district-council/south-lakeland,31/03/2015,Social Enterprise Admin,Cultural Environmental Regulatory & Planning Services,http://opendatacommunities.org/def/concept/finance/sercop/objective/104,ALLSTAR BUSINESS SOLUTIONS LTD (NCR),2631112,01/03/2015,47721,73.01,0,Fuel for car parks' vehicles starting 1,Utilities,370000
South Lakeland District Council,http://opendatacommunities.org/id/district-council/south-lakeland,31/03/2015,Social Enterprise Admin,Cultural Environmental Regulatory & Planning Services,http://opendatacommunities.org/def/concept/finance/sercop/objective/104,ALLSTAR BUSINESS SOLUTIONS LTD (NCR),2631112,01/03/2015,47722,51.67,0,Additional Fuel for Parks vehicle PX63,Utilities,370000
South Lakeland District Council,http://opendatacommunities.org/id/district-council/south-lakeland,31/03/2015,Environment and Housing,Housing,http://opendatacommunities.org/def/concept/finance/sercop/objective/108,ENVIRONMENT & HOUSING GRANTS,,11/03/2015,47723,12000,0,"29 Burton Park, Burton-in-Kendal, LA6",Financial Services,200000
South Lakeland District Council,http://opendatacommunities.org/id/district-council/south-lakeland,31/03/2015,Business Support Community Services,Housing Services,http://opendatacommunities.org/def/concept/finance/sercop/objective/108,Phillip Coates,,09/03/2015,47724,600,0,Interior redecoration ,Social Community Care Supplies & Services,410000
South Lakeland District Council,http://opendatacommunities.org/id/district-council/south-lakeland,31/03/2015,Business Support Community Services,Housing Services,http://opendatacommunities.org/def/concept/finance/sercop/objective/108,Mint Homes,8345036,09/03/2015,47725,495,0,Deposit ,Social Community Care Supplies & Services,410000
South Lakeland District Council,http://opendatacommunities.org/id/district-council/south-lakeland,31/03/2015,Policy & Partnerships,Central Services,http://opendatacommunities.org/def/concept/finance/sercop/objective/102,Cumbria Development Education Centre,,11/03/2015,47726,500,0,CDEC time spent on submitting a heritage,Consultancy,150000
South Lakeland District Council,http://opendatacommunities.org/id/district-council/south-lakeland,31/03/2015,ICT Group,Central Services,http://opendatacommunities.org/def/concept/finance/sercop/objective/102,PROBRAND LTD,2653446,18/03/2015,47727,179.6,0,EDR620/EB220H     Edge 10 - EB220h,Information Communication Technology,270000
South Lakeland District Council,http://opendatacommunities.org/id/district-council/south-lakeland,31/03/2015,ICT Group,Central Services,http://opendatacommunities.org/def/concept/finance/sercop/objective/102,PROBRAND LTD,2653446,18/03/2015,47727,179.6,0,EDR620/EB220H     Edge 10 - EB220h,Information Communication Technology,270000
South Lakeland District Council,http://opendatacommunities.org/id/district-council/south-lakeland,31/03/2015,Policy & Partnerships,Cultural Environmental Regulatory & Planning Services,http://opendatacommunities.org/def/concept/finance/sercop/objective/104,Parish of Christ the King - Milnthorpe,,18/03/2015,47728,30,0,South Westmorland LAP - 2 March. 30,Arts & Leisure Services,290000
South Lakeland District Council,http://opendatacommunities.org/id/district-council/south-lakeland,31/03/2015,Policy & Partnerships,Cultural Environmental Regulatory & Planning Services,http://opendatacommunities.org/def/concept/finance/sercop/objective/104,KENDAL TOWN COUNCIL,,18/03/2015,47729,286,0,Sepulchre railings repainting,Financial Services,200000
South Lakeland District Council,http://opendatacommunities.org/id/district-council/south-lakeland,31/03/2015,Business Support Community Services,Internal Trading Accounts,,ALLSTAR BUSINESS SOLUTIONS LTD (NCR),2631112,01/03/2015,47730,3535.04,0,Fuel to 15/02,Utilities,370000
South Lakeland District Council,http://opendatacommunities.org/id/district-council/south-lakeland,31/03/2015,Business Support Community Services,Internal Trading Accounts,,ALLSTAR BUSINESS SOLUTIONS LTD (NCR),2631112,01/03/2015,47730,52.92,0,Fuel to 15/02,Utilities,370000
South Lakeland District Council,http://opendatacommunities.org/id/district-council/south-lakeland,31/03/2015,Business Support Community Services,Internal Trading Accounts,,ALLSTAR BUSINESS SOLUTIONS LTD (NCR),2631112,01/03/2015,47730,11040.96,0,Fuel to 15/02,Utilities,370000
South Lakeland District Council,http://opendatacommunities.org/id/district-council/south-lakeland,31/03/2015,Business Support Community Services,Housing Services,http://opendatacommunities.org/def/concept/finance/sercop/objective/108,ADECCO UK LIMITED,593232,18/03/2015,47731,102.7,0,Cleaner for Town View Fields,Consultancy,150000
South Lakeland District Council,http://opendatacommunities.org/id/district-council/south-lakeland,31/03/2015,Policy & Partnerships,Cultural Environmental Regulatory & Planning Services,http://opendatacommunities.org/def/concept/finance/sercop/objective/104,GRANTS- MISCELLANEOUS,,18/03/2015,47732,450,0,The funding will provide professional,Financial Services,200000
South Lakeland District Council,http://opendatacommunities.org/id/district-council/south-lakeland,31/03/2015,Business Support Community Services,Internal Trading Accounts,,ARCO LIMITED,133804,18/03/2015,47735,109.32,0,Trousers,Furniture & Soft Furnishings,210000
South Lakeland District Council,http://opendatacommunities.org/id/district-council/south-lakeland,31/03/2015,Business Support Community Services,Transport Planning Policy,http://opendatacommunities.org/def/concept/finance/sercop/objective/107,ARCO LIMITED,133804,18/03/2015,47736,6.55,0,Trousers,Cleaning & Janitorial,130000
South Lakeland District Council,http://opendatacommunities.org/id/district-council/south-lakeland,31/03/2015,Development Implementation,Cultural Environmental Regulatory & Planning Services,http://opendatacommunities.org/def/concept/finance/sercop/objective/104,WiFi Spark Ltd,,11/03/2015,47737,2097,0,Attendance Fee for Installation of Wifi,Environmental Services,180000
South Lakeland District Council,http://opendatacommunities.org/id/district-council/south-lakeland,31/03/2015,Development Strategy,Cultural Environmental Regulatory & Planning Services,http://opendatacommunities.org/def/concept/finance/sercop/objective/104,Matchtech,2526418,11/03/2015,47738,833.17,0,AT work for 12 weeks (29 hours,Consultancy,150000
South Lakeland District Council,http://opendatacommunities.org/id/district-council/south-lakeland,31/03/2015,Development Strategy,Cultural Environmental Regulatory & Planning Services,http://opendatacommunities.org/def/concept/finance/sercop/objective/104,Matchtech,2526418,11/03/2015,47739,847.54,0,AT work for 12 weeks (29 hours,Consultancy,150000
South Lakeland District Council,http://opendatacommunities.org/id/district-council/south-lakeland,31/03/2015,Development Strategy,Cultural Environmental Regulatory & Planning Services,http://opendatacommunities.org/def/concept/finance/sercop/objective/104,Matchtech,2526418,11/03/2015,47740,847.54,0,AT work for 12 weeks (29 hours,Consultancy,150000
South Lakeland District Council,http://opendatacommunities.org/id/district-council/south-lakeland,31/03/2015,Development Strategy,Cultural Environmental Regulatory & Planning Services,http://opendatacommunities.org/def/concept/finance/sercop/objective/104,Matchtech,2526418,11/03/2015,47741,861.9,0,AT work for 12 weeks (29 hours,Consultancy,150000
South Lakeland District Council,http://opendatacommunities.org/id/district-council/south-lakeland,31/03/2015,Development Strategy,Cultural Environmental Regulatory & Planning Services,http://opendatacommunities.org/def/concept/finance/sercop/objective/104,Matchtech,2526418,11/03/2015,47742,861.9,0,AT work for 12 weeks (29 hours,Consultancy,150000
South Lakeland District Council,http://opendatacommunities.org/id/district-council/south-lakeland,31/03/2015,Development Strategy,Cultural Environmental Regulatory & Planning Services,http://opendatacommunities.org/def/concept/finance/sercop/objective/104,Matchtech,2526418,11/03/2015,47743,833.17,0,AT work for 12 weeks (29 hours,Consultancy,150000
South Lakeland District Council,http://opendatacommunities.org/id/district-council/south-lakeland,31/03/2015,Technical Team,Cultural Environmental Regulatory & Planning Services,http://opendatacommunities.org/def/concept/finance/sercop/objective/104,Matchtech,2526418,23/03/2015,47744,756,0,TO SUPPLY  CONTRACT 16,Consultancy,150000
South Lakeland District Council,http://opendatacommunities.org/id/district-council/south-lakeland,31/03/2015,Social Enterprise Admin,Culture and Related Serv,http://opendatacommunities.org/def/concept/finance/sercop/objective/104,PFK Planning,,23/03/2015,47745,427.1,0,Professional planning services. RE.,Financial Services,200000
South Lakeland District Council,http://opendatacommunities.org/id/district-council/south-lakeland,31/03/2015,Legal Services,Central Services,http://opendatacommunities.org/def/concept/finance/sercop/objective/102,WEIGHTMANS LLP,OC326117,18/03/2015,47746,144,0,Fees in respect of ,Legal Services,280000
South Lakeland District Council,http://opendatacommunities.org/id/district-council/south-lakeland,31/03/2015,Human Resources,Central Services,http://opendatacommunities.org/def/concept/finance/sercop/objective/102,KENDAL COLLEGE,,18/03/2015,47747,350,0,Intermediate Word 11/06/2014,Education,170000
South Lakeland District Council,http://opendatacommunities.org/id/district-council/south-lakeland,31/03/2015,Revenues and Benefits,Central Services,http://opendatacommunities.org/def/concept/finance/sercop/objective/102,MERITEC LTD,3224622,11/03/2015,47748,139.5,0,RAB Processing Contract and Agency,Consultancy,150000
South Lakeland District Council,http://opendatacommunities.org/id/district-council/south-lakeland,31/03/2015,Business Support Community Services,Central Services,http://opendatacommunities.org/def/concept/finance/sercop/objective/102,MARGARET BARROW INTERIORS LTD T/A MBI,,11/03/2015,47749,181,0,Orthopaedic OC97HB,Furniture & Soft Furnishings,210000
South Lakeland District Council,http://opendatacommunities.org/id/district-council/south-lakeland,31/03/2015,Social Enterprise Admin,Central Services,http://opendatacommunities.org/def/concept/finance/sercop/objective/102,HYGIENE CLEANING SUPPLIES LTD,4753934,18/03/2015,47750,354.27,0,Bulk pack toilet tissues,Cleaning & Janitorial,130000
South Lakeland District Council,http://opendatacommunities.org/id/district-council/south-lakeland,31/03/2015,Electoral Services,Central Services,http://opendatacommunities.org/def/concept/finance/sercop/objective/102,SCI PRINT LTD,,11/03/2015,47751,16495.2,0,Printing etc for mini canvass,Mail Services,300000
South Lakeland District Council,http://opendatacommunities.org/id/district-council/south-lakeland,31/03/2015,Coronation Hall,Cultural Environmental Regulatory & Planning Services,http://opendatacommunities.org/def/concept/finance/sercop/objective/104,Monster Monster,,11/03/2015,47752,400,0,Work on Facebook and Twitter to y/e 31,Consultancy,150000
South Lakeland District Council,http://opendatacommunities.org/id/district-council/south-lakeland,31/03/2015,Business Support Community Services,Cultural Environmental Regulatory & Planning Services,http://opendatacommunities.org/def/concept/finance/sercop/objective/104,OCS GROUP LTD T/A CANNON HYGIENE LTD,1298292,11/03/2015,47753,23.06,0,Clinical waste collections - February,Environmental Services,180000
South Lakeland District Council,http://opendatacommunities.org/id/district-council/south-lakeland,31/03/2015,Business Support Community Services,Internal Trading Accounts,,DENNIS EAGLE LTD,3794455,11/03/2015,47754,7.31,0,Gasket,Vehicle Management,380000
South Lakeland District Council,http://opendatacommunities.org/id/district-council/south-lakeland,31/03/2015,Business Support Community Services,Internal Trading Accounts,,DENNIS EAGLE LTD,3794455,18/03/2015,47755,6.76,0,Switch,Vehicle Management,380000
South Lakeland District Council,http://opendatacommunities.org/id/district-council/south-lakeland,31/03/2015,Business Support Community Services,Internal Trading Accounts,,HYDRAIR TRUCK & TRAILER PARTS LTD,,11/03/2015,47756,922.5,0,Drop link,Vehicle Management,380000
South Lakeland District Council,http://opendatacommunities.org/id/district-council/south-lakeland,31/03/2015,Business Support Community Services,Transport Planning Policy,http://opendatacommunities.org/def/concept/finance/sercop/objective/107,ARCO LIMITED,133804,11/03/2015,47757,48.68,0,Speed limit sign,Furniture & Soft Furnishings,210000
South Lakeland District Council,http://opendatacommunities.org/id/district-council/south-lakeland,31/03/2015,Business Support Community Services,Housing Services,http://opendatacommunities.org/def/concept/finance/sercop/objective/108,Cumbria Cleaning Services,9016061,11/03/2015,47758,215,0,"Cleaning carried out for flat 1,",Social Community Care Supplies & Services,410000
South Lakeland District Council,http://opendatacommunities.org/id/district-council/south-lakeland,31/03/2015,Business Support Community Services,Housing Services,http://opendatacommunities.org/def/concept/finance/sercop/objective/108,BUNZL CLEANING & HYGIENE SUPPLIES,2902454,11/03/2015,47759,27.72,0,Lavette Super (Green) 001054G,Cleaning & Janitorial,130000
South Lakeland District Council,http://opendatacommunities.org/id/district-council/south-lakeland,31/03/2015,Business Support Community Services,Housing Services,http://opendatacommunities.org/def/concept/finance/sercop/objective/108,Castle Fire Ltd,4268042,11/03/2015,47760,60,0,Call out to fault on fire alarm system,Social Community Care Supplies & Services,410000
South Lakeland District Council,http://opendatacommunities.org/id/district-council/south-lakeland,31/03/2015,Business Support Community Services,Internal Trading Accounts,,ALLSTAR BUSINESS SOLUTIONS LTD (NCR),2631112,01/03/2015,47762,3386.33,0,Fuel to 28/02,Utilities,370000
South Lakeland District Council,http://opendatacommunities.org/id/district-council/south-lakeland,31/03/2015,Business Support Community Services,Internal Trading Accounts,,ALLSTAR BUSINESS SOLUTIONS LTD (NCR),2631112,01/03/2015,47762,101.33,0,Fuel to 28/02,Utilities,370000
South Lakeland District Council,http://opendatacommunities.org/id/district-council/south-lakeland,31/03/2015,Business Support Community Services,Internal Trading Accounts,,ALLSTAR BUSINESS SOLUTIONS LTD (NCR),2631112,01/03/2015,47762,11053.04,0,Fuel to 28/02,Utilities,370000
South Lakeland District Council,http://opendatacommunities.org/id/district-council/south-lakeland,31/03/2015,Social Enterprise Admin,Cultural Environmental Regulatory & Planning Services,http://opendatacommunities.org/def/concept/finance/sercop/objective/104,RTPI SUBSCRIPTIONS,,11/03/2015,47763,290,0,Subs,Financial Services,200000
South Lakeland District Council,http://opendatacommunities.org/id/district-council/south-lakeland,31/03/2015,Democratic Services,Central Services,http://opendatacommunities.org/def/concept/finance/sercop/objective/102,MODERN MINDSET LIMITED,2208130,11/03/2015,47764,6870,0,Modern.Gov maintenance for the year 01,Information Communication Technology,270000
South Lakeland District Council,http://opendatacommunities.org/id/district-council/south-lakeland,31/03/2015,Social Enterprise Admin,Cultural Environmental Regulatory & Planning Services,http://opendatacommunities.org/def/concept/finance/sercop/objective/104,ARB CONSULTANTS LTD,6082066,11/03/2015,47765,2931.83,0,To provide tree officer services 1.10.14,Facilities & Management Services,190000
South Lakeland District Council,http://opendatacommunities.org/id/district-council/south-lakeland,31/03/2015,Printing Section,Central Services,http://opendatacommunities.org/def/concept/finance/sercop/objective/102,Konica Minolta Bus Solutions (UK) Ltd,,11/03/2015,47766,2534.82,0,6 Oct 2014 - 5 Jan 2015 Konica Open,Stationery,340000
South Lakeland District Council,http://opendatacommunities.org/id/district-council/south-lakeland,31/03/2015,Kendal Market Hall,External Trading Accounts,,THE SIGN MAN,5748839,18/03/2015,47770,260,0,2 A boards for Kendal Market,Facilities & Management Services,190000
South Lakeland District Council,http://opendatacommunities.org/id/district-council/south-lakeland,31/03/2015,Business Support Community Services,Internal Trading Accounts,,CALIBRATION & CONSULTANCY SERV (UK) LTD,,23/03/2015,47771,753.5,0,Calibrate & test workshop equipment,Furniture & Soft Furnishings,210000
South Lakeland District Council,http://opendatacommunities.org/id/district-council/south-lakeland,31/03/2015,Development Implementation,Cultural Environmental Regulatory & Planning Services,http://opendatacommunities.org/def/concept/finance/sercop/objective/104,PS BUSINESS MATTERS,8147185,18/03/2015,47772,2000,0,Kendal Futures Programme Support,Consultancy,150000
South Lakeland District Council,http://opendatacommunities.org/id/district-council/south-lakeland,31/03/2015,Business Support Community Services,Central Services,http://opendatacommunities.org/def/concept/finance/sercop/objective/102,FOOD SAFETY DIRECT LIMITED,5294095,11/03/2015,47773,17.5,0,Comark C22 EHO kit (Thermometer) Ref,Furniture & Soft Furnishings,210000
South Lakeland District Council,http://opendatacommunities.org/id/district-council/south-lakeland,31/03/2015,Business Support Community Services,Cultural Environmental Regulatory & Planning Services,http://opendatacommunities.org/def/concept/finance/sercop/objective/104,FOOD SAFETY DIRECT LIMITED,5294095,11/03/2015,47773,3.25,0,Comark C22 EHO kit (Thermometer) Ref,Furniture & Soft Furnishings,210000
South Lakeland District Council,http://opendatacommunities.org/id/district-council/south-lakeland,31/03/2015,Business Support Community Services,Cultural Environmental Regulatory & Planning Services,http://opendatacommunities.org/def/concept/finance/sercop/objective/104,FOOD SAFETY DIRECT LIMITED,5294095,11/03/2015,47773,1063.3,0,Comark C22 EHO kit (Thermometer) Ref,Furniture & Soft Furnishings,210000
South Lakeland District Council,http://opendatacommunities.org/id/district-council/south-lakeland,31/03/2015,Development Implementation,Cultural Environmental Regulatory & Planning Services,http://opendatacommunities.org/def/concept/finance/sercop/objective/104,SKV Communications,3495502,11/03/2015,47774,9475,0,Provision of PR/Marketing Support for,Environmental Services,180000
South Lakeland District Council,http://opendatacommunities.org/id/district-council/south-lakeland,31/03/2015,Development Implementation,Cultural Environmental Regulatory & Planning Services,http://opendatacommunities.org/def/concept/finance/sercop/objective/104,DESIGNWORKS,,11/03/2015,47775,64,0,Times Supplement - Page Turning Software,Environmental Services,180000
South Lakeland District Council,http://opendatacommunities.org/id/district-council/south-lakeland,31/03/2015,Development Implementation,Cultural Environmental Regulatory & Planning Services,http://opendatacommunities.org/def/concept/finance/sercop/objective/104,THE PLAIN CREATIVE AGENCY LTD,6867950,11/03/2015,47776,120,0,Social Media graphics for Linked In &,Environmental Services,180000
South Lakeland District Council,http://opendatacommunities.org/id/district-council/south-lakeland,31/03/2015,Development Implementation,Cultural Environmental Regulatory & Planning Services,http://opendatacommunities.org/def/concept/finance/sercop/objective/104,E H BOOTH & CO LTD,,11/03/2015,47777,250,0,Participation in the Kendal Courtesy,Financial Services,200000
South Lakeland District Council,http://opendatacommunities.org/id/district-council/south-lakeland,31/03/2015,Social Enterprise Admin,Highways & Transport Services,http://opendatacommunities.org/def/concept/finance/sercop/objective/107,VODAFONE LIMITED,1471587,18/03/2015,47778,82.5,0,Mobile phones for enforcement staff,Information Communication Technology,270000
South Lakeland District Council,http://opendatacommunities.org/id/district-council/south-lakeland,31/03/2015,Social Enterprise Admin,Highways & Transport Services,http://opendatacommunities.org/def/concept/finance/sercop/objective/107,VODAFONE LIMITED,1471587,18/03/2015,47779,-80.81,0,Mobile phones for enforcement staff,Information Communication Technology,270000
South Lakeland District Council,http://opendatacommunities.org/id/district-council/south-lakeland,31/03/2015,Revenues and Benefits,Central Services,http://opendatacommunities.org/def/concept/finance/sercop/objective/102,VENN GROUP RECRUITMENT SOLUTIONS,,11/03/2015,47782,1163.25,0,Consultant,Consultancy,150000
South Lakeland District Council,http://opendatacommunities.org/id/district-council/south-lakeland,31/03/2015,Revenues and Benefits,Central Services,http://opendatacommunities.org/def/concept/finance/sercop/objective/102,PITNEY BOWES LTD,182037,18/03/2015,47783,289.4,0,2014-15 Stationery & office supplies,Stationery,340000
South Lakeland District Council,http://opendatacommunities.org/id/district-council/south-lakeland,31/03/2015,Business Support Community Services,Cultural Environmental Regulatory & Planning Services,http://opendatacommunities.org/def/concept/finance/sercop/objective/104,HORIBA UK LTD,2242542,18/03/2015,47784,1315,0,1 year Service Contract for Horiba,Furniture & Soft Furnishings,210000
South Lakeland District Council,http://opendatacommunities.org/id/district-council/south-lakeland,31/03/2015,Business Support Community Services,Cultural Environmental Regulatory & Planning Services,http://opendatacommunities.org/def/concept/finance/sercop/objective/104,HORIBA UK LTD,2242542,18/03/2015,47784,2300,0,1 year Service Contract for Horiba,Environmental Services,180000
South Lakeland District Council,http://opendatacommunities.org/id/district-council/south-lakeland,31/03/2015,Coronation Hall,Cultural Environmental Regulatory & Planning Services,http://opendatacommunities.org/def/concept/finance/sercop/objective/104,SHORROCK TRICHEM,4179799,18/03/2015,47785,180.52,0,Toilet rolls - mini jumbo 2 ply 12 pack,Cleaning & Janitorial,130000
South Lakeland District Council,http://opendatacommunities.org/id/district-council/south-lakeland,31/03/2015,Business Support Community Services,Cultural Environmental Regulatory & Planning Services,http://opendatacommunities.org/def/concept/finance/sercop/objective/104,OCS GROUP LTD T/A CANNON HYGIENE LTD,1298292,18/03/2015,47786,1824.01,0,Clinical waste collections - February,Environmental Services,180000
South Lakeland District Council,http://opendatacommunities.org/id/district-council/south-lakeland,31/03/2015,Business Support Community Services,Internal Trading Accounts,,C T HAYTON LTD,1212766,18/03/2015,47787,9,0,Oil,Vehicle Management,380000
South Lakeland District Council,http://opendatacommunities.org/id/district-council/south-lakeland,31/03/2015,Business Support Community Services,Internal Trading Accounts,,C T HAYTON LTD,1212766,18/03/2015,47787,4.5,0,Oil,Furniture & Soft Furnishings,210000
South Lakeland District Council,http://opendatacommunities.org/id/district-council/south-lakeland,31/03/2015,Business Support Community Services,Internal Trading Accounts,,PROBRUSH T/A NORTHERN MUNICIPAL SPARES L,,18/03/2015,47788,511.5,0,Brushes,Vehicle Management,380000
South Lakeland District Council,http://opendatacommunities.org/id/district-council/south-lakeland,31/03/2015,Business Support Community Services,Internal Trading Accounts,,FAUN ZOELLER (UK) LTD,751804,18/03/2015,47789,131.66,0,Barrier arm,Vehicle Management,380000
South Lakeland District Council,http://opendatacommunities.org/id/district-council/south-lakeland,31/03/2015,Business Support Community Services,Internal Trading Accounts,,FAUN ZOELLER (UK) LTD,751804,18/03/2015,47790,411,0,Diagnostic control unit,Vehicle Management,380000
South Lakeland District Council,http://opendatacommunities.org/id/district-council/south-lakeland,31/03/2015,Business Support Community Services,Housing Services,http://opendatacommunities.org/def/concept/finance/sercop/objective/108,Robert & Angela Hughes,,11/03/2015,47791,400,0,"Monthly rent for 2 Egremont House,",Social Community Care Supplies & Services,410000
South Lakeland District Council,http://opendatacommunities.org/id/district-council/south-lakeland,31/03/2015,Business Support Community Services,Internal Trading Accounts,,FAUN ZOELLER (UK) LTD,751804,18/03/2015,47792,193.06,0,Cartridges,Vehicle Management,380000
South Lakeland District Council,http://opendatacommunities.org/id/district-council/south-lakeland,31/03/2015,Business Support Community Services,Housing Services,http://opendatacommunities.org/def/concept/finance/sercop/objective/108,Landlord,,11/03/2015,47793,500,0,Monthly rent,Social Community Care Supplies & Services,410000
South Lakeland District Council,http://opendatacommunities.org/id/district-council/south-lakeland,31/03/2015,Business Support Community Services,Housing Services,http://opendatacommunities.org/def/concept/finance/sercop/objective/108,Landlord,,11/03/2015,47794,520,0,Monthly rent,Social Community Care Supplies & Services,410000
South Lakeland District Council,http://opendatacommunities.org/id/district-council/south-lakeland,31/03/2015,Business Support Community Services,Housing Services,http://opendatacommunities.org/def/concept/finance/sercop/objective/108,Landlord,,11/03/2015,47795,520,0,Monthly rent,Social Community Care Supplies & Services,410000
South Lakeland District Council,http://opendatacommunities.org/id/district-council/south-lakeland,31/03/2015,Business Support Community Services,Housing Services,http://opendatacommunities.org/def/concept/finance/sercop/objective/108,Landlord,7121028,11/03/2015,47796,400,0,Monthly rent,Social Community Care Supplies & Services,410000
South Lakeland District Council,http://opendatacommunities.org/id/district-council/south-lakeland,31/03/2015,Business Support Community Services,Housing Services,http://opendatacommunities.org/def/concept/finance/sercop/objective/108,Landlord,,11/03/2015,47797,520,0,Monthly rent,Social Community Care Supplies & Services,410000
South Lakeland District Council,http://opendatacommunities.org/id/district-council/south-lakeland,31/03/2015,Business Support Community Services,Housing Services,http://opendatacommunities.org/def/concept/finance/sercop/objective/108,Landlord,,11/03/2015,47798,520,0,Monthly rent,Social Community Care Supplies & Services,410000
South Lakeland District Council,http://opendatacommunities.org/id/district-council/south-lakeland,31/03/2015,Business Support Community Services,Internal Trading Accounts,,SITA UK LTD,2291198,18/03/2015,47799,12961.32,0,"Tipping & disposal charges, recyclables",Environmental Services,180000
South Lakeland District Council,http://opendatacommunities.org/id/district-council/south-lakeland,31/03/2015,Business Support Community Services,Internal Trading Accounts,,SITA UK LTD,2291198,18/03/2015,47800,-301.74,0,"Tipping & disposal charges, recyclables",Environmental Services,180000
South Lakeland District Council,http://opendatacommunities.org/id/district-council/south-lakeland,31/03/2015,Business Support Community Services,Internal Trading Accounts,,CUMBRIA WASTE RECYCLING LTD,3162439,18/03/2015,47801,1359.88,0,Skip emptying at Ecclerigg - January,Environmental Services,180000
South Lakeland District Council,http://opendatacommunities.org/id/district-council/south-lakeland,31/03/2015,Business Support Community Services,Internal Trading Accounts,,CUMBRIA WASTE RECYCLING LTD,3162439,18/03/2015,47802,105,0,Skip emptying at Ecclerigg - January,Environmental Services,180000
South Lakeland District Council,http://opendatacommunities.org/id/district-council/south-lakeland,31/03/2015,Business Support Community Services,Internal Trading Accounts,,Masterstaff Limited,2777593,11/03/2015,47803,399.6,0,Consultant,Consultancy,150000
South Lakeland District Council,http://opendatacommunities.org/id/district-council/south-lakeland,31/03/2015,Business Support Community Services,Internal Trading Accounts,,SOMERS TOTALKARE LTD,5256574,18/03/2015,47804,660,0,Service lifts,Financial Services,200000
South Lakeland District Council,http://opendatacommunities.org/id/district-council/south-lakeland,31/03/2015,Business Support Community Services,Internal Trading Accounts,,VOLVO GROUP UK LTD,2190944,18/03/2015,47805,49.57,0,Covers,Vehicle Management,380000
South Lakeland District Council,http://opendatacommunities.org/id/district-council/south-lakeland,31/03/2015,Business Support Community Services,Internal Trading Accounts,,PIER 1 METALWORKS LTD,4291520,11/03/2015,47806,60,0,Stillage feet,Vehicle Management,380000
South Lakeland District Council,http://opendatacommunities.org/id/district-council/south-lakeland,31/03/2015,Business Support Community Services,Internal Trading Accounts,,RIBBLESDALE AUTO ELECTRICS UNITS LTD,962232,11/03/2015,47807,250,0,Alternator,Vehicle Management,380000
South Lakeland District Council,http://opendatacommunities.org/id/district-council/south-lakeland,31/03/2015,Financial Services,SLDC as Agent,,KIRKLAND TRUST (KENDAL),,11/03/2015,47809,3566.2,0,14/15 Kirkland Car Park Income,Financial Services,200000
South Lakeland District Council,http://opendatacommunities.org/id/district-council/south-lakeland,31/03/2015,Financial Services,SLDC as Agent,,LAKELAND ESTATES (AMBLESIDE) LTD,3022544,11/03/2015,47810,7899,0,14/15 Millerfield Car Park Income,Financial Services,200000
South Lakeland District Council,http://opendatacommunities.org/id/district-council/south-lakeland,31/03/2015,Environment and Housing,Housing Services,http://opendatacommunities.org/def/concept/finance/sercop/objective/108,GROWING CONCERNS LANDSCAPING,,11/03/2015,47811,846.8,0,Payment for Handy Person Scheme,"Works - Construction, Repair & Maintenance",390000
South Lakeland District Council,http://opendatacommunities.org/id/district-council/south-lakeland,31/03/2015,Social Enterprise Admin,Cultural Environmental Regulatory & Planning Services,http://opendatacommunities.org/def/concept/finance/sercop/objective/104,URBANVISION PARTNERSHIP LTD,,18/03/2015,47817,5550.86,0,BUSINESS DEVELOPMENT AND PROJECT,Consultancy,150000
South Lakeland District Council,http://opendatacommunities.org/id/district-council/south-lakeland,31/03/2015,Financial Services,Central Services,http://opendatacommunities.org/def/concept/finance/sercop/objective/102,Capita Secure Information Solutions Ltd,1593831,18/03/2015,47818,4302.4,0,Purchase Ordering software maintenance,Information Communication Technology,270000
South Lakeland District Council,http://opendatacommunities.org/id/district-council/south-lakeland,31/03/2015,Business Support Community Services,Internal Trading Accounts,,JOHNSTON SWEEPERS LTD,199841,18/03/2015,47819,1225.94,0,Turbo,Vehicle Management,380000
South Lakeland District Council,http://opendatacommunities.org/id/district-council/south-lakeland,31/03/2015,Policy & Partnerships,Central Services,http://opendatacommunities.org/def/concept/finance/sercop/objective/102,PDP COMPANIES,3893956,23/03/2015,47820,795,0,Freedom of Information Training Level 1,Education,170000
South Lakeland District Council,http://opendatacommunities.org/id/district-council/south-lakeland,31/03/2015,Social Enterprise Admin,Cultural Environmental Regulatory & Planning Services,http://opendatacommunities.org/def/concept/finance/sercop/objective/104,Cleartrack (EvL) Ltd,3881690,18/03/2015,47821,3594.1,0,Kendal Parish Church,Environmental Services,180000
South Lakeland District Council,http://opendatacommunities.org/id/district-council/south-lakeland,31/03/2015,Social Enterprise Admin,Highways & Transport Services,http://opendatacommunities.org/def/concept/finance/sercop/objective/107,Cleartrack (EvL) Ltd,3881690,18/03/2015,47822,300,0,Work at Berners Car Park,Environmental Services,180000
South Lakeland District Council,http://opendatacommunities.org/id/district-council/south-lakeland,31/03/2015,Business Support Community Services,Cultural Environmental Regulatory & Planning Services,http://opendatacommunities.org/def/concept/finance/sercop/objective/104,INTELLIGENT DATA SYSTEMS (UK) LTD,5148878,18/03/2015,47823,91.25,0,IDS checks for Taxi Drivers,Highway Equipment & Materials,230000
South Lakeland District Council,http://opendatacommunities.org/id/district-council/south-lakeland,31/03/2015,Policy & Partnerships,Cultural Environmental Regulatory & Planning Services,http://opendatacommunities.org/def/concept/finance/sercop/objective/104,GRANTS- MISCELLANEOUS,,18/03/2015,47824,850,0,Vietnam Project Trip,Financial Services,200000
South Lakeland District Council,http://opendatacommunities.org/id/district-council/south-lakeland,31/03/2015,Environmental Protection,Cultural Environmental Regulatory & Planning Services,http://opendatacommunities.org/def/concept/finance/sercop/objective/104,CONTINENTAL LANDSCAPES LTD,2108452,18/03/2015,47825,3582.38,0,Covering 12monthly payments for,Cemetery & Crematorium,120000
South Lakeland District Council,http://opendatacommunities.org/id/district-council/south-lakeland,31/03/2015,Social Enterprise Admin,Cultural Environmental Regulatory & Planning Services,http://opendatacommunities.org/def/concept/finance/sercop/objective/104,NORTHGATE VEHICLE HIRE LTD,1434157,23/03/2015,47827,-27.2,0,PLANNING OFFICERS TRAVEL FROM KENDAL TO,Education,170000
South Lakeland District Council,http://opendatacommunities.org/id/district-council/south-lakeland,31/03/2015,Business Support Community Services,Internal Trading Accounts,,AINSWORTH'S GARAGE,,18/03/2015,47828,255,0,Recover SL042,Vehicle Management,380000
South Lakeland District Council,http://opendatacommunities.org/id/district-council/south-lakeland,31/03/2015,Business Support Community Services,Internal Trading Accounts,,AINSWORTH'S GARAGE,,18/03/2015,47829,16,0,COC turn,Vehicle Management,380000
South Lakeland District Council,http://opendatacommunities.org/id/district-council/south-lakeland,31/03/2015,Business Support Community Services,Internal Trading Accounts,,AINSWORTH'S GARAGE,,18/03/2015,47830,170,0,Recover SL042,Vehicle Management,380000
South Lakeland District Council,http://opendatacommunities.org/id/district-council/south-lakeland,31/03/2015,Revenues and Benefits,Central Services,http://opendatacommunities.org/def/concept/finance/sercop/objective/102,CAPITA BUSINESS SERVICES LTD,2299747,18/03/2015,47831,19843.14,0,Software,Information Communication Technology,270000
South Lakeland District Council,http://opendatacommunities.org/id/district-council/south-lakeland,31/03/2015,Revenues and Benefits,Central Services,http://opendatacommunities.org/def/concept/finance/sercop/objective/102,CAPITA BUSINESS SERVICES LTD,2299747,18/03/2015,47831,0,0,Software,Information Communication Technology,270000
South Lakeland District Council,http://opendatacommunities.org/id/district-council/south-lakeland,31/03/2015,Revenues and Benefits,Cultural Environmental Regulatory & Planning Services,http://opendatacommunities.org/def/concept/finance/sercop/objective/104,CAPITA BUSINESS SERVICES LTD,2299747,18/03/2015,47831,0,0,Software,Information Communication Technology,270000
South Lakeland District Council,http://opendatacommunities.org/id/district-council/south-lakeland,31/03/2015,Business Support Community Services,Internal Trading Accounts,,TAYLOR ENGINEERING & FABRICATIONS LTD,4989359,27/03/2015,47832,23.93,0,Contacts,Vehicle Management,380000
South Lakeland District Council,http://opendatacommunities.org/id/district-council/south-lakeland,31/03/2015,ICT Group,Central Services,http://opendatacommunities.org/def/concept/finance/sercop/objective/102,RandomStorm Ltd,6229788,18/03/2015,47833,6200,0,IT Health Check and StormAgent,Consultancy,150000
South Lakeland District Council,http://opendatacommunities.org/id/district-council/south-lakeland,31/03/2015,Business Support Community Services,Housing Services,http://opendatacommunities.org/def/concept/finance/sercop/objective/108,James Andrews Recruitment Solutions,6834852,18/03/2015,47834,856.25,0,Payment,Consultancy,150000
South Lakeland District Council,http://opendatacommunities.org/id/district-council/south-lakeland,31/03/2015,Social Enterprise Admin,Highways & Transport Services,http://opendatacommunities.org/def/concept/finance/sercop/objective/107,AMENITY TREE CARE LTD,4141279,18/03/2015,47835,2790,0,Phase three arboriculture works at Ferry,Street & Traffic Management,350000
South Lakeland District Council,http://opendatacommunities.org/id/district-council/south-lakeland,31/03/2015,Social Enterprise Admin,Cultural Environmental Regulatory & Planning Services,http://opendatacommunities.org/def/concept/finance/sercop/objective/104,AMENITY TREE CARE LTD,4141279,18/03/2015,47835,2790,0,Phase three arboriculture works at Ferry,Environmental Services,180000
South Lakeland District Council,http://opendatacommunities.org/id/district-council/south-lakeland,31/03/2015,Business Support Community Services,Internal Trading Accounts,,S J Bargh,532272,18/03/2015,47836,50,0,MOT,Vehicle Management,380000
South Lakeland District Council,http://opendatacommunities.org/id/district-council/south-lakeland,31/03/2015,Business Support Community Services,Internal Trading Accounts,,LANCASTER TRAINING SERVICES LTD,1447612,18/03/2015,47837,256.07,0,FLT Operator training,Education,170000
South Lakeland District Council,http://opendatacommunities.org/id/district-council/south-lakeland,31/03/2015,Business Support Community Services,Internal Trading Accounts,,LANCASTER TRAINING SERVICES LTD,1447612,18/03/2015,47837,170.72,0,FLT Operator training,Education,170000
South Lakeland District Council,http://opendatacommunities.org/id/district-council/south-lakeland,31/03/2015,Business Support Community Services,Internal Trading Accounts,,LANCASTER TRAINING SERVICES LTD,1447612,18/03/2015,47837,170.71,0,FLT Operator training,Education,170000
South Lakeland District Council,http://opendatacommunities.org/id/district-council/south-lakeland,31/03/2015,Business Support Community Services,Internal Trading Accounts,,K S INTERNATIONAL LTD,2703321,18/03/2015,47838,50,0,Air filter,Vehicle Management,380000
South Lakeland District Council,http://opendatacommunities.org/id/district-council/south-lakeland,31/03/2015,Business Support Community Services,Environment Regulatory,,Great Green Systems Ltd,6632263,18/03/2015,47839,325.6,0,Replaces order 24352.,Vehicle Management,380000
South Lakeland District Council,http://opendatacommunities.org/id/district-council/south-lakeland,31/03/2015,Business Support Community Services,Internal Trading Accounts,,GREENCHEM SOLUTIONS LTD,5175801,18/03/2015,47840,50.66,0,Ad blue,Vehicle Management,380000
South Lakeland District Council,http://opendatacommunities.org/id/district-council/south-lakeland,31/03/2015,Business Support Community Services,Internal Trading Accounts,,GREENCHEM SOLUTIONS LTD,5175801,18/03/2015,47840,3.38,0,Ad blue,Vehicle Management,380000
South Lakeland District Council,http://opendatacommunities.org/id/district-council/south-lakeland,31/03/2015,Business Support Community Services,Internal Trading Accounts,,GREENCHEM SOLUTIONS LTD,5175801,18/03/2015,47840,283.71,0,Ad blue,Vehicle Management,380000
South Lakeland District Council,http://opendatacommunities.org/id/district-council/south-lakeland,31/03/2015,Business Support Community Services,Internal Trading Accounts,,VOLVO GROUP UK LTD,2190944,18/03/2015,47841,456.54,0,Fuel filters,Vehicle Management,380000
South Lakeland District Council,http://opendatacommunities.org/id/district-council/south-lakeland,31/03/2015,Business Support Community Services,Internal Trading Accounts,,THE HELPING HAND COMPANY,2172956,18/03/2015,47842,1527,0,LP3035 - Ranger Curved 88cm,Furniture & Soft Furnishings,210000
South Lakeland District Council,http://opendatacommunities.org/id/district-council/south-lakeland,31/03/2015,Business Support Community Services,Internal Trading Accounts,,BRIAN ARMISTEAD LTD T/A SINKFALL RECYCLI,4133280,18/03/2015,47843,325.6,0,Green waste tipping - April (estimated),Environmental Services,180000
South Lakeland District Council,http://opendatacommunities.org/id/district-council/south-lakeland,31/03/2015,Business Support Community Services,Internal Trading Accounts,,Tecalemit Garage Equipment Co Ltd,,18/03/2015,47844,71,0,Lift service,Furniture & Soft Furnishings,210000
South Lakeland District Council,http://opendatacommunities.org/id/district-council/south-lakeland,31/03/2015,Business Support Community Services,Internal Trading Accounts,,BUSINESS LINES LIMITED,1988026,18/03/2015,47845,65,0,Wheel nut indicators,Vehicle Management,380000
South Lakeland District Council,http://opendatacommunities.org/id/district-council/south-lakeland,31/03/2015,Policy & Partnerships,Cultural Environmental Regulatory & Planning Services,http://opendatacommunities.org/def/concept/finance/sercop/objective/104,GRANGE OVER SANDS TOWN COUNCIL,,18/03/2015,47846,346,0,To publish the statement in 'Grange,Financial Services,200000
South Lakeland District Council,http://opendatacommunities.org/id/district-council/south-lakeland,31/03/2015,Policy & Partnerships,Cultural Environmental Regulatory & Planning Services,http://opendatacommunities.org/def/concept/finance/sercop/objective/104,Dent Memorial Hall,,18/03/2015,47847,13.5,0,Dent Memorial Hall - 3.50 an hour from,Arts & Leisure Services,290000
South Lakeland District Council,http://opendatacommunities.org/id/district-council/south-lakeland,31/03/2015,Policy & Partnerships,Cultural Environmental Regulatory & Planning Services,http://opendatacommunities.org/def/concept/finance/sercop/objective/104,GRANTS- MISCELLANEOUS,,18/03/2015,47848,500,0,Hallgarth Junior Football Team,Financial Services,200000
South Lakeland District Council,http://opendatacommunities.org/id/district-council/south-lakeland,31/03/2015,Human Resources,Central Services,http://opendatacommunities.org/def/concept/finance/sercop/objective/102,FORBES SOLICITORS,,18/03/2015,47849,517.5,0,Shared parental leave,Legal Services,280000
South Lakeland District Council,http://opendatacommunities.org/id/district-council/south-lakeland,31/03/2015,Human Resources,Housing Services,http://opendatacommunities.org/def/concept/finance/sercop/objective/108,EMPLOYMENT PAGES LTD,7363099,18/03/2015,47850,336.6,0,Advert for Affordable Housing Officer,Consultancy,150000
South Lakeland District Council,http://opendatacommunities.org/id/district-council/south-lakeland,31/03/2015,Human Resources,Central Services,http://opendatacommunities.org/def/concept/finance/sercop/objective/102,THE KNOWLEDGE ACADEMY,,18/03/2015,47851,1700,0,Microsoft Lync 2013 training- 2 sessions,Education,170000
South Lakeland District Council,http://opendatacommunities.org/id/district-council/south-lakeland,31/03/2015,Human Resources,Central Services,http://opendatacommunities.org/def/concept/finance/sercop/objective/102,BUSY BEES BENEFITS LTD,6758298,18/03/2015,47852,24.36,0,CHILD CARE VOUCHERS - APPROX ?500.00 PER,Financial Services,200000
South Lakeland District Council,http://opendatacommunities.org/id/district-council/south-lakeland,31/03/2015,Revenues and Benefits,SLDC as Agent,,ROYAL MAIL GROUP PLC,,18/03/2015,47858,1883.88,0,2014-15  Postal Charges a/c 0198123013,Financial Services,200000
South Lakeland District Council,http://opendatacommunities.org/id/district-council/south-lakeland,31/03/2015,Human Resources,Non-Service Payments,,BUSY BEES BENEFITS LTD,6758298,18/03/2015,47859,696,0,CHILD CARE VOUCHERS - APPROX ?500.00 PER,Financial Services,200000
South Lakeland District Council,http://opendatacommunities.org/id/district-council/south-lakeland,31/03/2015,Human Resources,Non-Service Payments,,COMPUTERSHARE VOUCHER SERVICES LTD,4968447,18/03/2015,47860,36.75,0,CHULD CARE VOUCHERS - APPROX. ?1000.00,Financial Services,200000
South Lakeland District Council,http://opendatacommunities.org/id/district-council/south-lakeland,31/03/2015,Human Resources,Non-Service Payments,,COMPUTERSHARE VOUCHER SERVICES LTD,4968447,18/03/2015,47861,980,0,CHULD CARE VOUCHERS - APPROX. ?1000.00,Financial Services,200000
South Lakeland District Council,http://opendatacommunities.org/id/district-council/south-lakeland,31/03/2015,Legal Services,Cultural Environmental Regulatory & Planning Services,http://opendatacommunities.org/def/concept/finance/sercop/objective/104,W MCCLURE LTD,685360,18/03/2015,47862,196.75,0,8 x boxes Fox's favourites biscuits,Catering,110000
South Lakeland District Council,http://opendatacommunities.org/id/district-council/south-lakeland,31/03/2015,Business Support Community Services,Central Services,http://opendatacommunities.org/def/concept/finance/sercop/objective/102,Southerns Office Interiors Ltd,3478080,18/03/2015,47863,639.83,0,Desk,Furniture & Soft Furnishings,210000
South Lakeland District Council,http://opendatacommunities.org/id/district-council/south-lakeland,31/03/2015,Development Implementation,Cultural Environmental Regulatory & Planning Services,http://opendatacommunities.org/def/concept/finance/sercop/objective/104,BADGER PRESS LTD,,18/03/2015,47864,572,0,800 x A6 Pads - Tear off Kendal Maps,Facilities & Management Services,190000
South Lakeland District Council,http://opendatacommunities.org/id/district-council/south-lakeland,31/03/2015,ICT Group,Central Services,http://opendatacommunities.org/def/concept/finance/sercop/objective/102,MERITEC LTD,3224622,18/03/2015,47865,6300,0,Emergency Web Support Resource covering,Consultancy,150000
South Lakeland District Council,http://opendatacommunities.org/id/district-council/south-lakeland,31/03/2015,Business Support Community Services,Cultural Environmental Regulatory & Planning Services,http://opendatacommunities.org/def/concept/finance/sercop/objective/104,CONCEPT ENGINEERING LIMITED,859061,18/03/2015,47866,635,0,110V Colt 4 Smoke Machine,Furniture & Soft Furnishings,210000
South Lakeland District Council,http://opendatacommunities.org/id/district-council/south-lakeland,31/03/2015,Development Implementation,Cultural Environmental Regulatory & Planning Services,http://opendatacommunities.org/def/concept/finance/sercop/objective/104,ORMROD SIGNS LTD,4533430,18/03/2015,47867,900,0,10 x banners for Highgate for Kendal,Environmental Services,180000
South Lakeland District Council,http://opendatacommunities.org/id/district-council/south-lakeland,31/03/2015,Social Enterprise Admin,Cultural Environmental Regulatory & Planning Services,http://opendatacommunities.org/def/concept/finance/sercop/objective/104,K A G E,,18/03/2015,47868,260,0,Bate area near kiosk near Stromgate,,
South Lakeland District Council,http://opendatacommunities.org/id/district-council/south-lakeland,31/03/2015,Coronation Hall,External Trading Accounts,,YPO,,18/03/2015,47869,102.66,0,Glade air freshener 500ml code 210005,Cleaning & Janitorial,130000
South Lakeland District Council,http://opendatacommunities.org/id/district-council/south-lakeland,31/03/2015,Business Support Community Services,Internal Trading Accounts,,A & W COMMERCIALS LTD,2630625,18/03/2015,47870,76,0,Tail lift tests,Vehicle Management,380000
South Lakeland District Council,http://opendatacommunities.org/id/district-council/south-lakeland,31/03/2015,Business Support Community Services,Internal Trading Accounts,,A & W COMMERCIALS LTD,2630625,18/03/2015,47871,76,0,Tail lift tests,Vehicle Management,380000
South Lakeland District Council,http://opendatacommunities.org/id/district-council/south-lakeland,31/03/2015,Business Support Community Services,Internal Trading Accounts,,A & W COMMERCIALS LTD,2630625,18/03/2015,47872,76,0,Tail lift tests,Vehicle Management,380000
South Lakeland District Council,http://opendatacommunities.org/id/district-council/south-lakeland,31/03/2015,Democratic Services,Central Services,http://opendatacommunities.org/def/concept/finance/sercop/objective/102,IMPROVEMENT & DEVELOPMENT AGENCY,3675577,18/03/2015,47877,735,0,LG Inform Plus 15/16,Information Communication Technology,270000
South Lakeland District Council,http://opendatacommunities.org/id/district-council/south-lakeland,31/03/2015,Development Strategy,Cultural Environmental Regulatory & Planning Services,http://opendatacommunities.org/def/concept/finance/sercop/objective/104,HDH Planning and Development Ltd,8555548,18/03/2015,47878,1995.9,0,Preparation for and attendance at CIL,Consultancy,150000
South Lakeland District Council,http://opendatacommunities.org/id/district-council/south-lakeland,31/03/2015,Social Enterprise Admin,Cultural Environmental Regulatory & Planning Services,http://opendatacommunities.org/def/concept/finance/sercop/objective/104,Matchtech,2526418,18/03/2015,47879,1068.19,0,TO SUPPLY DEVELOPMENT CONTROL TEAM,Consultancy,150000
South Lakeland District Council,http://opendatacommunities.org/id/district-council/south-lakeland,31/03/2015,Technical Team,Cultural Environmental Regulatory & Planning Services,http://opendatacommunities.org/def/concept/finance/sercop/objective/104,Matchtech,2526418,23/03/2015,47880,781.2,0,TO SUPPLY  CONTRACT 16,Consultancy,150000
South Lakeland District Council,http://opendatacommunities.org/id/district-council/south-lakeland,31/03/2015,Coronation Hall,Central Services,http://opendatacommunities.org/def/concept/finance/sercop/objective/102,OLTEC GROUP CLEANING & JANITORIAL SUPPLI,,18/03/2015,47881,99.6,0,Cleaning of Ulverston Town Hall up to 31,Consultancy,150000
South Lakeland District Council,http://opendatacommunities.org/id/district-council/south-lakeland,31/03/2015,Coronation Hall,Central Services,http://opendatacommunities.org/def/concept/finance/sercop/objective/102,OLTEC GROUP CLEANING & JANITORIAL SUPPLI,,18/03/2015,47882,99.6,0,Cleaning of Ulverston Town Hall up to 31,Consultancy,150000
South Lakeland District Council,http://opendatacommunities.org/id/district-council/south-lakeland,31/03/2015,Coronation Hall,Central Services,http://opendatacommunities.org/def/concept/finance/sercop/objective/102,OLTEC GROUP CLEANING & JANITORIAL SUPPLI,,18/03/2015,47883,99.6,0,Cleaning of Ulverston Town Hall up to 31,Consultancy,150000
South Lakeland District Council,http://opendatacommunities.org/id/district-council/south-lakeland,31/03/2015,Coronation Hall,Central Services,http://opendatacommunities.org/def/concept/finance/sercop/objective/102,OLTEC GROUP CLEANING & JANITORIAL SUPPLI,,18/03/2015,47884,99.6,0,Cleaning of Ulverston Town Hall up to 31,Consultancy,150000
South Lakeland District Council,http://opendatacommunities.org/id/district-council/south-lakeland,31/03/2015,Coronation Hall,External Trading Accounts,,Morson International,,18/03/2015,47885,119.28,0,Ulverston Market Hall cleaner from April,Consultancy,150000
South Lakeland District Council,http://opendatacommunities.org/id/district-council/south-lakeland,31/03/2015,ICT Group,Central Services,http://opendatacommunities.org/def/concept/finance/sercop/objective/102,IT PROFESSIONAL SERVICES (ITPS),,18/03/2015,47886,1617.2,0,RSA Authentication Manager Base Edition,Information Communication Technology,270000
South Lakeland District Council,http://opendatacommunities.org/id/district-council/south-lakeland,31/03/2015,Business Support Community Services,Transport Planning Policy,http://opendatacommunities.org/def/concept/finance/sercop/objective/107,ARCO LIMITED,133804,18/03/2015,47887,0.79,0,Trousers,Cleaning & Janitorial,130000
South Lakeland District Council,http://opendatacommunities.org/id/district-council/south-lakeland,31/03/2015,Business Support Community Services,Internal Trading Accounts,,ARCO LIMITED,133804,18/03/2015,47887,1.6,0,Trousers,Furniture & Soft Furnishings,210000
South Lakeland District Council,http://opendatacommunities.org/id/district-council/south-lakeland,31/03/2015,Business Support Community Services,Internal Trading Accounts,,ARCO LIMITED,133804,18/03/2015,47887,100.52,0,Trousers,Clothing,140000
South Lakeland District Council,http://opendatacommunities.org/id/district-council/south-lakeland,31/03/2015,Business Support Community Services,Internal Trading Accounts,,ARCO LIMITED,133804,18/03/2015,47887,4.2,0,Trousers,Cleaning & Janitorial,130000
South Lakeland District Council,http://opendatacommunities.org/id/district-council/south-lakeland,31/03/2015,Business Support Community Services,Internal Trading Accounts,,ARCO LIMITED,133804,18/03/2015,47887,527.19,0,Trousers,Clothing,140000
South Lakeland District Council,http://opendatacommunities.org/id/district-council/south-lakeland,31/03/2015,Printing Section,Central Services,http://opendatacommunities.org/def/concept/finance/sercop/objective/102,STANDING STONE DRAWING OFFICE SUPPLIES,5128817,18/03/2015,47888,50.58,0,110m 90gsm Roll paper for HP printer,Stationery,340000
South Lakeland District Council,http://opendatacommunities.org/id/district-council/south-lakeland,31/03/2015,Social Enterprise Admin,Highways & Transport Services,http://opendatacommunities.org/def/concept/finance/sercop/objective/107,METRIC GROUP LIMITED,2560839,18/03/2015,47889,990,0,Chip and Pin costs for 66 machines 1,Vehicle Management,380000
South Lakeland District Council,http://opendatacommunities.org/id/district-council/south-lakeland,31/03/2015,ICT Group,Central Services,http://opendatacommunities.org/def/concept/finance/sercop/objective/102,CABLE & WIRELESS UK (VODAFONE),,18/03/2015,47890,-2.57,0,YC00013985 1/2/15 - 31/1/16 Ulverston,Information Communication Technology,270000
South Lakeland District Council,http://opendatacommunities.org/id/district-council/south-lakeland,31/03/2015,Business Support Community Services,Internal Trading Accounts,,METCALFE BROS LTD,5899629,18/03/2015,47891,5152,0,Sweeper hire - November (estimated),Facilities & Management Services,190000
South Lakeland District Council,http://opendatacommunities.org/id/district-council/south-lakeland,31/03/2015,Business Support Community Services,Housing Services,http://opendatacommunities.org/def/concept/finance/sercop/objective/108,SOUTH LAKES HOUSING,IP031419,18/03/2015,47892,412,0,Payment for rent arrears for Samantha,Social Community Care Supplies & Services,410000
South Lakeland District Council,http://opendatacommunities.org/id/district-council/south-lakeland,31/03/2015,Business Support Community Services,Internal Trading Accounts,,VOLVO GROUP UK LTD,2190944,18/03/2015,47894,236.52,0,Filters,Vehicle Management,380000
South Lakeland District Council,http://opendatacommunities.org/id/district-council/south-lakeland,31/03/2015,ICT Group,Central Services,http://opendatacommunities.org/def/concept/finance/sercop/objective/102,NORTHGATE INFORMATION SOLUTIONS UK LTD,968498,18/03/2015,47895,749.47,0,Support for Advanced Cache Management,Information Communication Technology,270000
South Lakeland District Council,http://opendatacommunities.org/id/district-council/south-lakeland,31/03/2015,ICT Group,Central Services,http://opendatacommunities.org/def/concept/finance/sercop/objective/102,NORTHGATE INFORMATION SOLUTIONS UK LTD,968498,18/03/2015,47896,21723.37,0,Annual Software & Support Charges,Information Communication Technology,270000
South Lakeland District Council,http://opendatacommunities.org/id/district-council/south-lakeland,31/03/2015,ICT Group,SLDC as Agent,,CABLE & WIRELESS UK (VODAFONE),,18/03/2015,47897,119.96,0,Call Charges 26 Jan to 25 Feb 2015,Financial Services,200000
South Lakeland District Council,http://opendatacommunities.org/id/district-council/south-lakeland,31/03/2015,Development Implementation,Planning and Development,,Xenolith Explorer Scout Unit,,18/03/2015,47898,2500,0,EPF Grant - Factory Shop Community,Financial Services,200000
South Lakeland District Council,http://opendatacommunities.org/id/district-council/south-lakeland,31/03/2015,Policy & Partnerships,Cultural Environmental Regulatory & Planning Services,http://opendatacommunities.org/def/concept/finance/sercop/objective/104,GRANTS- MISCELLANEOUS,,18/03/2015,47899,1000,0,Reuse of the pool by the amateur,Financial Services,200000
South Lakeland District Council,http://opendatacommunities.org/id/district-council/south-lakeland,31/03/2015,Environmental Protection,Cultural Environmental Regulatory & Planning Services,http://opendatacommunities.org/def/concept/finance/sercop/objective/104,GLASDON UK LTD,2160576,18/03/2015,47901,785.54,0,2 off Glasdon Brown Enviropol PHOENIX,Horticultural,240000
South Lakeland District Council,http://opendatacommunities.org/id/district-council/south-lakeland,31/03/2015,Development Implementation,Cultural Environmental Regulatory & Planning Services,http://opendatacommunities.org/def/concept/finance/sercop/objective/104,Laura Ashley - The Belsfield,,18/03/2015,47902,527.92,0,SLDC Business Lunch Event on 11th March,Environmental Services,180000
South Lakeland District Council,http://opendatacommunities.org/id/district-council/south-lakeland,31/03/2015,Social Enterprise Admin,Central Services,http://opendatacommunities.org/def/concept/finance/sercop/objective/102,WOOF'S OF SEDBERGH,,18/03/2015,47903,175,0,MINI BUS SITE VISITS FOR MEMBERS RE,Vehicle Management,380000
South Lakeland District Council,http://opendatacommunities.org/id/district-council/south-lakeland,31/03/2015,Business Support Community Services,Internal Trading Accounts,,ETS UK LIMITED,2588203,18/03/2015,47904,297,0,Filter kits,Vehicle Management,380000
South Lakeland District Council,http://opendatacommunities.org/id/district-council/south-lakeland,31/03/2015,Business Support Community Services,Internal Trading Accounts,,STAGECOACH NORTHWEST,,18/03/2015,47905,10,0,Steam cleaning 01/04/14 - 31/03/15,Vehicle Management,380000
South Lakeland District Council,http://opendatacommunities.org/id/district-council/south-lakeland,31/03/2015,Business Support Community Services,Internal Trading Accounts,,STAGECOACH NORTHWEST,,18/03/2015,47905,150,0,Steam cleaning 01/04/14 - 31/03/15,Vehicle Management,380000
South Lakeland District Council,http://opendatacommunities.org/id/district-council/south-lakeland,31/03/2015,Business Support Community Services,Internal Trading Accounts,,M G D LTD,,18/03/2015,47906,35,0,MOTs 01/04/14 - 31/03/15,Vehicle Management,380000
South Lakeland District Council,http://opendatacommunities.org/id/district-council/south-lakeland,31/03/2015,Business Support Community Services,Cultural Environmental Regulatory & Planning Services,http://opendatacommunities.org/def/concept/finance/sercop/objective/104,JEWSON LIMITED,348407,18/03/2015,47907,32.72,0,Post mix cement,Domestic Goods,160000
South Lakeland District Council,http://opendatacommunities.org/id/district-council/south-lakeland,31/03/2015,Business Support Community Services,Housing Services,http://opendatacommunities.org/def/concept/finance/sercop/objective/108,Blue Star Taxis (Kendal) Ltd,6464607,18/03/2015,47908,3.7,0,Taxi for AMC from South,Social Community Care Supplies & Services,410000
South Lakeland District Council,http://opendatacommunities.org/id/district-council/south-lakeland,31/03/2015,Business Support Community Services,Housing Services,http://opendatacommunities.org/def/concept/finance/sercop/objective/108,DEPOSIT GUARANTEE SCHEME (CUMBRIA),,18/03/2015,47909,7510.83,0,Contribution towards administration,Financial Services,200000
South Lakeland District Council,http://opendatacommunities.org/id/district-council/south-lakeland,31/03/2015,Business Support Community Services,Housing Services,http://opendatacommunities.org/def/concept/finance/sercop/objective/108,DEPOSIT GUARANTEE SCHEME (CUMBRIA),,18/03/2015,47910,6251.17,0,Contribution towards administration,Financial Services,200000
South Lakeland District Council,http://opendatacommunities.org/id/district-council/south-lakeland,31/03/2015,Business Support Community Services,Housing Services,http://opendatacommunities.org/def/concept/finance/sercop/objective/108,MANNA HOUSE,8041948,18/03/2015,47911,6000,0,Q1  - Housing Advice and Advocacy,Financial Services,200000
South Lakeland District Council,http://opendatacommunities.org/id/district-council/south-lakeland,31/03/2015,Revenues and Benefits,,,Kendal BID Ltd,8986243,18/03/2015,47912,3621.44,0,Collection Figures for  January  -,Financial Services,200000
South Lakeland District Council,http://opendatacommunities.org/id/district-council/south-lakeland,31/03/2015,Revenues and Benefits,Central Services,http://opendatacommunities.org/def/concept/finance/sercop/objective/102,MERITEC LTD,3224622,18/03/2015,47913,418.5,0,RAB Processing Contract and Agency,Consultancy,150000
South Lakeland District Council,http://opendatacommunities.org/id/district-council/south-lakeland,31/03/2015,Business Support Community Services,Internal Trading Accounts,,BRIAN ARMISTEAD LTD T/A SINKFALL RECYCLI,4133280,18/03/2015,47914,511.6,0,Green waste tipping - April (estimated),Environmental Services,180000
South Lakeland District Council,http://opendatacommunities.org/id/district-council/south-lakeland,31/03/2015,Business Support Community Services,Internal Trading Accounts,,JOHNSTON SWEEPERS LTD,199841,18/03/2015,47915,808.44,0,Turbo,Vehicle Management,380000
South Lakeland District Council,http://opendatacommunities.org/id/district-council/south-lakeland,31/03/2015,Development Implementation,Cultural Environmental Regulatory & Planning Services,http://opendatacommunities.org/def/concept/finance/sercop/objective/104,MTP Media (2008) Ltd,6491633,18/03/2015,47916,800,0,Print of Kendal Food Festival Programme;,Environmental Services,180000
South Lakeland District Council,http://opendatacommunities.org/id/district-council/south-lakeland,31/03/2015,Business Support Community Services,Internal Trading Accounts,,ARCO LIMITED,133804,18/03/2015,47917,218.46,0,Man at Work signs,Furniture & Soft Furnishings,210000
South Lakeland District Council,http://opendatacommunities.org/id/district-council/south-lakeland,31/03/2015,Business Support Community Services,Internal Trading Accounts,,ARCO LIMITED,133804,18/03/2015,47918,34.8,0,Boots,Clothing,140000
South Lakeland District Council,http://opendatacommunities.org/id/district-council/south-lakeland,31/03/2015,Business Support Community Services,Internal Trading Accounts,,ARCO LIMITED,133804,18/03/2015,47919,42.95,0,Shoes ,Clothing,140000
South Lakeland District Council,http://opendatacommunities.org/id/district-council/south-lakeland,31/03/2015,Business Support Community Services,Internal Trading Accounts,,ARCO LIMITED,133804,18/03/2015,47919,41.95,0,Shoes ,Clothing,140000
South Lakeland District Council,http://opendatacommunities.org/id/district-council/south-lakeland,31/03/2015,Customer Services,Central Services,http://opendatacommunities.org/def/concept/finance/sercop/objective/102,SHRED-IT,4047194,18/03/2015,47920,320.74,0,Removal of confidential waste from South,Stationery,340000
South Lakeland District Council,http://opendatacommunities.org/id/district-council/south-lakeland,31/03/2015,Development Implementation,Cultural Environmental Regulatory & Planning Services,http://opendatacommunities.org/def/concept/finance/sercop/objective/104,KENDAL COLLEGE,,23/03/2015,47921,139.95,0,Launch of the KEGAP Event - Refreshments,Environmental Services,180000
South Lakeland District Council,http://opendatacommunities.org/id/district-council/south-lakeland,31/03/2015,Financial Services,Central Services,http://opendatacommunities.org/def/concept/finance/sercop/objective/102,GRANT THORNTON UK LLP,OC307742,23/03/2015,47922,20066,0,External Audit Service,Financial Services,200000
South Lakeland District Council,http://opendatacommunities.org/id/district-council/south-lakeland,31/03/2015,Lake Wardens,Cultural Environmental Regulatory & Planning Services,http://opendatacommunities.org/def/concept/finance/sercop/objective/104,TECHNIJET LTD,2776601,18/03/2015,47924,107.06,0,Bi-Annual Service of Pressure Washers,Arts & Leisure Services,290000
South Lakeland District Council,http://opendatacommunities.org/id/district-council/south-lakeland,31/03/2015,Lake Wardens,Cultural Environmental Regulatory & Planning Services,http://opendatacommunities.org/def/concept/finance/sercop/objective/104,TECHNIJET LTD,2776601,18/03/2015,47925,80.13,0,Bi-Annual Service of Pressure Washers,Arts & Leisure Services,290000
South Lakeland District Council,http://opendatacommunities.org/id/district-council/south-lakeland,31/03/2015,Social Enterprise Admin,Central Services,http://opendatacommunities.org/def/concept/finance/sercop/objective/102,CUMBRIA COUNTY COUNCIL,,23/03/2015,47926,3405.5,0,LAND CHARGE SEARCH CHARGES,Financial Services,200000
South Lakeland District Council,http://opendatacommunities.org/id/district-council/south-lakeland,31/03/2015,Social Enterprise Admin,Central Services,http://opendatacommunities.org/def/concept/finance/sercop/objective/102,CUMBRIA COUNTY COUNCIL,,23/03/2015,47927,1900,0,LAND CHARGE SEARCH ENQUIRIES COMMONS,Financial Services,200000
South Lakeland District Council,http://opendatacommunities.org/id/district-council/south-lakeland,31/03/2015,Business Support Community Services,Cultural Environmental Regulatory & Planning Services,http://opendatacommunities.org/def/concept/finance/sercop/objective/104,LANDMARK INFORMATION GROUP LIMITED,2892803,18/03/2015,47928,250,0,Historical Maps Data Licence,,
South Lakeland District Council,http://opendatacommunities.org/id/district-council/south-lakeland,31/03/2015,ICT Group,Central Services,http://opendatacommunities.org/def/concept/finance/sercop/objective/102,IT PROFESSIONAL SERVICES (ITPS),,18/03/2015,47929,9070.31,0,5 Year Prairefyre Support and,Information Communication Technology,270000
South Lakeland District Council,http://opendatacommunities.org/id/district-council/south-lakeland,31/03/2015,ICT Group,Central Services,http://opendatacommunities.org/def/concept/finance/sercop/objective/102,IT PROFESSIONAL SERVICES (ITPS),,18/03/2015,47930,1220,0,Audiocodes Tecnical Support for,Information Communication Technology,270000
South Lakeland District Council,http://opendatacommunities.org/id/district-council/south-lakeland,31/03/2015,ICT Group,Central Services,http://opendatacommunities.org/def/concept/finance/sercop/objective/102,PROBRAND LTD,2653446,18/03/2015,47931,149.6,0,MW033/6JH-00008      Microsoft - USB,Information Communication Technology,270000
South Lakeland District Council,http://opendatacommunities.org/id/district-council/south-lakeland,31/03/2015,Policy & Partnerships,SLDC as Agent,,CUMBRIA CONSTABULARY,,18/03/2015,47932,649,0,fao ,Financial Services,200000
South Lakeland District Council,http://opendatacommunities.org/id/district-council/south-lakeland,31/03/2015,Policy & Partnerships,SLDC as Agent,,CUMBRIA CONSTABULARY,,18/03/2015,47933,750,0,FAO ,Financial Services,200000
South Lakeland District Council,http://opendatacommunities.org/id/district-council/south-lakeland,31/03/2015,Policy & Partnerships,Central Services,http://opendatacommunities.org/def/concept/finance/sercop/objective/102,AWAZ CUMBRIA CIC,6252338,18/03/2015,47934,1025,0,Chairing of SLEDP meetings and equality,Consultancy,150000
South Lakeland District Council,http://opendatacommunities.org/id/district-council/south-lakeland,31/03/2015,Coronation Hall,Cultural Environmental Regulatory & Planning Services,http://opendatacommunities.org/def/concept/finance/sercop/objective/104,NORTHERN STAGE SERVICES LTD,1481472,18/03/2015,47936,175,0,Major pro C electric screen 5.0m x 2.81,Furniture & Soft Furnishings,210000
South Lakeland District Council,http://opendatacommunities.org/id/district-council/south-lakeland,31/03/2015,Coronation Hall,Cultural Environmental Regulatory & Planning Services,http://opendatacommunities.org/def/concept/finance/sercop/objective/104,NORTHERN STAGE SERVICES LTD,1481472,18/03/2015,47937,2150,0,Major pro C electric screen 5.0m x 2.81,Furniture & Soft Furnishings,210000
South Lakeland District Council,http://opendatacommunities.org/id/district-council/south-lakeland,31/03/2015,Coronation Hall,Cultural Environmental Regulatory & Planning Services,http://opendatacommunities.org/def/concept/finance/sercop/objective/104,NORTHERN STAGE SERVICES LTD,1481472,18/03/2015,47938,45,0,Major pro C electric screen 5.0m x 2.81,Furniture & Soft Furnishings,210000
South Lakeland District Council,http://opendatacommunities.org/id/district-council/south-lakeland,31/03/2015,Legal Services,Central Services,http://opendatacommunities.org/def/concept/finance/sercop/objective/102,VENN GROUP RECRUITMENT SOLUTIONS,,18/03/2015,47941,502.1,0,Wages for LF from: w/k ending,Consultancy,150000
South Lakeland District Council,http://opendatacommunities.org/id/district-council/south-lakeland,31/03/2015,Legal Services,Central Services,http://opendatacommunities.org/def/concept/finance/sercop/objective/102,VENN GROUP RECRUITMENT SOLUTIONS,,18/03/2015,47942,502.1,0,Wages for LF 1 x week ending,Consultancy,150000
South Lakeland District Council,http://opendatacommunities.org/id/district-council/south-lakeland,31/03/2015,Revenues and Benefits,Central Services,http://opendatacommunities.org/def/concept/finance/sercop/objective/102,VENN GROUP RECRUITMENT SOLUTIONS,,18/03/2015,47943,217.38,0,Consultant,Consultancy,150000
South Lakeland District Council,http://opendatacommunities.org/id/district-council/south-lakeland,31/03/2015,Environment and Housing,Housing,http://opendatacommunities.org/def/concept/finance/sercop/objective/108,VINCENT HOLLERAN PLUMBING & HEATING,,18/03/2015,47944,4460,0,"Crosthwaite, Kendal,",Financial Services,200000
South Lakeland District Council,http://opendatacommunities.org/id/district-council/south-lakeland,31/03/2015,Business Support Community Services,Internal Trading Accounts,,EK MOTOR FACTORS LTD,838524,18/03/2015,47945,15.07,0,Brake pipe,Vehicle Management,380000
South Lakeland District Council,http://opendatacommunities.org/id/district-council/south-lakeland,31/03/2015,Environment and Housing,Housing,http://opendatacommunities.org/def/concept/finance/sercop/objective/108,ENVIRONMENT & HOUSING GRANTS,,18/03/2015,47946,11130,0,"Kirkby Lonsdale,",Financial Services,200000
South Lakeland District Council,http://opendatacommunities.org/id/district-council/south-lakeland,31/03/2015,Business Support Community Services,Internal Trading Accounts,,SOLWAY DAF,1393710,18/03/2015,47947,395.73,0,Gas sensor,Vehicle Management,380000
South Lakeland District Council,http://opendatacommunities.org/id/district-council/south-lakeland,31/03/2015,Environment and Housing,Housing,http://opendatacommunities.org/def/concept/finance/sercop/objective/108,ENVIRONMENT & HOUSING GRANTS,,18/03/2015,47948,10587.09,0,"Kirkby Lonsdale,",Financial Services,200000
South Lakeland District Council,http://opendatacommunities.org/id/district-council/south-lakeland,31/03/2015,Business Support Community Services,Internal Trading Accounts,,EK MOTOR FACTORS LTD,838524,18/03/2015,47949,-124.74,0,Brake pipe,Vehicle Management,380000
South Lakeland District Council,http://opendatacommunities.org/id/district-council/south-lakeland,31/03/2015,Business Support Community Services,Internal Trading Accounts,,TAYLOR ENGINEERING & FABRICATIONS LTD,4989359,27/03/2015,47950,38.76,0,Contacts,Vehicle Management,380000
South Lakeland District Council,http://opendatacommunities.org/id/district-council/south-lakeland,31/03/2015,Business Support Community Services,Internal Trading Accounts,,EK MOTOR FACTORS LTD,838524,18/03/2015,47951,265.96,0,Brake pipe,Vehicle Management,380000
South Lakeland District Council,http://opendatacommunities.org/id/district-council/south-lakeland,31/03/2015,Business Support Community Services,Internal Trading Accounts,,EK MOTOR FACTORS LTD,838524,23/03/2015,47952,46.7,0,Brake pipe,Clothing,140000
South Lakeland District Council,http://opendatacommunities.org/id/district-council/south-lakeland,31/03/2015,Business Support Community Services,Internal Trading Accounts,,DENNIS EAGLE LTD,3794455,23/03/2015,47953,37.72,0,Fittings,Vehicle Management,380000
South Lakeland District Council,http://opendatacommunities.org/id/district-council/south-lakeland,31/03/2015,Business Support Community Services,Internal Trading Accounts,,Harry Park Tyres Ltd,8131208,27/03/2015,47954,66,0,Tyres,Vehicle Management,380000
South Lakeland District Council,http://opendatacommunities.org/id/district-council/south-lakeland,31/03/2015,Business Support Community Services,Internal Trading Accounts,,TAYLOR ENGINEERING & FABRICATIONS LTD,4989359,27/03/2015,47955,43.31,0,Contacts,Vehicle Management,380000
South Lakeland District Council,http://opendatacommunities.org/id/district-council/south-lakeland,31/03/2015,Business Support Community Services,Internal Trading Accounts,,Harry Park Tyres Ltd,8131208,27/03/2015,47956,85.9,0,Tyres,Vehicle Management,380000
South Lakeland District Council,http://opendatacommunities.org/id/district-council/south-lakeland,31/03/2015,Business Support Community Services,Internal Trading Accounts,,HYDRAIR TRUCK & TRAILER PARTS LTD,,18/03/2015,47957,122.71,0,Disc pads,Vehicle Management,380000
South Lakeland District Council,http://opendatacommunities.org/id/district-council/south-lakeland,31/03/2015,Business Support Community Services,Internal Trading Accounts,,Harry Park Tyres Ltd,8131208,27/03/2015,47958,12.5,0,Tyres,Vehicle Management,380000
South Lakeland District Council,http://opendatacommunities.org/id/district-council/south-lakeland,31/03/2015,Business Support Community Services,Internal Trading Accounts,,DENNIS EAGLE LTD,3794455,23/03/2015,47959,411.8,0,Fittings,Vehicle Management,380000
South Lakeland District Council,http://opendatacommunities.org/id/district-council/south-lakeland,31/03/2015,Business Support Community Services,Internal Trading Accounts,,Harry Park Tyres Ltd,8131208,27/03/2015,47960,160,0,Tyres,Vehicle Management,380000
South Lakeland District Council,http://opendatacommunities.org/id/district-council/south-lakeland,31/03/2015,Business Support Community Services,Internal Trading Accounts,,EK MOTOR FACTORS LTD,838524,18/03/2015,47961,190,0,Brake pipe,Vehicle Management,380000
South Lakeland District Council,http://opendatacommunities.org/id/district-council/south-lakeland,31/03/2015,Business Support Community Services,Internal Trading Accounts,,DENNIS EAGLE LTD,3794455,23/03/2015,47962,238.18,0,Fittings,Vehicle Management,380000
South Lakeland District Council,http://opendatacommunities.org/id/district-council/south-lakeland,31/03/2015,Business Support Community Services,Internal Trading Accounts,,EK MOTOR FACTORS LTD,838524,18/03/2015,47963,4.98,0,Brake pipe,Vehicle Management,380000
South Lakeland District Council,http://opendatacommunities.org/id/district-council/south-lakeland,31/03/2015,Business Support Community Services,Internal Trading Accounts,,DENNIS EAGLE LTD,3794455,23/03/2015,47964,180.4,0,Fittings,Vehicle Management,380000
South Lakeland District Council,http://opendatacommunities.org/id/district-council/south-lakeland,31/03/2015,Business Support Community Services,Internal Trading Accounts,,DENNIS EAGLE LTD,3794455,23/03/2015,47965,360.8,0,Fittings,Vehicle Management,380000
South Lakeland District Council,http://opendatacommunities.org/id/district-council/south-lakeland,31/03/2015,Business Support Community Services,Internal Trading Accounts,,SOLWAY DAF,1393710,18/03/2015,47966,184.95,0,Gas sensor,Vehicle Management,380000
South Lakeland District Council,http://opendatacommunities.org/id/district-council/south-lakeland,31/03/2015,Environment and Housing,Housing,http://opendatacommunities.org/def/concept/finance/sercop/objective/108,ULTRACARE PROPERTY MANAGEMENT LTD,5020554,18/03/2015,47967,2942.15,0," Jenkins Cragg,",Financial Services,200000
South Lakeland District Council,http://opendatacommunities.org/id/district-council/south-lakeland,31/03/2015,Environment and Housing,Housing,http://opendatacommunities.org/def/concept/finance/sercop/objective/108,C W COX & SONS (KENDAL) LTD,3498844,18/03/2015,47968,3870.47,0,"Kendal, LA9 5JA",Financial Services,200000
South Lakeland District Council,http://opendatacommunities.org/id/district-council/south-lakeland,31/03/2015,Business Support Community Services,Internal Trading Accounts,,Harry Park Tyres Ltd,8131208,27/03/2015,47969,62.5,0,Tyres,Vehicle Management,380000
South Lakeland District Council,http://opendatacommunities.org/id/district-council/south-lakeland,31/03/2015,Business Support Community Services,Internal Trading Accounts,,ADECCO UK LIMITED,593232,18/03/2015,47970,72.73,0,Consultant,Consultancy,150000
South Lakeland District Council,http://opendatacommunities.org/id/district-council/south-lakeland,31/03/2015,Social Enterprise Admin,Cultural Environmental Regulatory & Planning Services,http://opendatacommunities.org/def/concept/finance/sercop/objective/104,ROYAL TOWN PLANNING INSTITUTE,,23/03/2015,47972,1500,0,Season ticket for officers RTPI Training,Education,170000
South Lakeland District Council,http://opendatacommunities.org/id/district-council/south-lakeland,31/03/2015,Financial Services,Central Services,http://opendatacommunities.org/def/concept/finance/sercop/objective/102,DAISY COMMUNICATIONS LTD,4145329,18/03/2015,47973,47.19,0,Calls and Services Daisy Jan to March,Information Communication Technology,270000
South Lakeland District Council,http://opendatacommunities.org/id/district-council/south-lakeland,31/03/2015,Financial Services,Central Services,http://opendatacommunities.org/def/concept/finance/sercop/objective/102,DAISY COMMUNICATIONS LTD,4145329,18/03/2015,47973,106.09,0,Calls and Services Daisy Jan to March,Information Communication Technology,270000
South Lakeland District Council,http://opendatacommunities.org/id/district-council/south-lakeland,31/03/2015,Financial Services,Highways & Transport Services,http://opendatacommunities.org/def/concept/finance/sercop/objective/107,DAISY COMMUNICATIONS LTD,4145329,18/03/2015,47973,11.65,0,Calls and Services Daisy Jan to March,Information Communication Technology,270000
South Lakeland District Council,http://opendatacommunities.org/id/district-council/south-lakeland,31/03/2015,Financial Services,Transport Planning Policy,http://opendatacommunities.org/def/concept/finance/sercop/objective/107,DAISY COMMUNICATIONS LTD,4145329,18/03/2015,47973,19.14,0,Calls and Services Daisy Jan to March,Information Communication Technology,270000
South Lakeland District Council,http://opendatacommunities.org/id/district-council/south-lakeland,31/03/2015,Financial Services,Transport Planning Policy,http://opendatacommunities.org/def/concept/finance/sercop/objective/107,DAISY COMMUNICATIONS LTD,4145329,18/03/2015,47973,37.59,0,Calls and Services Daisy Jan to March,Information Communication Technology,270000
South Lakeland District Council,http://opendatacommunities.org/id/district-council/south-lakeland,31/03/2015,Financial Services,Cultural Environmental Regulatory & Planning Services,http://opendatacommunities.org/def/concept/finance/sercop/objective/104,DAISY COMMUNICATIONS LTD,4145329,18/03/2015,47973,23.3,0,Calls and Services Daisy Jan to March,Information Communication Technology,270000
South Lakeland District Council,http://opendatacommunities.org/id/district-council/south-lakeland,31/03/2015,Financial Services,Housing Services,http://opendatacommunities.org/def/concept/finance/sercop/objective/108,DAISY COMMUNICATIONS LTD,4145329,18/03/2015,47973,38.81,0,Calls and Services Daisy Jan to March,Information Communication Technology,270000
South Lakeland District Council,http://opendatacommunities.org/id/district-council/south-lakeland,31/03/2015,Financial Services,External Trading Accounts,,DAISY COMMUNICATIONS LTD,4145329,18/03/2015,47973,37.54,0,Calls and Services Daisy Jan to March,Information Communication Technology,270000
South Lakeland District Council,http://opendatacommunities.org/id/district-council/south-lakeland,31/03/2015,Financial Services,Cultural Environmental Regulatory & Planning Services,http://opendatacommunities.org/def/concept/finance/sercop/objective/104,DAISY COMMUNICATIONS LTD,4145329,18/03/2015,47973,41.13,0,Calls and Services Daisy Jan to March,Information Communication Technology,270000
South Lakeland District Council,http://opendatacommunities.org/id/district-council/south-lakeland,31/03/2015,Financial Services,Cultural Environmental Regulatory & Planning Services,http://opendatacommunities.org/def/concept/finance/sercop/objective/104,DAISY COMMUNICATIONS LTD,4145329,18/03/2015,47973,139.22,0,Calls and Services Daisy Jan to March,Information Communication Technology,270000
South Lakeland District Council,http://opendatacommunities.org/id/district-council/south-lakeland,31/03/2015,Financial Services,SLDC as Agent,,DAISY COMMUNICATIONS LTD,4145329,18/03/2015,47973,45.09,0,Calls and Services Daisy Jan to March,Financial Services,200000
South Lakeland District Council,http://opendatacommunities.org/id/district-council/south-lakeland,31/03/2015,Financial Services,SLDC as Agent,,DAISY COMMUNICATIONS LTD,4145329,18/03/2015,47973,32.09,0,Calls and Services Daisy Jan to March,Financial Services,200000
South Lakeland District Council,http://opendatacommunities.org/id/district-council/south-lakeland,31/03/2015,Business Support Community Services,Internal Trading Accounts,,EK MOTOR FACTORS LTD,838524,18/03/2015,47975,20.2,0,Brake pipe,Vehicle Management,380000
South Lakeland District Council,http://opendatacommunities.org/id/district-council/south-lakeland,31/03/2015,Business Support Community Services,Internal Trading Accounts,,EK MOTOR FACTORS LTD,838524,18/03/2015,47976,11.49,0,Brake pipe,Vehicle Management,380000
South Lakeland District Council,http://opendatacommunities.org/id/district-council/south-lakeland,31/03/2015,Business Support Community Services,Housing Services,http://opendatacommunities.org/def/concept/finance/sercop/objective/108,Landlord,,18/03/2015,47977,890,0,Monthly rent ,Social Community Care Supplies & Services,410000
South Lakeland District Council,http://opendatacommunities.org/id/district-council/south-lakeland,31/03/2015,Business Support Community Services,Housing Services,http://opendatacommunities.org/def/concept/finance/sercop/objective/108,Landlord,,18/03/2015,47978,1190,0,Monthly rent ,Social Community Care Supplies & Services,410000
South Lakeland District Council,http://opendatacommunities.org/id/district-council/south-lakeland,31/03/2015,Business Support Community Services,Housing Services,http://opendatacommunities.org/def/concept/finance/sercop/objective/108,Landlord,8672920,18/03/2015,47979,400,0,Monthly rent ,Social Community Care Supplies & Services,410000
South Lakeland District Council,http://opendatacommunities.org/id/district-council/south-lakeland,31/03/2015,Business Support Community Services,Housing Services,http://opendatacommunities.org/def/concept/finance/sercop/objective/108,Landlord,,18/03/2015,47980,520,0,Monthly rent ,Social Community Care Supplies & Services,410000
South Lakeland District Council,http://opendatacommunities.org/id/district-council/south-lakeland,31/03/2015,Policy & Partnerships,Cultural Environmental Regulatory & Planning Services,http://opendatacommunities.org/def/concept/finance/sercop/objective/104,Hallgarth Community Centre Mgmt Committe,,18/03/2015,47981,400,0,Community Centre Interior Decoration,Financial Services,200000
South Lakeland District Council,http://opendatacommunities.org/id/district-council/south-lakeland,31/03/2015,Policy & Partnerships,Cultural Environmental Regulatory & Planning Services,http://opendatacommunities.org/def/concept/finance/sercop/objective/104,ULVERSTON TOWN COUNCIL,,18/03/2015,47982,335,0,Cameras for Hoad Monument,Financial Services,200000
South Lakeland District Council,http://opendatacommunities.org/id/district-council/south-lakeland,31/03/2015,Legal Services,Central Services,http://opendatacommunities.org/def/concept/finance/sercop/objective/102,NO 5 CHAMBERS,2727465,18/03/2015,47983,1000,0,Professional fess ,Legal Services,280000
South Lakeland District Council,http://opendatacommunities.org/id/district-council/south-lakeland,31/03/2015,Coronation Hall,External Trading Accounts,,SHORROCK TRICHEM,4179799,18/03/2015,47985,24.59,0,Flat pack toilet paper (Kleenex) 27 pack,Cleaning & Janitorial,130000
South Lakeland District Council,http://opendatacommunities.org/id/district-council/south-lakeland,31/03/2015,Coronation Hall,External Trading Accounts,,SHORROCK TRICHEM,4179799,18/03/2015,47986,314.27,0,Flat pack toilet paper (Kleenex) 27 pack,Cleaning & Janitorial,130000
South Lakeland District Council,http://opendatacommunities.org/id/district-council/south-lakeland,31/03/2015,Business Support Community Services,Cultural Environmental Regulatory & Planning Services,http://opendatacommunities.org/def/concept/finance/sercop/objective/104,CHARTERED INST OF ENVIRONMNTL HLTH,,18/03/2015,47987,480,0,EHCnet subscription 01/04/15 - 31/03/16,Information Communication Technology,270000
South Lakeland District Council,http://opendatacommunities.org/id/district-council/south-lakeland,31/03/2015,Business Support Community Services,Internal Trading Accounts,,EK MOTOR FACTORS LTD,838524,23/03/2015,47991,58.17,0,Brake pipe,Vehicle Management,380000
South Lakeland District Council,http://opendatacommunities.org/id/district-council/south-lakeland,31/03/2015,Business Support Community Services,Internal Trading Accounts,,EK MOTOR FACTORS LTD,838524,23/03/2015,47992,23.96,0,Brake pipe,Vehicle Management,380000
South Lakeland District Council,http://opendatacommunities.org/id/district-council/south-lakeland,31/03/2015,Financial Services,Central Services,http://opendatacommunities.org/def/concept/finance/sercop/objective/102,CAPITA BUSINESS SERVICES LTD (NCR),,01/03/2015,47995,603.53,0,Internet transactions Inv.6003043629,Financial Services,200000
South Lakeland District Council,http://opendatacommunities.org/id/district-council/south-lakeland,31/03/2015,Financial Services,Highways & Transport Services,http://opendatacommunities.org/def/concept/finance/sercop/objective/107,ZURICH MUNICIPAL,,23/03/2015,47996,250,0,I9209/1894 ZM 08142175200 Ferry Nab,Financial Services,200000
South Lakeland District Council,http://opendatacommunities.org/id/district-council/south-lakeland,31/03/2015,Coronation Hall,Cultural Environmental Regulatory & Planning Services,http://opendatacommunities.org/def/concept/finance/sercop/objective/104,ULVERSTON AMATEUR OPERATIC SOCIETY,,23/03/2015,47997,50,0,Stewards for Sax Explosion,Consultancy,150000
South Lakeland District Council,http://opendatacommunities.org/id/district-council/south-lakeland,31/03/2015,Coronation Hall,Cultural Environmental Regulatory & Planning Services,http://opendatacommunities.org/def/concept/finance/sercop/objective/104,ULVERSTON AMATEUR OPERATIC SOCIETY,,23/03/2015,47998,50,0,Stewards for Sax Explosion,Consultancy,150000
South Lakeland District Council,http://opendatacommunities.org/id/district-council/south-lakeland,31/03/2015,Democratic Services,Central Services,http://opendatacommunities.org/def/concept/finance/sercop/objective/102,CUMBRIA CHAMBER OF COMMERCE,4211364,23/03/2015,47999,1500,0,Contribution to South Lakeland Partners',Financial Services,200000
South Lakeland District Council,http://opendatacommunities.org/id/district-council/south-lakeland,31/03/2015,Policy & Partnerships,Cultural Environmental Regulatory & Planning Services,http://opendatacommunities.org/def/concept/finance/sercop/objective/104,MARCHESI CENTRE,,23/03/2015,48000,34,0,Central Lakes LAP Meeting - Marchesi,Arts & Leisure Services,290000
South Lakeland District Council,http://opendatacommunities.org/id/district-council/south-lakeland,31/03/2015,Social Enterprise Admin,Cultural Environmental Regulatory & Planning Services,http://opendatacommunities.org/def/concept/finance/sercop/objective/104,RAINBOW SAFETY SURFACING LTD,4820611,23/03/2015,48001,2850,0,Grange over Sands Promenade - Toddler,Sports & Playground Equipment & Maintenance,330000
South Lakeland District Council,http://opendatacommunities.org/id/district-council/south-lakeland,31/03/2015,Democratic Services,Central Services,http://opendatacommunities.org/def/concept/finance/sercop/objective/102,RIVERBANK HOSPITALITY CATERING,,23/03/2015,48002,112.5,0,Buffet for Councillors on 27 March,Education,170000
South Lakeland District Council,http://opendatacommunities.org/id/district-council/south-lakeland,31/03/2015,Development Implementation,Planning and Development,,NPS GROUP LTD,6614601,23/03/2015,48003,485,0,Arboriculture survey for Waterhead.,Financial Services,200000
South Lakeland District Council,http://opendatacommunities.org/id/district-council/south-lakeland,31/03/2015,Social Enterprise Admin,Transport,http://opendatacommunities.org/def/concept/finance/sercop/objective/107,NPS GROUP LTD,6614601,27/03/2015,48004,1200,0,CDM Co-ordinator for capital works,Financial Services,200000
South Lakeland District Council,http://opendatacommunities.org/id/district-council/south-lakeland,31/03/2015,Development Implementation,Central Services,http://opendatacommunities.org/def/concept/finance/sercop/objective/102,NPS GROUP LTD,6614601,23/03/2015,48005,38333.33,0,Professional Property Services for,"Works - Construction, Repair & Maintenance",390000
South Lakeland District Council,http://opendatacommunities.org/id/district-council/south-lakeland,31/03/2015,Social Enterprise Admin,Cultural Environmental Regulatory & Planning Services,http://opendatacommunities.org/def/concept/finance/sercop/objective/104,HAYMARKET MEDIA GROUP LTD,267189,23/03/2015,48006,1040,0,DCP ONLINE SUBSCRIPTION,Consultancy,150000
South Lakeland District Council,http://opendatacommunities.org/id/district-council/south-lakeland,31/03/2015,Development Implementation,Cultural Environmental Regulatory & Planning Services,http://opendatacommunities.org/def/concept/finance/sercop/objective/104,CRUDEN PROPERTY SERVICES LTD,3851237,23/03/2015,48007,252.13,0,Kendal Christmas Market - the cost of,Environmental Services,180000
South Lakeland District Council,http://opendatacommunities.org/id/district-council/south-lakeland,31/03/2015,Electoral Services,Central Services,http://opendatacommunities.org/def/concept/finance/sercop/objective/102,CRUDEN PROPERTY SERVICES LTD,3851237,27/03/2015,48008,250,0,Supply and fit cable traps at Kendal,,
South Lakeland District Council,http://opendatacommunities.org/id/district-council/south-lakeland,31/03/2015,Development Strategy,Cultural Environmental Regulatory & Planning Services,http://opendatacommunities.org/def/concept/finance/sercop/objective/104,Livingroofs Enterprises Ltd,8170083,23/03/2015,48009,365.7,0,Fee including travelling expenses for,Consultancy,150000
South Lakeland District Council,http://opendatacommunities.org/id/district-council/south-lakeland,31/03/2015,Development Implementation,Central Services,http://opendatacommunities.org/def/concept/finance/sercop/objective/102,NPS GROUP LTD,6614601,23/03/2015,48017,1650,0,"Fees for Contact Centre, Coronatin Hall,",Financial Services,200000
South Lakeland District Council,http://opendatacommunities.org/id/district-council/south-lakeland,31/03/2015,Development Strategy,Cultural Environmental Regulatory & Planning Services,http://opendatacommunities.org/def/concept/finance/sercop/objective/104,NPS GROUP LTD,6614601,23/03/2015,48018,1000,0,Land Values analysis,Consultancy,150000
South Lakeland District Council,http://opendatacommunities.org/id/district-council/south-lakeland,31/03/2015,Social Enterprise Admin,Cultural Environmental Regulatory & Planning Services,http://opendatacommunities.org/def/concept/finance/sercop/objective/104,THE NATIONAL TRUST,,23/03/2015,48019,100,0,Bark Barn jetty  26 Mar 2015 - 27 March,Housing Management,250000
South Lakeland District Council,http://opendatacommunities.org/id/district-council/south-lakeland,31/03/2015,Revenues and Benefits,Central Services,http://opendatacommunities.org/def/concept/finance/sercop/objective/102,NORTHGATE VEHICLE HIRE LTD,1434157,23/03/2015,48020,22.2,0,12.03.15 (8:30am Drop off & collect at,Street & Traffic Management,350000
South Lakeland District Council,http://opendatacommunities.org/id/district-council/south-lakeland,31/03/2015,Business Support Community Services,Housing Services,http://opendatacommunities.org/def/concept/finance/sercop/objective/108,James Andrews Recruitment Solutions,6834852,23/03/2015,48021,862.5,0,Payment ,Consultancy,150000
South Lakeland District Council,http://opendatacommunities.org/id/district-council/south-lakeland,31/03/2015,Social Enterprise Admin,Highways & Transport Services,http://opendatacommunities.org/def/concept/finance/sercop/objective/107,BEMROSE BOOTH PARAGON LTD,4891375,27/03/2015,48022,478,0,100 x PCN Rolls,Stationery,340000
South Lakeland District Council,http://opendatacommunities.org/id/district-council/south-lakeland,31/03/2015,Development Management,Cultural Environmental Regulatory & Planning Services,http://opendatacommunities.org/def/concept/finance/sercop/objective/104,SALFORD CITY COUNCIL,,27/03/2015,48023,127.11,0,Checking work under the Building,Facilities & Management Services,190000
South Lakeland District Council,http://opendatacommunities.org/id/district-council/south-lakeland,31/03/2015,ICT Group,Cultural Environmental Regulatory & Planning Services,http://opendatacommunities.org/def/concept/finance/sercop/objective/104,Insight Direct (Uk) Ltd,2579852,23/03/2015,48025,3237.92,0,BenQ BL2405HT monitors,Furniture & Soft Furnishings,210000
South Lakeland District Council,http://opendatacommunities.org/id/district-council/south-lakeland,31/03/2015,Business Support Community Services,Internal Trading Accounts,,ARCO LIMITED,133804,23/03/2015,48026,71.1,0,Boots - ,Clothing,140000
South Lakeland District Council,http://opendatacommunities.org/id/district-council/south-lakeland,31/03/2015,Business Support Community Services,Housing Services,http://opendatacommunities.org/def/concept/finance/sercop/objective/108,BUNZL CLEANING & HYGIENE SUPPLIES,2902454,23/03/2015,48027,152.58,0,Kleenguard Flex Nitrile Glove X Large,Cleaning & Janitorial,130000
South Lakeland District Council,http://opendatacommunities.org/id/district-council/south-lakeland,31/03/2015,Business Support Community Services,Internal Trading Accounts,,J R B ENTERPRISE,,27/03/2015,48028,214,0,Bags (economy) for dog waste bag,Cleaning & Janitorial,130000
South Lakeland District Council,http://opendatacommunities.org/id/district-council/south-lakeland,31/03/2015,Legal Services,Central Services,http://opendatacommunities.org/def/concept/finance/sercop/objective/102,KINGS CHAMBERS,7091130,23/03/2015,48029,1250,0,Professional fees re:  ,Legal Services,280000
South Lakeland District Council,http://opendatacommunities.org/id/district-council/south-lakeland,31/03/2015,Business Support Community Services,Internal Trading Accounts,,RIBBLESDALE AUTO ELECTRICS 1992 LTD,2732686,23/03/2015,48030,130,0,Batteries,Vehicle Management,380000
South Lakeland District Council,http://opendatacommunities.org/id/district-council/south-lakeland,31/03/2015,Business Support Community Services,Internal Trading Accounts,,RIBBLESDALE AUTO ELECTRICS 1992 LTD,2732686,23/03/2015,48031,67.26,0,Batteries,Vehicle Management,380000
South Lakeland District Council,http://opendatacommunities.org/id/district-council/south-lakeland,31/03/2015,Business Support Community Services,Internal Trading Accounts,,RIBBLESDALE AUTO ELECTRICS 1992 LTD,2732686,23/03/2015,48032,22.64,0,Batteries,Vehicle Management,380000
South Lakeland District Council,http://opendatacommunities.org/id/district-council/south-lakeland,31/03/2015,Business Support Community Services,Internal Trading Accounts,,RIBBLESDALE AUTO ELECTRICS 1992 LTD,2732686,23/03/2015,48033,37.64,0,Batteries,Vehicle Management,380000
South Lakeland District Council,http://opendatacommunities.org/id/district-council/south-lakeland,31/03/2015,Business Support Community Services,Internal Trading Accounts,,RIBBLESDALE AUTO ELECTRICS 1992 LTD,2732686,23/03/2015,48034,87.6,0,Batteries,Vehicle Management,380000
South Lakeland District Council,http://opendatacommunities.org/id/district-council/south-lakeland,31/03/2015,Business Support Community Services,Internal Trading Accounts,,RIBBLESDALE AUTO ELECTRICS 1992 LTD,2732686,23/03/2015,48035,112,0,Batteries,Vehicle Management,380000
South Lakeland District Council,http://opendatacommunities.org/id/district-council/south-lakeland,31/03/2015,Business Support Community Services,Internal Trading Accounts,,RIBBLESDALE AUTO ELECTRICS 1992 LTD,2732686,23/03/2015,48036,160,0,Batteries,Vehicle Management,380000
South Lakeland District Council,http://opendatacommunities.org/id/district-council/south-lakeland,31/03/2015,Business Support Community Services,Internal Trading Accounts,,METCALFE BROS LTD,5899629,23/03/2015,48038,4824,0,Sweeper hire - November (estimated),Facilities & Management Services,190000
South Lakeland District Council,http://opendatacommunities.org/id/district-council/south-lakeland,31/03/2015,Business Support Community Services,Internal Trading Accounts,,FST CONSUMABLES LTD,1342012,23/03/2015,48039,180.45,0,Consumables 01/04/14 - 31/03/15,Cleaning & Janitorial,130000
South Lakeland District Council,http://opendatacommunities.org/id/district-council/south-lakeland,31/03/2015,Human Resources,Housing Services,http://opendatacommunities.org/def/concept/finance/sercop/objective/108,OCEAN MEDIA GROUP LTD,1680420,23/03/2015,48040,650,0,Advert for Affordable Housing Officer,Consultancy,150000
South Lakeland District Council,http://opendatacommunities.org/id/district-council/south-lakeland,31/03/2015,Social Enterprise Admin,Cultural Environmental Regulatory & Planning Services,http://opendatacommunities.org/def/concept/finance/sercop/objective/104,NEWSQUEST (NORTH WEST) LTD,3102566,27/03/2015,48044,95,0,PUBLIC NOTICES FOR PLANNIG DEPARTMENT.,Facilities & Management Services,190000
South Lakeland District Council,http://opendatacommunities.org/id/district-council/south-lakeland,31/03/2015,Legal Services,Highways & Transport Services,http://opendatacommunities.org/def/concept/finance/sercop/objective/107,NEWSQUEST (NORTH WEST) LTD,3102566,23/03/2015,48045,3893,0,Advert re:  Notice of Variation of Off,Street & Traffic Management,350000
South Lakeland District Council,http://opendatacommunities.org/id/district-council/south-lakeland,31/03/2015,Revenues and Benefits,Central Services,http://opendatacommunities.org/def/concept/finance/sercop/objective/102,CAPITA BUSINESS SERVICES LTD,2299747,23/03/2015,48046,3680,0,2015 - 2016 Annual payment for 5 years,Information Communication Technology,270000
South Lakeland District Council,http://opendatacommunities.org/id/district-council/south-lakeland,31/03/2015,Revenues and Benefits,Central Services,http://opendatacommunities.org/def/concept/finance/sercop/objective/102,LOOMIS UK LTD,3200432,23/03/2015,48047,101.53,0,2015-16  Langstone House Surcharge,Mail Services,300000
South Lakeland District Council,http://opendatacommunities.org/id/district-council/south-lakeland,31/03/2015,Revenues and Benefits,Highways & Transport Services,http://opendatacommunities.org/def/concept/finance/sercop/objective/107,LOOMIS UK LTD,3200432,23/03/2015,48047,914.6,0,2015-16  Langstone House Surcharge,Consultancy,150000
South Lakeland District Council,http://opendatacommunities.org/id/district-council/south-lakeland,31/03/2015,Environmental Protection,Cultural Environmental Regulatory & Planning Services,http://opendatacommunities.org/def/concept/finance/sercop/objective/104,COOPER ENGRAVING,,23/03/2015,48048,93,0,3 off plaques for memorial seats,Horticultural,240000
South Lakeland District Council,http://opendatacommunities.org/id/district-council/south-lakeland,31/03/2015,Business Support Community Services,Housing Services,http://opendatacommunities.org/def/concept/finance/sercop/objective/108,JLA LTD,1094178,23/03/2015,48049,180,0,Service for the Washing Machine and,Financial Services,200000
South Lakeland District Council,http://opendatacommunities.org/id/district-council/south-lakeland,31/03/2015,Business Support Community Services,Housing Services,http://opendatacommunities.org/def/concept/finance/sercop/objective/108,JLA LTD,1094178,23/03/2015,48050,140,0,Service for the Washing Machine and,Financial Services,200000
South Lakeland District Council,http://opendatacommunities.org/id/district-council/south-lakeland,31/03/2015,Business Support Community Services,Housing Services,http://opendatacommunities.org/def/concept/finance/sercop/objective/108,JLA LTD,1094178,23/03/2015,48051,140,0,Service for the Washing Machine and,Financial Services,200000
South Lakeland District Council,http://opendatacommunities.org/id/district-council/south-lakeland,31/03/2015,Social Enterprise Admin,Cultural Environmental Regulatory & Planning Services,http://opendatacommunities.org/def/concept/finance/sercop/objective/104,ARB CONSULTANTS LTD,6082066,23/03/2015,48052,2931.83,0,To provide tree officer services 1.10.14,Facilities & Management Services,190000
South Lakeland District Council,http://opendatacommunities.org/id/district-council/south-lakeland,31/03/2015,Financial Services,External Trading Accounts,,SOUTH LAKES HOUSING,IP031419,23/03/2015,48054,532.02,0,SLH 50% share of Wayleave income,,
South Lakeland District Council,http://opendatacommunities.org/id/district-council/south-lakeland,31/03/2015,Financial Services,SLDC as Agent,,SOUTH LAKES HOUSING,IP031419,23/03/2015,48055,77.74,0,Electricity recharges - credit balance,Utilities,370000
South Lakeland District Council,http://opendatacommunities.org/id/district-council/south-lakeland,31/03/2015,Development Implementation,Central Services,http://opendatacommunities.org/def/concept/finance/sercop/objective/102,NPS GROUP LTD,6614601,27/03/2015,48056,315,0,"EPC for Unit 3, Foxfield Business Park","Works - Construction, Repair & Maintenance",390000
South Lakeland District Council,http://opendatacommunities.org/id/district-council/south-lakeland,31/03/2015,Human Resources,Central Services,http://opendatacommunities.org/def/concept/finance/sercop/objective/102,NORTH WEST EMPLOYERS,,23/03/2015,48057,3762,0,"Strategic Commercial Skills 12th, 19th,",Education,170000
South Lakeland District Council,http://opendatacommunities.org/id/district-council/south-lakeland,31/03/2015,Electoral Services,Central Services,http://opendatacommunities.org/def/concept/finance/sercop/objective/102,HALAROSE LIMITED,1362834,23/03/2015,48062,500,0,Cross Boundary Export Licence,Information Communication Technology,270000
South Lakeland District Council,http://opendatacommunities.org/id/district-council/south-lakeland,31/03/2015,Electoral Services,Central Services,http://opendatacommunities.org/def/concept/finance/sercop/objective/102,ROYAL MAIL GROUP PLC,,23/03/2015,48063,120.28,0,Response Plus Postage,Mail Services,300000
South Lakeland District Council,http://opendatacommunities.org/id/district-council/south-lakeland,31/03/2015,Electoral Services,Central Services,http://opendatacommunities.org/def/concept/finance/sercop/objective/102,LAKELAND RADIO LTD,4031744,23/03/2015,48064,171,0,Lakeland Radio Advertising re electoral,Mail Services,300000
South Lakeland District Council,http://opendatacommunities.org/id/district-council/south-lakeland,31/03/2015,Electoral Services,Central Services,http://opendatacommunities.org/def/concept/finance/sercop/objective/102,LAKELAND RADIO LTD,4031744,23/03/2015,48065,126,0,Lakeland Radio Advertising re electoral,Mail Services,300000
South Lakeland District Council,http://opendatacommunities.org/id/district-council/south-lakeland,31/03/2015,Legal Services,Cultural Environmental Regulatory & Planning Services,http://opendatacommunities.org/def/concept/finance/sercop/objective/104,Richard Buxton Environmental& Public Law,,23/03/2015,48066,32500,0,Re;  SLDC Interim payment -,Legal Services,280000
South Lakeland District Council,http://opendatacommunities.org/id/district-council/south-lakeland,31/03/2015,Policy & Partnerships,Cultural Environmental Regulatory & Planning Services,http://opendatacommunities.org/def/concept/finance/sercop/objective/104,CUMBRIA COUNTY COUNCIL,,23/03/2015,48069,200,0,Grit Bin,Financial Services,200000
South Lakeland District Council,http://opendatacommunities.org/id/district-council/south-lakeland,31/03/2015,Policy & Partnerships,Cultural Environmental Regulatory & Planning Services,http://opendatacommunities.org/def/concept/finance/sercop/objective/104,GRANTS- MISCELLANEOUS,,23/03/2015,48070,500,0,New Mower for hawkshead bowling club,Financial Services,200000
South Lakeland District Council,http://opendatacommunities.org/id/district-council/south-lakeland,31/03/2015,Environment and Housing,Housing,http://opendatacommunities.org/def/concept/finance/sercop/objective/108,ENVIRONMENT & HOUSING GRANTS,,23/03/2015,48071,4000,0,"Levens, Kendal,",Financial Services,200000
South Lakeland District Council,http://opendatacommunities.org/id/district-council/south-lakeland,31/03/2015,Coronation Hall,Cultural Environmental Regulatory & Planning Services,http://opendatacommunities.org/def/concept/finance/sercop/objective/104,FLASHLIGHT,8588039,23/03/2015,48072,1743.18,0,As per quotation number SOU0070903GM,Furniture & Soft Furnishings,210000
South Lakeland District Council,http://opendatacommunities.org/id/district-council/south-lakeland,31/03/2015,Financial Services,Central Services,http://opendatacommunities.org/def/concept/finance/sercop/objective/102,CIPFA,2376684,23/03/2015,48073,2600,0,TISonline Full Subscription 1.04.15 to,Financial Services,200000
South Lakeland District Council,http://opendatacommunities.org/id/district-council/south-lakeland,31/03/2015,Financial Services,Central Services,http://opendatacommunities.org/def/concept/finance/sercop/objective/102,CIPFA,2376684,23/03/2015,48074,1980,0,Subs Better Governance Forum 01.04.15 to,Facilities & Management Services,190000
South Lakeland District Council,http://opendatacommunities.org/id/district-council/south-lakeland,31/03/2015,Development Implementation,Cultural Environmental Regulatory & Planning Services,http://opendatacommunities.org/def/concept/finance/sercop/objective/104,SEDBERGH & DISTRICT LOOKAROUND,,23/03/2015,48075,25,0,Sedbergh Hub Advert (1/2 page) in,Environmental Services,180000
South Lakeland District Council,http://opendatacommunities.org/id/district-council/south-lakeland,31/03/2015,Development Implementation,Planning and Development,,WINDERMERE TOWN COUNCIL,,23/03/2015,48076,300,0,EPF Grant - Signage for Windermere,Financial Services,200000
South Lakeland District Council,http://opendatacommunities.org/id/district-council/south-lakeland,31/03/2015,Development Implementation,Cultural Environmental Regulatory & Planning Services,http://opendatacommunities.org/def/concept/finance/sercop/objective/104,Helen Tate,,23/03/2015,48077,1000,0,Research for Kendal Festival of Food,Environmental Services,180000
South Lakeland District Council,http://opendatacommunities.org/id/district-council/south-lakeland,31/03/2015,Policy & Partnerships,Cultural Environmental Regulatory & Planning Services,http://opendatacommunities.org/def/concept/finance/sercop/objective/104,GRANTS- MISCELLANEOUS,,23/03/2015,48078,1220,0,Defib for Beck Community Centre,Financial Services,200000
South Lakeland District Council,http://opendatacommunities.org/id/district-council/south-lakeland,31/03/2015,Business Support Community Services,Central Services,http://opendatacommunities.org/def/concept/finance/sercop/objective/102,INTERVIEW EXPENSES (Bacs),,26/03/2015,48079,21,0,Public Protection Manager interview,,
South Lakeland District Council,http://opendatacommunities.org/id/district-council/south-lakeland,31/03/2015,Business Support Community Services,Housing Services,http://opendatacommunities.org/def/concept/finance/sercop/objective/108,ADECCO UK LIMITED,593232,23/03/2015,48081,102.7,0,Cleaner for Town View Fields,Consultancy,150000
South Lakeland District Council,http://opendatacommunities.org/id/district-council/south-lakeland,31/03/2015,Business Support Community Services,Housing Services,http://opendatacommunities.org/def/concept/finance/sercop/objective/108,ADECCO UK LIMITED,593232,23/03/2015,48082,102.7,0,Cleaner for Town View Fields,Consultancy,150000
South Lakeland District Council,http://opendatacommunities.org/id/district-council/south-lakeland,31/03/2015,Revenues and Benefits,Central Services,http://opendatacommunities.org/def/concept/finance/sercop/objective/102,MERITEC LTD,3224622,23/03/2015,48083,139.5,0,RAB Processing Contract and Agency,Consultancy,150000
South Lakeland District Council,http://opendatacommunities.org/id/district-council/south-lakeland,31/03/2015,Revenues and Benefits,Central Services,http://opendatacommunities.org/def/concept/finance/sercop/objective/102,ROYAL MAIL GROUP PLC,,23/03/2015,48084,34.79,0,2014-15  Postal Charges a/c 0055114000,Mail Services,300000
South Lakeland District Council,http://opendatacommunities.org/id/district-council/south-lakeland,31/03/2015,Revenues and Benefits,Central Services,http://opendatacommunities.org/def/concept/finance/sercop/objective/102,CAPITA BUSINESS SERVICES LTD,2299747,23/03/2015,48085,18044.44,0,Software,Information Communication Technology,270000
South Lakeland District Council,http://opendatacommunities.org/id/district-council/south-lakeland,31/03/2015,Revenues and Benefits,Central Services,http://opendatacommunities.org/def/concept/finance/sercop/objective/102,CAPITA BUSINESS SERVICES LTD,2299747,23/03/2015,48085,525.92,0,Software,Information Communication Technology,270000
South Lakeland District Council,http://opendatacommunities.org/id/district-council/south-lakeland,31/03/2015,Revenues and Benefits,Cultural Environmental Regulatory & Planning Services,http://opendatacommunities.org/def/concept/finance/sercop/objective/104,CAPITA BUSINESS SERVICES LTD,2299747,23/03/2015,48085,1272.78,0,Software,Information Communication Technology,270000
South Lakeland District Council,http://opendatacommunities.org/id/district-council/south-lakeland,31/03/2015,Revenues and Benefits,Central Services,http://opendatacommunities.org/def/concept/finance/sercop/objective/102,TAMESIDE METROPOLITAN BOROUGH,,23/03/2015,48086,2290,0,NAFN Subs to National Anit Fraud Network,Financial Services,200000
South Lakeland District Council,http://opendatacommunities.org/id/district-council/south-lakeland,31/03/2015,Revenues and Benefits,Central Services,http://opendatacommunities.org/def/concept/finance/sercop/objective/102,CUMBRIA MAILING SERVICES LTD,3136821,23/03/2015,48087,255.5,0,Council Tax  2014-15 Billing,Stationery,340000
South Lakeland District Council,http://opendatacommunities.org/id/district-council/south-lakeland,31/03/2015,Revenues and Benefits,Central Services,http://opendatacommunities.org/def/concept/finance/sercop/objective/102,CUMBRIA MAILING SERVICES LTD,3136821,23/03/2015,48087,2585.64,0,Council Tax  2014-15 Billing,Stationery,340000
South Lakeland District Council,http://opendatacommunities.org/id/district-council/south-lakeland,31/03/2015,Coronation Hall,External Trading Accounts,,Morson International,,27/03/2015,48091,119.28,0,Ulverston Market Hall cleaner from April,Consultancy,150000
South Lakeland District Council,http://opendatacommunities.org/id/district-council/south-lakeland,31/03/2015,Social Enterprise Admin,Cultural Environmental Regulatory & Planning Services,http://opendatacommunities.org/def/concept/finance/sercop/objective/104,Matchtech,2526418,27/03/2015,48093,1068.19,0,TO SUPPLY DEVELOPMENT CONTROL TEAM,Consultancy,150000
South Lakeland District Council,http://opendatacommunities.org/id/district-council/south-lakeland,31/03/2015,Technical Team,Cultural Environmental Regulatory & Planning Services,http://opendatacommunities.org/def/concept/finance/sercop/objective/104,Matchtech,2526418,27/03/2015,48094,781.2,0,TO SUPPLY  CONTRACT 16,Consultancy,150000
South Lakeland District Council,http://opendatacommunities.org/id/district-council/south-lakeland,31/03/2015,Legal Services,Cultural Environmental Regulatory & Planning Services,http://opendatacommunities.org/def/concept/finance/sercop/objective/104,FARRERS,9023215,23/03/2015,48096,178.5,0,3 x Cases Restaurant Blend Coffee,Catering,110000
South Lakeland District Council,http://opendatacommunities.org/id/district-council/south-lakeland,31/03/2015,Kendal Town Hall,Cultural Environmental Regulatory & Planning Services,http://opendatacommunities.org/def/concept/finance/sercop/objective/104,THE LAUNDRY SHOP LTD,5421366,23/03/2015,48097,128.96,0,Laundry service charges for cleaning the,Cleaning & Janitorial,130000
South Lakeland District Council,http://opendatacommunities.org/id/district-council/south-lakeland,31/03/2015,Business Support Community Services,Internal Trading Accounts,,HYDRAIR TRUCK & TRAILER PARTS LTD,,23/03/2015,48099,9.5,0,Disc pads,Vehicle Management,380000
South Lakeland District Council,http://opendatacommunities.org/id/district-council/south-lakeland,31/03/2015,Business Support Community Services,Internal Trading Accounts,,HYDRAIR TRUCK & TRAILER PARTS LTD,,23/03/2015,48100,922.5,0,Disc pads,Vehicle Management,380000
South Lakeland District Council,http://opendatacommunities.org/id/district-council/south-lakeland,31/03/2015,Business Support Community Services,Internal Trading Accounts,,HYDRAIR TRUCK & TRAILER PARTS LTD,,23/03/2015,48101,88.8,0,Disc pads,Vehicle Management,380000
South Lakeland District Council,http://opendatacommunities.org/id/district-council/south-lakeland,31/03/2015,Business Support Community Services,Internal Trading Accounts,,HYDRAIR TRUCK & TRAILER PARTS LTD,,23/03/2015,48102,65.24,0,Disc pads,Vehicle Management,380000
South Lakeland District Council,http://opendatacommunities.org/id/district-council/south-lakeland,31/03/2015,Business Support Community Services,Internal Trading Accounts,,HYDRAIR TRUCK & TRAILER PARTS LTD,,23/03/2015,48103,65.24,0,Disc pads,Vehicle Management,380000
South Lakeland District Council,http://opendatacommunities.org/id/district-council/south-lakeland,31/03/2015,Business Support Community Services,Internal Trading Accounts,,DENNIS EAGLE LTD,3794455,23/03/2015,48104,113.63,0,Fittings,Vehicle Management,380000
South Lakeland District Council,http://opendatacommunities.org/id/district-council/south-lakeland,31/03/2015,Business Support Community Services,Internal Trading Accounts,,EK MOTOR FACTORS LTD,838524,23/03/2015,48105,27.88,0,Brake pipe,Vehicle Management,380000
South Lakeland District Council,http://opendatacommunities.org/id/district-council/south-lakeland,31/03/2015,Business Support Community Services,Internal Trading Accounts,,RIBBLESDALE AUTO ELECTRICS 1992 LTD,2732686,23/03/2015,48106,156.94,0,Batteries,Vehicle Management,380000
South Lakeland District Council,http://opendatacommunities.org/id/district-council/south-lakeland,31/03/2015,Business Support Community Services,Internal Trading Accounts,,RIBBLESDALE AUTO ELECTRICS 1992 LTD,2732686,23/03/2015,48107,185.4,0,Batteries,Vehicle Management,380000
South Lakeland District Council,http://opendatacommunities.org/id/district-council/south-lakeland,31/03/2015,Business Support Community Services,Internal Trading Accounts,,EK MOTOR FACTORS LTD,838524,23/03/2015,48108,29.84,0,Brake pipe,Vehicle Management,380000
South Lakeland District Council,http://opendatacommunities.org/id/district-council/south-lakeland,31/03/2015,Business Support Community Services,Internal Trading Accounts,,HAKO MACHINES LIMITED,1414225,23/03/2015,48109,5779.54,0,Hire of KX60 AOS - 2013/14,Vehicle Management,380000
South Lakeland District Council,http://opendatacommunities.org/id/district-council/south-lakeland,31/03/2015,Business Support Community Services,Internal Trading Accounts,,HAKO MACHINES LIMITED,1414225,23/03/2015,48110,11559.08,0,Hire of KX14 KHP 01/04/15 - 31/03/16,Vehicle Management,380000
South Lakeland District Council,http://opendatacommunities.org/id/district-council/south-lakeland,31/03/2015,Business Support Community Services,Internal Trading Accounts,,HAKO MACHINES LIMITED,1414225,23/03/2015,48111,4626.7,0,Hire of KX14 KHP 01/04/15 - 31/03/16,Vehicle Management,380000
South Lakeland District Council,http://opendatacommunities.org/id/district-council/south-lakeland,31/03/2015,Business Support Community Services,Internal Trading Accounts,,HAKO MACHINES LIMITED,1414225,23/03/2015,48112,5779.54,0,Hire of KX14 KHP 01/04/15 - 31/03/16,Vehicle Management,380000
South Lakeland District Council,http://opendatacommunities.org/id/district-council/south-lakeland,31/03/2015,Business Support Community Services,Internal Trading Accounts,,M G D LTD,,23/03/2015,48113,35,0,MOTs 01/04/14 - 31/03/15,Vehicle Management,380000
South Lakeland District Council,http://opendatacommunities.org/id/district-council/south-lakeland,31/03/2015,Business Support Community Services,Internal Trading Accounts,,DENNIS EAGLE LTD,3794455,23/03/2015,48114,18.94,0,Fittings,Vehicle Management,380000
South Lakeland District Council,http://opendatacommunities.org/id/district-council/south-lakeland,31/03/2015,Coronation Hall,Central Services,http://opendatacommunities.org/def/concept/finance/sercop/objective/102,INITIAL WASHROOM SOLUTIONS,,27/03/2015,48115,205.89,0,Service to Ulverston Town Hall Contract,Cleaning & Janitorial,130000
South Lakeland District Council,http://opendatacommunities.org/id/district-council/south-lakeland,31/03/2015,Lake Wardens,Cultural Environmental Regulatory & Planning Services,http://opendatacommunities.org/def/concept/finance/sercop/objective/104,JEWSON LIMITED,348407,23/03/2015,48116,77.48,0,12 x Bags of Post Mix,Street & Traffic Management,350000
South Lakeland District Council,http://opendatacommunities.org/id/district-council/south-lakeland,31/03/2015,Lake Wardens,SLDC as Agent,,LAKE DISTRICT NATIONAL PARK AUTHORITY,,23/03/2015,48117,896.62,0,Monthly Invoices for 2014-2015 for Boat,Financial Services,200000
South Lakeland District Council,http://opendatacommunities.org/id/district-council/south-lakeland,31/03/2015,Business Support Community Services,Housing Services,http://opendatacommunities.org/def/concept/finance/sercop/objective/108,Landlord,7803122,23/03/2015,48118,500,0,Monthly rent ,Social Community Care Supplies & Services,410000
South Lakeland District Council,http://opendatacommunities.org/id/district-council/south-lakeland,31/03/2015,Business Support Community Services,Housing Services,http://opendatacommunities.org/def/concept/finance/sercop/objective/108,Landlord,,23/03/2015,48119,500,0,Monthly rent ,Social Community Care Supplies & Services,410000
South Lakeland District Council,http://opendatacommunities.org/id/district-council/south-lakeland,31/03/2015,Business Support Community Services,Housing Services,http://opendatacommunities.org/def/concept/finance/sercop/objective/108,Landlord,,23/03/2015,48120,520,0,Monthly rent ,Social Community Care Supplies & Services,410000
South Lakeland District Council,http://opendatacommunities.org/id/district-council/south-lakeland,31/03/2015,Business Support Community Services,Housing Services,http://opendatacommunities.org/def/concept/finance/sercop/objective/108,Landlord,,23/03/2015,48121,625,0,Monthly rent ,Social Community Care Supplies & Services,410000
South Lakeland District Council,http://opendatacommunities.org/id/district-council/south-lakeland,31/03/2015,Environment and Housing,Housing,http://opendatacommunities.org/def/concept/finance/sercop/objective/108,ULTRACARE PROPERTY MANAGEMENT LTD,5020554,23/03/2015,48122,3150,0,"Kendal, LA9 5NR",Financial Services,200000
South Lakeland District Council,http://opendatacommunities.org/id/district-council/south-lakeland,31/03/2015,Environment and Housing,Housing,http://opendatacommunities.org/def/concept/finance/sercop/objective/108,ENVIRONMENT & HOUSING GRANTS,,23/03/2015,48123,12780,0,"Slackhead, Beetham,",Financial Services,200000
South Lakeland District Council,http://opendatacommunities.org/id/district-council/south-lakeland,31/03/2015,Human Resources,Central Services,http://opendatacommunities.org/def/concept/finance/sercop/objective/102,Sarah Ruston,,27/03/2015,48124,1000,0,Completing the Working Safely in,Health & Safety,220000
South Lakeland District Council,http://opendatacommunities.org/id/district-council/south-lakeland,31/03/2015,Social Enterprise Admin,Highways & Transport Services,http://opendatacommunities.org/def/concept/finance/sercop/objective/107,METRIC GROUP LIMITED,2560839,27/03/2015,48125,71.25,0,Machine maintenance contract from 1,Vehicle Management,380000
South Lakeland District Council,http://opendatacommunities.org/id/district-council/south-lakeland,31/03/2015,Social Enterprise Admin,Highways & Transport Services,http://opendatacommunities.org/def/concept/finance/sercop/objective/107,METRIC GROUP LIMITED,2560839,27/03/2015,48125,71.25,0,Machine maintenance contract from 1,Vehicle Management,380000
South Lakeland District Council,http://opendatacommunities.org/id/district-council/south-lakeland,31/03/2015,Social Enterprise Admin,Highways & Transport Services,http://opendatacommunities.org/def/concept/finance/sercop/objective/107,METRIC GROUP LIMITED,2560839,27/03/2015,48125,142.5,0,Machine maintenance contract from 1,Vehicle Management,380000
South Lakeland District Council,http://opendatacommunities.org/id/district-council/south-lakeland,31/03/2015,Social Enterprise Admin,Highways & Transport Services,http://opendatacommunities.org/def/concept/finance/sercop/objective/107,METRIC GROUP LIMITED,2560839,27/03/2015,48125,142.5,0,Machine maintenance contract from 1,Vehicle Management,380000
South Lakeland District Council,http://opendatacommunities.org/id/district-council/south-lakeland,31/03/2015,Social Enterprise Admin,Highways & Transport Services,http://opendatacommunities.org/def/concept/finance/sercop/objective/107,METRIC GROUP LIMITED,2560839,27/03/2015,48125,142.5,0,Machine maintenance contract from 1,Vehicle Management,380000
South Lakeland District Council,http://opendatacommunities.org/id/district-council/south-lakeland,31/03/2015,Social Enterprise Admin,Highways & Transport Services,http://opendatacommunities.org/def/concept/finance/sercop/objective/107,METRIC GROUP LIMITED,2560839,27/03/2015,48125,71.25,0,Machine maintenance contract from 1,Vehicle Management,380000
South Lakeland District Council,http://opendatacommunities.org/id/district-council/south-lakeland,31/03/2015,Social Enterprise Admin,Highways & Transport Services,http://opendatacommunities.org/def/concept/finance/sercop/objective/107,METRIC GROUP LIMITED,2560839,27/03/2015,48125,285,0,Machine maintenance contract from 1,Vehicle Management,380000
South Lakeland District Council,http://opendatacommunities.org/id/district-council/south-lakeland,31/03/2015,Social Enterprise Admin,Highways & Transport Services,http://opendatacommunities.org/def/concept/finance/sercop/objective/107,METRIC GROUP LIMITED,2560839,27/03/2015,48125,142.5,0,Machine maintenance contract from 1,Vehicle Management,380000
South Lakeland District Council,http://opendatacommunities.org/id/district-council/south-lakeland,31/03/2015,Social Enterprise Admin,Highways & Transport Services,http://opendatacommunities.org/def/concept/finance/sercop/objective/107,METRIC GROUP LIMITED,2560839,27/03/2015,48125,142.5,0,Machine maintenance contract from 1,Vehicle Management,380000
South Lakeland District Council,http://opendatacommunities.org/id/district-council/south-lakeland,31/03/2015,Social Enterprise Admin,Highways & Transport Services,http://opendatacommunities.org/def/concept/finance/sercop/objective/107,METRIC GROUP LIMITED,2560839,27/03/2015,48125,71.25,0,Machine maintenance contract from 1,Vehicle Management,380000
South Lakeland District Council,http://opendatacommunities.org/id/district-council/south-lakeland,31/03/2015,Social Enterprise Admin,Highways & Transport Services,http://opendatacommunities.org/def/concept/finance/sercop/objective/107,METRIC GROUP LIMITED,2560839,27/03/2015,48125,213.75,0,Machine maintenance contract from 1,Vehicle Management,380000
South Lakeland District Council,http://opendatacommunities.org/id/district-council/south-lakeland,31/03/2015,Social Enterprise Admin,Highways & Transport Services,http://opendatacommunities.org/def/concept/finance/sercop/objective/107,METRIC GROUP LIMITED,2560839,27/03/2015,48125,213.75,0,Machine maintenance contract from 1,Vehicle Management,380000
South Lakeland District Council,http://opendatacommunities.org/id/district-council/south-lakeland,31/03/2015,Social Enterprise Admin,Highways & Transport Services,http://opendatacommunities.org/def/concept/finance/sercop/objective/107,METRIC GROUP LIMITED,2560839,27/03/2015,48125,71.25,0,Machine maintenance contract from 1,Vehicle Management,380000
South Lakeland District Council,http://opendatacommunities.org/id/district-council/south-lakeland,31/03/2015,Social Enterprise Admin,Highways & Transport Services,http://opendatacommunities.org/def/concept/finance/sercop/objective/107,METRIC GROUP LIMITED,2560839,27/03/2015,48125,71.25,0,Machine maintenance contract from 1,Vehicle Management,380000
South Lakeland District Council,http://opendatacommunities.org/id/district-council/south-lakeland,31/03/2015,Social Enterprise Admin,Highways & Transport Services,http://opendatacommunities.org/def/concept/finance/sercop/objective/107,METRIC GROUP LIMITED,2560839,27/03/2015,48125,71.25,0,Machine maintenance contract from 1,Vehicle Management,380000
South Lakeland District Council,http://opendatacommunities.org/id/district-council/south-lakeland,31/03/2015,Social Enterprise Admin,Highways & Transport Services,http://opendatacommunities.org/def/concept/finance/sercop/objective/107,METRIC GROUP LIMITED,2560839,27/03/2015,48125,213.75,0,Machine maintenance contract from 1,Vehicle Management,380000
South Lakeland District Council,http://opendatacommunities.org/id/district-council/south-lakeland,31/03/2015,Social Enterprise Admin,Highways & Transport Services,http://opendatacommunities.org/def/concept/finance/sercop/objective/107,METRIC GROUP LIMITED,2560839,27/03/2015,48125,71.25,0,Machine maintenance contract from 1,Vehicle Management,380000
South Lakeland District Council,http://opendatacommunities.org/id/district-council/south-lakeland,31/03/2015,Social Enterprise Admin,Highways & Transport Services,http://opendatacommunities.org/def/concept/finance/sercop/objective/107,METRIC GROUP LIMITED,2560839,27/03/2015,48125,213.75,0,Machine maintenance contract from 1,Vehicle Management,380000
South Lakeland District Council,http://opendatacommunities.org/id/district-council/south-lakeland,31/03/2015,Social Enterprise Admin,Highways & Transport Services,http://opendatacommunities.org/def/concept/finance/sercop/objective/107,METRIC GROUP LIMITED,2560839,27/03/2015,48125,71.25,0,Machine maintenance contract from 1,Vehicle Management,380000
South Lakeland District Council,http://opendatacommunities.org/id/district-council/south-lakeland,31/03/2015,Social Enterprise Admin,Highways & Transport Services,http://opendatacommunities.org/def/concept/finance/sercop/objective/107,METRIC GROUP LIMITED,2560839,27/03/2015,48125,71.25,0,Machine maintenance contract from 1,Vehicle Management,380000
South Lakeland District Council,http://opendatacommunities.org/id/district-council/south-lakeland,31/03/2015,Social Enterprise Admin,Highways & Transport Services,http://opendatacommunities.org/def/concept/finance/sercop/objective/107,METRIC GROUP LIMITED,2560839,27/03/2015,48125,142.5,0,Machine maintenance contract from 1,Vehicle Management,380000
South Lakeland District Council,http://opendatacommunities.org/id/district-council/south-lakeland,31/03/2015,Social Enterprise Admin,Highways & Transport Services,http://opendatacommunities.org/def/concept/finance/sercop/objective/107,METRIC GROUP LIMITED,2560839,27/03/2015,48125,71.25,0,Machine maintenance contract from 1,Vehicle Management,380000
South Lakeland District Council,http://opendatacommunities.org/id/district-council/south-lakeland,31/03/2015,Social Enterprise Admin,Highways & Transport Services,http://opendatacommunities.org/def/concept/finance/sercop/objective/107,METRIC GROUP LIMITED,2560839,27/03/2015,48125,71.25,0,Machine maintenance contract from 1,Vehicle Management,380000
South Lakeland District Council,http://opendatacommunities.org/id/district-council/south-lakeland,31/03/2015,Social Enterprise Admin,Highways & Transport Services,http://opendatacommunities.org/def/concept/finance/sercop/objective/107,METRIC GROUP LIMITED,2560839,27/03/2015,48125,71.25,0,Machine maintenance contract from 1,Vehicle Management,380000
South Lakeland District Council,http://opendatacommunities.org/id/district-council/south-lakeland,31/03/2015,Social Enterprise Admin,Highways & Transport Services,http://opendatacommunities.org/def/concept/finance/sercop/objective/107,METRIC GROUP LIMITED,2560839,27/03/2015,48125,142.5,0,Machine maintenance contract from 1,Vehicle Management,380000
South Lakeland District Council,http://opendatacommunities.org/id/district-council/south-lakeland,31/03/2015,Social Enterprise Admin,Highways & Transport Services,http://opendatacommunities.org/def/concept/finance/sercop/objective/107,METRIC GROUP LIMITED,2560839,27/03/2015,48125,142.5,0,Machine maintenance contract from 1,Vehicle Management,380000
South Lakeland District Council,http://opendatacommunities.org/id/district-council/south-lakeland,31/03/2015,Social Enterprise Admin,Highways & Transport Services,http://opendatacommunities.org/def/concept/finance/sercop/objective/107,METRIC GROUP LIMITED,2560839,27/03/2015,48125,71.25,0,Machine maintenance contract from 1,Vehicle Management,380000
South Lakeland District Council,http://opendatacommunities.org/id/district-council/south-lakeland,31/03/2015,Social Enterprise Admin,Highways & Transport Services,http://opendatacommunities.org/def/concept/finance/sercop/objective/107,METRIC GROUP LIMITED,2560839,27/03/2015,48125,71.25,0,Machine maintenance contract from 1,Vehicle Management,380000
South Lakeland District Council,http://opendatacommunities.org/id/district-council/south-lakeland,31/03/2015,Social Enterprise Admin,Highways & Transport Services,http://opendatacommunities.org/def/concept/finance/sercop/objective/107,METRIC GROUP LIMITED,2560839,27/03/2015,48125,142.5,0,Machine maintenance contract from 1,Vehicle Management,380000
South Lakeland District Council,http://opendatacommunities.org/id/district-council/south-lakeland,31/03/2015,Social Enterprise Admin,Highways & Transport Services,http://opendatacommunities.org/def/concept/finance/sercop/objective/107,METRIC GROUP LIMITED,2560839,27/03/2015,48125,356.25,0,Machine maintenance contract from 1,Vehicle Management,380000
South Lakeland District Council,http://opendatacommunities.org/id/district-council/south-lakeland,31/03/2015,Social Enterprise Admin,Highways & Transport Services,http://opendatacommunities.org/def/concept/finance/sercop/objective/107,METRIC GROUP LIMITED,2560839,27/03/2015,48125,71.25,0,Machine maintenance contract from 1,Vehicle Management,380000
South Lakeland District Council,http://opendatacommunities.org/id/district-council/south-lakeland,31/03/2015,Social Enterprise Admin,Highways & Transport Services,http://opendatacommunities.org/def/concept/finance/sercop/objective/107,METRIC GROUP LIMITED,2560839,27/03/2015,48125,71.25,0,Machine maintenance contract from 1,Vehicle Management,380000
South Lakeland District Council,http://opendatacommunities.org/id/district-council/south-lakeland,31/03/2015,Social Enterprise Admin,Highways & Transport Services,http://opendatacommunities.org/def/concept/finance/sercop/objective/107,METRIC GROUP LIMITED,2560839,27/03/2015,48125,142.5,0,Machine maintenance contract from 1,Vehicle Management,380000
South Lakeland District Council,http://opendatacommunities.org/id/district-council/south-lakeland,31/03/2015,Social Enterprise Admin,Highways & Transport Services,http://opendatacommunities.org/def/concept/finance/sercop/objective/107,METRIC GROUP LIMITED,2560839,27/03/2015,48125,142.5,0,Machine maintenance contract from 1,Vehicle Management,380000
South Lakeland District Council,http://opendatacommunities.org/id/district-council/south-lakeland,31/03/2015,Social Enterprise Admin,Highways & Transport Services,http://opendatacommunities.org/def/concept/finance/sercop/objective/107,METRIC GROUP LIMITED,2560839,27/03/2015,48125,142.5,0,Machine maintenance contract from 1,Vehicle Management,380000
South Lakeland District Council,http://opendatacommunities.org/id/district-council/south-lakeland,31/03/2015,Social Enterprise Admin,Highways & Transport Services,http://opendatacommunities.org/def/concept/finance/sercop/objective/107,METRIC GROUP LIMITED,2560839,27/03/2015,48125,356.25,0,Machine maintenance contract from 1,Vehicle Management,380000
South Lakeland District Council,http://opendatacommunities.org/id/district-council/south-lakeland,31/03/2015,Social Enterprise Admin,Highways & Transport Services,http://opendatacommunities.org/def/concept/finance/sercop/objective/107,METRIC GROUP LIMITED,2560839,27/03/2015,48125,71.25,0,Machine maintenance contract from 1,Vehicle Management,380000
South Lakeland District Council,http://opendatacommunities.org/id/district-council/south-lakeland,31/03/2015,Social Enterprise Admin,Highways & Transport Services,http://opendatacommunities.org/def/concept/finance/sercop/objective/107,METRIC GROUP LIMITED,2560839,27/03/2015,48125,71.25,0,Machine maintenance contract from 1,Vehicle Management,380000
South Lakeland District Council,http://opendatacommunities.org/id/district-council/south-lakeland,31/03/2015,Revenues and Benefits,SLDC as Agent,,ROYAL MAIL GROUP PLC,,27/03/2015,48126,1486.79,0,2014-15  Postal Charges a/c 0198123013,Financial Services,200000
South Lakeland District Council,http://opendatacommunities.org/id/district-council/south-lakeland,31/03/2015,Social Enterprise Admin,Central Services,http://opendatacommunities.org/def/concept/finance/sercop/objective/102,CUMBRIA COUNTY COUNCIL,,27/03/2015,48127,760,0,LAND CHARGE SEARCH ENQUIRIES COMMONS,Financial Services,200000
South Lakeland District Council,http://opendatacommunities.org/id/district-council/south-lakeland,31/03/2015,Social Enterprise Admin,Cultural Environmental Regulatory & Planning Services,http://opendatacommunities.org/def/concept/finance/sercop/objective/104,NEWSQUEST (NORTH WEST) LTD,3102566,27/03/2015,48128,95,0,PUBLIC NOTICES FOR PLANNIG DEPARTMENT.,Facilities & Management Services,190000
South Lakeland District Council,http://opendatacommunities.org/id/district-council/south-lakeland,31/03/2015,Revenues and Benefits,Central Services,http://opendatacommunities.org/def/concept/finance/sercop/objective/102,VENN GROUP RECRUITMENT SOLUTIONS,,27/03/2015,48129,1233.75,0,Consultant,Consultancy,150000
South Lakeland District Council,http://opendatacommunities.org/id/district-council/south-lakeland,31/03/2015,Social Enterprise Admin,Cultural Environmental Regulatory & Planning Services,http://opendatacommunities.org/def/concept/finance/sercop/objective/104,FURNESS NEWSPAPERS LTD,1155841,27/03/2015,48130,103.6,0,PUBLIC NOTICES FURNESS NEWSPAPERS,Facilities & Management Services,190000
South Lakeland District Council,http://opendatacommunities.org/id/district-council/south-lakeland,31/03/2015,Business Support Community Services,Internal Trading Accounts,,ARCO LIMITED,133804,27/03/2015,48131,74.99,0,Trainers ,Clothing,140000
South Lakeland District Council,http://opendatacommunities.org/id/district-council/south-lakeland,31/03/2015,Social Enterprise Admin,Highways & Transport Services,http://opendatacommunities.org/def/concept/finance/sercop/objective/107,ACS BPS LTD,,27/03/2015,48132,345.88,0,200 x blank Mifare cards from stock,Vehicle Management,380000
South Lakeland District Council,http://opendatacommunities.org/id/district-council/south-lakeland,31/03/2015,Business Support Community Services,Cultural Environmental Regulatory & Planning Services,http://opendatacommunities.org/def/concept/finance/sercop/objective/104,ARCO LIMITED,133804,27/03/2015,48133,23.16,0,Paint,Cleaning & Janitorial,130000
South Lakeland District Council,http://opendatacommunities.org/id/district-council/south-lakeland,31/03/2015,Business Support Community Services,Internal Trading Accounts,,ARCO LIMITED,133804,27/03/2015,48134,195,0,SLDC heat seal logos,Clothing,140000
South Lakeland District Council,http://opendatacommunities.org/id/district-council/south-lakeland,31/03/2015,Social Enterprise Admin,Highways & Transport Services,http://opendatacommunities.org/def/concept/finance/sercop/objective/107,G4S SECURE SOLUTIONS (UK) LTD,1046019,27/03/2015,48135,833.18,0,Patrol Services for South Lakeland House,Consultancy,150000
